Workbook

Sheet LevelbattleConfig
A1: ID | C1: Group | D1: awardDrop | E1: awardNum | F1: combatTime | G1: combatType | H1: MonsterGroupTruePower | I1: MonsterGroupPower
A2: int | C2: int[] | D2: int[] | E2: int[] | F2: float | G2: int | H2: int | I2: int
A4: 战斗组ID | B4: 使用位置 | C4: 包含的组ID （就是第二页的ID) | D4: 奖励随机掉落组 | E4: 奖励道具数量 | F4: 用时(秒） | G4: 玩法类型 1.正常 2.追逐 3.站桩 4.保卫水晶 5.至少完成x波 （406260） 6.至少坚持x秒 （406261） | H4: 怪物战斗组修为（实际） | I4: 怪物战斗组修为（表现） | J4: 评分修正 例如3人参战填75% | L4: 怪物等级上浮 | Q4: 事件ID | R4: 怪物等级
A5: 100001 | B5: 主线1-1 | C5: =A5 -> 100001 | D5: -1 | E5: -1 | F5: 120 | G5: 1 | H5: 100 | I5: 100 | K5: 1-1
A6: 100002 | B6: 主线1-1 | C6: =A6 -> 100002 | D6: -1 | E6: -1 | F6: 120 | G6: 1 | H6: 100 | I6: 100 | K6: 1-1
A7: 100003 | B7: 主线1-1 | C7: =A7 -> 100003 | D7: -1 | E7: -1 | F7: 120 | G7: 1 | H7: 100 | I7: 100 | K7: 1-1 | L7: 1
A8: 100004 | B8: boss | C8: =A8 -> 100004 | D8: -1 | E8: -1 | F8: 120 | G8: 1 | H8: 100 | I8: 100 | K8: 1-1 | L8: 1
A11: 1002 | B11: =_xlfn.TEXTJOIN("-",1,M11:N11) -> 主线-击败结界兽 | C11: 1002 | D11: -1 | E11: -1 | F11: 120 | G11: 1 | H11: 100 | I11: 100 | M11: 主线 | N11: 击败结界兽 | O11: 10004 | P11: 5 | Q11: =VLOOKUP(A11,[1]EventLinkConfig!$Y:$AM,15,FALSE) -> 10004 | R11: =VLOOKUP(Q11,[1]EventConfig!$A:$P,16,FALSE) -> 6
A12: =A11+1 -> 1003 | B12: 主线-击败痴道人 | C12: 1003 | D12: -1 | E12: -1 | F12: 120 | G12: 1 | H12: 100 | I12: 100 | M12: 主线 | N12: 击败痴道人 | O12: 10007 | P12: 15 | Q12: =VLOOKUP(A12,[1]EventLinkConfig!$Y:$AM,15,FALSE) -> 10007 | R12: =VLOOKUP(Q12,[1]EventConfig!$A:$P,16,FALSE) -> 16
A13: 1004 | B13: 主线-妖兽横行 | C13: 1004 | D13: -1 | E13: -1 | F13: 120 | G13: 1 | H13: 100 | I13: 100 | M13: 主线 | N13: 妖兽横行 | O13: 10010 | P13: 25 | Q13: 10010 | R13: =VLOOKUP(Q13,[1]EventConfig!$A:$P,16,FALSE) -> 25
A14: 1005 | B14: 主线-击败后山小妖 | C14: 1005 | D14: -1 | E14: -1 | F14: 120 | G14: 1 | H14: 100 | I14: 100 | M14: 主线 | N14: 击败后山小妖 | O14: 10015 | P14: 45 | Q14: 10015 | R14: =VLOOKUP(Q14,[1]EventConfig!$A:$P,16,FALSE) -> 46
A15: 1006 | B15: 主线-击败夜袭的妖兽 | C15: 1006 | D15: -1 | E15: -1 | F15: 120 | G15: 1 | H15: 100 | I15: 100 | M15: 主线 | N15: 击败夜袭的妖兽 | O15: 10016 | P15: 50 | Q15: 10016 | R15: =VLOOKUP(Q15,[1]EventConfig!$A:$P,16,FALSE) -> 51
A16: 1007 | B16: 主线-击败峰顶的妖王 | C16: 1007 | D16: -1 | E16: -1 | F16: 120 | G16: 1 | H16: 100 | I16: 100 | M16: 主线 | N16: 击败峰顶的妖王 | O16: 10017 | P16: 55 | Q16: 10017 | R16: =VLOOKUP(Q16,[1]EventConfig!$A:$P,16,FALSE) -> 56
A17: 1008 | B17: 主线-击败仙山的阵眼妖兽 | C17: 1008 | D17: -1 | E17: -1 | F17: 120 | G17: 1 | H17: 100 | I17: 100 | M17: 主线 | N17: 击败仙山的阵眼妖兽 | O17: 10023 | P17: 85 | Q17: 10023 | R17: =VLOOKUP(Q17,[1]EventConfig!$A:$P,16,FALSE) -> 86
A18: 1009 | B18: 主线-击杀灵兽获得天肥 | C18: 1009 | D18: -1 | E18: -1 | F18: 120 | G18: 1 | H18: 100 | I18: 100 | M18: 主线 | N18: 击杀灵兽获得天肥 | O18: 10025 | P18: 95 | Q18: 10025 | R18: =VLOOKUP(Q18,[1]EventConfig!$A:$P,16,FALSE) -> 101
A19: 1010 | B19: =_xlfn.TEXTJOIN("-",1,M19:N19) -> 主线-击败小麻雀的幻影 | C19: =A19 -> 1010 | D19: -1 | E19: -1 | F19: 120 | G19: 1 | H19: 100 | I19: 100 | M19: 主线 | N19: 击败小麻雀的幻影 | O19: 10027 | P19: 100 | Q19: =VLOOKUP(A19,[1]EventLinkConfig!$Y:$AM,15,FALSE) -> 10027 | R19: =VLOOKUP(Q19,[1]EventConfig!$A:$P,16,FALSE) -> 121
A20: 1011 | B20: =_xlfn.TEXTJOIN("-",1,M20:N20) -> 主线-击败痴道人的幻影 | C20: =A20 -> 1011 | D20: -1 | E20: -1 | F20: 120 | G20: 1 | H20: 100 | I20: 100 | M20: 主线 | N20: 击败痴道人的幻影 | O20: 10027 | P20: 110 | Q20: =VLOOKUP(A20,[1]EventLinkConfig!$Y:$AM,15,FALSE) -> 10027 | R20: =VLOOKUP(Q20,[1]EventConfig!$A:$P,16,FALSE) -> 121
A21: 1012 | B21: =_xlfn.TEXTJOIN("-",1,M21:N21) -> 主线-樗木之灵的幻影 | C21: =A21 -> 1012 | D21: -1 | E21: -1 | F21: 120 | G21: 1 | H21: 100 | I21: 100 | M21: 主线 | N21: 樗木之灵的幻影 | O21: 10027 | P21: 120 | Q21: =VLOOKUP(A21,[1]EventLinkConfig!$Y:$AM,15,FALSE) -> 10027 | R21: =VLOOKUP(Q21,[1]EventConfig!$A:$P,16,FALSE) -> 121
A22: 1013 | B22: =_xlfn.TEXTJOIN("-",1,M22:N22) -> 主线-击败心魔 | C22: =A22 -> 1013 | D22: -1 | E22: -1 | F22: 120 | G22: 1 | H22: 100 | I22: 100 | M22: 主线 | N22: 击败心魔 | O22: 10030 | P22: 140 | Q22: =VLOOKUP(A22,[1]EventLinkConfig!$Y:$AM,15,FALSE) -> 10030 | R22: =VLOOKUP(Q22,[1]EventConfig!$A:$P,16,FALSE) -> 141
A23: 1014 | B23: 主线-击败北海妖兽2 | C23: 1014 | D23: -1 | E23: -1 | F23: 120 | G23: 1 | H23: 100 | I23: 100 | M23: 主线 | N23: 击败北海妖兽2 | O23: 10031 | P23: 150 | Q23: =VLOOKUP(A23,[1]EventLinkConfig!$Y:$AM,15,FALSE) -> 10031 | R23: =VLOOKUP(Q23,[1]EventConfig!$A:$P,16,FALSE) -> 151
A24: 1015 | B24: =_xlfn.TEXTJOIN("-",1,M24:N24) -> 主线-击败北海妖兽1 | C24: =A24 -> 1015 | D24: -1 | E24: -1 | F24: 120 | G24: 1 | H24: 100 | I24: 100 | M24: 主线 | N24: 击败北海妖兽1 | O24: 10010 | P24: 25 | Q24: 10010 | R24: =VLOOKUP(Q24,[1]EventConfig!$A:$P,16,FALSE) -> 25
A25: 1016 | B25: =_xlfn.TEXTJOIN("-",1,M25:N25) -> 主线-与樗木之灵切磋 | C25: =A25 -> 1016 | D25: -1 | E25: -1 | F25: 120 | G25: 1 | H25: 100 | I25: 100 | M25: 主线 | N25: 与樗木之灵切磋 | O25: 10020 | P25: 65 | Q25: =VLOOKUP(A25,[1]EventLinkConfig!$Y:$AM,15,FALSE) -> 10020 | R25: =VLOOKUP(Q25,[1]EventConfig!$A:$P,16,FALSE) -> 69
A48: 3001 | B48: =_xlfn.TEXTJOIN("-",1,M48:N48) -> 道侣雀灵儿-击败风妖 | C48: =A48 -> 3001 | D48: -1 | E48: -1 | F48: 120 | G48: 1 | H48: 100 | I48: 100 | M48: 道侣雀灵儿 | N48: 击败风妖 | O48: 6003 | P48: =VLOOKUP(O48,[1]EventConfig!$A:$P,16,FALSE) -> 15 | Q48: =VLOOKUP(A48,[1]EventLinkConfig!$Y:$AM,15,FALSE) -> 6003 | R48: =VLOOKUP(Q48,[1]EventConfig!$A:$P,16,FALSE) -> 15
A49: 3002 | B49: =_xlfn.TEXTJOIN("-",1,M49:N49) -> 道侣雀灵儿-击败大风妖兽 | C49: =A49 -> 3002 | D49: -1 | E49: -1 | F49: 120 | G49: 1 | H49: 100 | I49: 100 | M49: 道侣雀灵儿 | N49: 击败大风妖兽 | O49: 6003 | P49: =VLOOKUP(O49,[1]EventConfig!$A:$P,16,FALSE) -> 15 | Q49: =VLOOKUP(A49,[1]EventLinkConfig!$Y:$AM,15,FALSE) -> 6005 | R49: =VLOOKUP(Q49,[1]EventConfig!$A:$P,16,FALSE) -> 25
A50: =A49+1 -> 3003 | B50: =_xlfn.TEXTJOIN("-",1,M50:N50) -> 道侣云枝-击败风妖 | C50: =A50 -> 3003 | D50: -1 | E50: -1 | F50: 120 | G50: 1 | H50: 100 | I50: 100 | M50: 道侣云枝 | N50: 击败风妖 | O50: 6011 | P50: =VLOOKUP(O50,[1]EventConfig!$A:$P,16,FALSE) -> 20 | Q50: 6011 | R50: =VLOOKUP(Q50,[1]EventConfig!$A:$P,16,FALSE) -> 20
A51: 3004 | B51: =_xlfn.TEXTJOIN("-",1,M51:N51) -> 道侣云枝-击败风妖2 | C51: =A51 -> 3004 | D51: -1 | E51: -1 | F51: 120 | G51: 1 | H51: 100 | I51: 100 | M51: 道侣云枝 | N51: 击败风妖2 | O51: 6012 | P51: =VLOOKUP(O51,[1]EventConfig!$A:$P,16,FALSE) -> 30 | Q51: =VLOOKUP(A51,[1]EventLinkConfig!$Y:$AM,15,FALSE) -> 6012 | R51: =VLOOKUP(Q51,[1]EventConfig!$A:$P,16,FALSE) -> 30
A52: 3005 | B52: =_xlfn.TEXTJOIN("-",1,M52:N52) -> 道侣云枝-击败风妖3 | C52: =A52 -> 3005 | D52: -1 | E52: -1 | F52: 120 | G52: 1 | H52: 100 | I52: 100 | M52: 道侣云枝 | N52: 击败风妖3 | O52: 6013 | P52: =VLOOKUP(O52,[1]EventConfig!$A:$P,16,FALSE) -> 40 | Q52: =VLOOKUP(A52,[1]EventLinkConfig!$Y:$AM,15,FALSE) -> 6012 | R52: =VLOOKUP(Q52,[1]EventConfig!$A:$P,16,FALSE) -> 30
A53: 3006 | B53: =_xlfn.TEXTJOIN("-",1,M53:N53) -> 道侣云枝-击败风妖4 | C53: =A53 -> 3006 | D53: -1 | E53: -1 | F53: 120 | G53: 1 | H53: 100 | I53: 100 | M53: 道侣云枝 | N53: 击败风妖4 | O53: 6013 | P53: =VLOOKUP(O53,[1]EventConfig!$A:$P,16,FALSE) -> 40 | Q53: =VLOOKUP(A53,[1]EventLinkConfig!$Y:$AM,15,FALSE) -> 6013 | R53: =VLOOKUP(Q53,[1]EventConfig!$A:$P,16,FALSE) -> 40
A54: 3007 | B54: =_xlfn.TEXTJOIN("-",1,M54:N54) -> 道侣云枝-击败风妖4 | C54: =A54 -> 3007 | D54: -1 | E54: -1 | F54: 120 | G54: 1 | H54: 100 | I54: 100 | M54: 道侣云枝 | N54: 击败风妖4 | O54: 6015 | P54: =VLOOKUP(O54,[1]EventConfig!$A:$P,16,FALSE) -> 60 | Q54: =VLOOKUP(A54,[1]EventLinkConfig!$Y:$AM,15,FALSE) -> 6015 | R54: =VLOOKUP(Q54,[1]EventConfig!$A:$P,16,FALSE) -> 60
A55: 3008 | B55: =_xlfn.TEXTJOIN("-",1,M55:N55) -> 道侣云枝-击败风妖5 | C55: =A55 -> 3008 | D55: -1 | E55: -1 | F55: 120 | G55: 1 | H55: 100 | I55: 100 | M55: 道侣云枝 | N55: 击败风妖5 | O55: 6015 | P55: =VLOOKUP(O55,[1]EventConfig!$A:$P,16,FALSE) -> 60 | Q55: =VLOOKUP(A55,[1]EventLinkConfig!$Y:$AM,15,FALSE) -> 6015 | R55: =VLOOKUP(Q55,[1]EventConfig!$A:$P,16,FALSE) -> 60
A56: 3009 | B56: =_xlfn.TEXTJOIN("-",1,M56:N56) -> 道侣婉溪-击败抢走玉佩的小妖 | C56: =A56 -> 3009 | D56: -1 | E56: -1 | F56: 120 | G56: 1 | H56: 100 | I56: 100 | M56: 道侣婉溪 | N56: 击败抢走玉佩的小妖 | O56: 6034 | P56: =VLOOKUP(O56,[1]EventConfig!$A:$P,16,FALSE) -> 120 | Q56: 6034 | R56: =VLOOKUP(Q56,[1]EventConfig!$A:$P,16,FALSE) -> 120
A57: 3010 | B57: =_xlfn.TEXTJOIN("-",1,M57:N57) -> 道侣婉溪-击败溪边水灵 | C57: =A57 -> 3010 | D57: -1 | E57: -1 | F57: 120 | G57: 1 | H57: 100 | I57: 100 | M57: 道侣婉溪 | N57: 击败溪边水灵 | P57: =VLOOKUP(O57,[1]EventConfig!$A:$P,16,FALSE) ->  | Q57: =VLOOKUP(A57,[1]EventLinkConfig!$Y:$AM,15,FALSE) -> 6035 | R57: =VLOOKUP(Q57,[1]EventConfig!$A:$P,16,FALSE) -> 130
A58: 3011 | B58: =_xlfn.TEXTJOIN("-",1,M58:N58) -> 道侣许由-击败守护灵草的小妖 | C58: =A58 -> 3011 | D58: -1 | E58: -1 | F58: 120 | G58: 1 | H58: 100 | I58: 100 | M58: 道侣许由 | N58: 击败守护灵草的小妖 | P58: =VLOOKUP(O58,[1]EventConfig!$A:$P,16,FALSE) ->  | Q58: 6042 | R58: =VLOOKUP(Q58,[1]EventConfig!$A:$P,16,FALSE) -> 130
A59: 3012 | B59: =_xlfn.TEXTJOIN("-",1,M59:N59) -> 道侣许由-击败秘境灵草守卫 | C59: =A59 -> 3012 | D59: -1 | E59: -1 | F59: 120 | G59: 1 | H59: 100 | I59: 100 | M59: 道侣许由 | N59: 击败秘境灵草守卫 | P59: =VLOOKUP(O59,[1]EventConfig!$A:$P,16,FALSE) ->  | Q59: 6044 | R59: =VLOOKUP(Q59,[1]EventConfig!$A:$P,16,FALSE) -> 150
A60: 3013 | B60: =_xlfn.TEXTJOIN("-",1,M60:N60) -> 道侣疯道人-击败果园守卫 | C60: =A60 -> 3013 | D60: -1 | E60: -1 | F60: 120 | G60: 1 | H60: 100 | I60: 100 | M60: 道侣疯道人 | N60: 击败果园守卫 | P60: =VLOOKUP(O60,[1]EventConfig!$A:$P,16,FALSE) ->  | Q60: 6052 | R60: =VLOOKUP(Q60,[1]EventConfig!$A:$P,16,FALSE) -> 160
A61: 3014 | B61: =_xlfn.TEXTJOIN("-",1,M61:N61) -> 道侣疯道人-帮助疯道人驱妖 | C61: =A61 -> 3014 | D61: -1 | E61: -1 | F61: 120 | G61: 1 | H61: 100 | I61: 100 | M61: 道侣疯道人 | N61: 帮助疯道人驱妖 | P61: =VLOOKUP(O61,[1]EventConfig!$A:$P,16,FALSE) ->  | Q61: =VLOOKUP(A61,[1]EventLinkConfig!$Y:$AM,15,FALSE) -> 6053 | R61: =VLOOKUP(Q61,[1]EventConfig!$A:$P,16,FALSE) -> 170
A62: 3015 | B62: =_xlfn.TEXTJOIN("-",1,M62:N62) -> 道侣疯道人-击败疯道人 | C62: =A62 -> 3015 | D62: -1 | E62: -1 | F62: 120 | G62: 1 | H62: 100 | I62: 100 | M62: 道侣疯道人 | N62: 击败疯道人 | P62: =VLOOKUP(O62,[1]EventConfig!$A:$P,16,FALSE) ->  | Q62: =VLOOKUP(A62,[1]EventLinkConfig!$Y:$AM,15,FALSE) -> 6055 | R62: =VLOOKUP(Q62,[1]EventConfig!$A:$P,16,FALSE) -> 190
A63: 3016 | B63: =_xlfn.TEXTJOIN("-",1,M63:N63) -> 道侣风瑶-击败误食灵石的妖兽 | C63: 3016 | D63: -1 | E63: -1 | F63: 120 | G63: 1 | H63: 100 | I63: 100 | M63: 道侣风瑶 | N63: 击败误食灵石的妖兽 | P63: =VLOOKUP(O63,[1]EventConfig!$A:$P,16,FALSE) ->  | Q63: =VLOOKUP(A63,[1]EventLinkConfig!$Y:$AM,15,FALSE) -> 30017 | R63: =VLOOKUP(Q63,[1]EventConfig!$A:$P,16,FALSE) -> 80
A65: 10001 | B65: =_xlfn.TEXTJOIN("-",1,M65:N65) -> 引导 -开局第一场战斗 | C65: 10001 | D65: -1 | E65: -1 | F65: 120 | G65: 1 | H65: 100 | I65: 100 | M65: 引导 | N65: 开局第一场战斗 | O65: 10004 | P65: 5
A67: 4001 | B67: =_xlfn.TEXTJOIN("-",1,M67:N67) -> 支线-海岸异象-妖物调查 | C67: =A67 -> 4001 | D67: -1 | E67: -1 | F67: 120 | G67: 1 | H67: 100 | I67: 100 | M67: 支线-海岸异象 | N67: 妖物调查 | P67: 30 | Q67: =VLOOKUP(A67,[1]EventLinkConfig!$Y:$AM,15,FALSE) -> 9112 | R67: =VLOOKUP(Q67,[1]EventConfig!$A:$P,16,FALSE) -> 1
A68: 4002 | B68: 支线-幽魂-幽魂石守护兽 | C68: 4002 | D68: -1 | E68: -1 | F68: 120 | G68: 1 | H68: 100 | I68: 100 | M68: 支线-幽魂 | N68: 幽魂石守护兽 | P68: 60 | Q68: =VLOOKUP(A68,[1]EventLinkConfig!$Y:$AM,15,FALSE) -> 9115 | R68: =VLOOKUP(Q68,[1]EventConfig!$A:$P,16,FALSE) -> 1
A69: 4003 | B69: 支线-馨儿-迷雾妖怪 | C69: 4003 | D69: -1 | E69: -1 | F69: 120 | G69: 1 | H69: 100 | I69: 100 | M69: 支线-馨儿 | N69: 迷雾妖怪 | P69: 90 | Q69: =VLOOKUP(A69,[1]EventLinkConfig!$Y:$AM,15,FALSE) -> 9118 | R69: =VLOOKUP(Q69,[1]EventConfig!$A:$P,16,FALSE) -> 5
A70: 4004 | B70: 支线-馨儿-发现信使 | C70: 4004 | D70: -1 | E70: -1 | F70: 120 | G70: 1 | H70: 100 | I70: 100 | M70: 支线-馨儿 | N70: 发现信使 | P70: 110 | Q70: =VLOOKUP(A70,[1]EventLinkConfig!$Y:$AM,15,FALSE) -> 9119 | R70: =VLOOKUP(Q70,[1]EventConfig!$A:$P,16,FALSE) -> 5
A71: 4005 | B71: 支线-馨儿-发现信使 | C71: 4005 | D71: -1 | E71: -1 | F71: 120 | G71: 1 | H71: 100 | I71: 100 | M71: 支线-馨儿 | N71: 发现信使 | P71: 120 | Q71: =VLOOKUP(A71,[1]EventLinkConfig!$Y:$AM,15,FALSE) -> 9119 | R71: =VLOOKUP(Q71,[1]EventConfig!$A:$P,16,FALSE) -> 5
A72: 4006 | B72: 支线-馨儿-风灵鸟的宝藏 | C72: 4006 | D72: -1 | E72: -1 | F72: 120 | G72: 1 | H72: 100 | I72: 100 | M72: 支线-馨儿 | N72: 风灵鸟的宝藏 | P72: 130 | Q72: =VLOOKUP(A72,[1]EventLinkConfig!$Y:$AM,15,FALSE) -> 9120 | R72: =VLOOKUP(Q72,[1]EventConfig!$A:$P,16,FALSE) -> 11
A73: 4007 | B73: 支线-馨儿-浮岛灵泉的净化 | C73: 4007 | D73: -1 | E73: -1 | F73: 120 | G73: 1 | H73: 100 | I73: 100 | M73: 支线-馨儿 | N73: 浮岛灵泉的净化 | P73: 140 | Q73: =VLOOKUP(A73,[1]EventLinkConfig!$Y:$AM,15,FALSE) -> 9121 | R73: =VLOOKUP(Q73,[1]EventConfig!$A:$P,16,FALSE) -> 11
A74: 4008 | B74: 支线-馨儿-浮岛盗修的阴谋 | C74: 4008 | D74: -1 | E74: -1 | F74: 120 | G74: 1 | H74: 100 | I74: 100 | M74: 支线-馨儿 | N74: 浮岛盗修的阴谋 | P74: 150 | Q74: =VLOOKUP(A74,[1]EventLinkConfig!$Y:$AM,15,FALSE) -> 9122 | R74: =VLOOKUP(Q74,[1]EventConfig!$A:$P,16,FALSE) -> 11
A75: 4009 | B75: 支线-柳轻烟-找到血海宗的人 | C75: 4009 | D75: -1 | E75: -1 | F75: 120 | G75: 1 | H75: 100 | I75: 100 | M75: 支线-柳轻烟 | N75: 找到血海宗的人 | P75: 160 | Q75: =VLOOKUP(A75,[1]EventLinkConfig!$Y:$AM,15,FALSE) -> 9124 | R75: =VLOOKUP(Q75,[1]EventConfig!$A:$P,16,FALSE) -> 21
A76: 4010 | B76: =_xlfn.TEXTJOIN("-",1,M76:N76) -> 支线-柳轻烟-找到血海宗的人2 | C76: =A76 -> 4010 | D76: -1 | E76: -1 | F76: 120 | G76: 1 | H76: 100 | I76: 100 | M76: 支线-柳轻烟 | N76: 找到血海宗的人2 | P76: 170 | Q76: =VLOOKUP(A76,[1]EventLinkConfig!$Y:$AM,15,FALSE) -> 9125 | R76: =VLOOKUP(Q76,[1]EventConfig!$A:$P,16,FALSE) -> 21
A77: 4011 | B77: 支线-馨儿-灵花 | C77: 4011 | D77: -1 | E77: -1 | F77: 120 | G77: 1 | H77: 100 | I77: 100 | M77: 支线-馨儿 | N77: 灵花 | P77: 180 | Q77: =VLOOKUP(A77,[1]EventLinkConfig!$Y:$AM,15,FALSE) -> 9127 | R77: =VLOOKUP(Q77,[1]EventConfig!$A:$P,16,FALSE) -> 31
A78: 4012 | B78: 支线-馨儿-散修劫掠 | C78: 4012 | D78: -1 | E78: -1 | F78: 120 | G78: 1 | H78: 100 | I78: 100 | M78: 支线-馨儿 | N78: 散修劫掠 | P78: 190 | Q78: =VLOOKUP(A78,[1]EventLinkConfig!$Y:$AM,15,FALSE) -> 9128 | R78: =VLOOKUP(Q78,[1]EventConfig!$A:$P,16,FALSE) -> 31
A79: 4013 | B79: 支线-馨儿-散修劫掠2 | C79: 4013 | D79: -1 | E79: -1 | F79: 120 | G79: 1 | H79: 100 | I79: 100 | M79: 支线-馨儿 | N79: 散修劫掠2 | P79: 200 | Q79: =VLOOKUP(A79,[1]EventLinkConfig!$Y:$AM,15,FALSE) -> 9129 | R79: =VLOOKUP(Q79,[1]EventConfig!$A:$P,16,FALSE) -> 31
A80: 4014 | B80: 支线-楚云缪-青狼散人 | C80: 4014 | D80: -1 | E80: -1 | F80: 120 | G80: 1 | H80: 100 | I80: 100 | M80: 支线-楚云缪 | N80: 青狼散人 | P80: 210 | Q80: =VLOOKUP(A80,[1]EventLinkConfig!$Y:$AM,15,FALSE) -> 9132 | R80: =VLOOKUP(Q80,[1]EventConfig!$A:$P,16,FALSE) -> 31
A81: 4015 | B81: 支线-血海宗的掠夺-血海宗的掠夺 | C81: 4015 | D81: -1 | E81: -1 | F81: 120 | G81: 1 | H81: 100 | I81: 100 | M81: 支线-血海宗的掠夺 | N81: 血海宗的掠夺 | P81: 220 | Q81: =VLOOKUP(A81,[1]EventLinkConfig!$Y:$AM,15,FALSE) -> 9133 | R81: =VLOOKUP(Q81,[1]EventConfig!$A:$P,16,FALSE) -> 41
A82: 4016 | B82: 支线-林风-逃离追杀 | C82: 4016 | D82: -1 | E82: -1 | F82: 120 | G82: 1 | H82: 100 | I82: 100 | M82: 支线-林风 | N82: 逃离追杀 | P82: 230 | Q82: =VLOOKUP(A82,[1]EventLinkConfig!$Y:$AM,15,FALSE) -> 9134 | R82: =VLOOKUP(Q82,[1]EventConfig!$A:$P,16,FALSE) -> 41
A83: 4017 | B83: 支线-林风-血海宗弟子 | C83: 4017 | D83: -1 | E83: -1 | F83: 120 | G83: 1 | H83: 100 | I83: 100 | M83: 支线-林风 | N83: 血海宗弟子 | P83: 240 | Q83: =VLOOKUP(A83,[1]EventLinkConfig!$Y:$AM,15,FALSE) -> 9135 | R83: =VLOOKUP(Q83,[1]EventConfig!$A:$P,16,FALSE) -> 41
A84: 4018 | B84: 支线-林风-血海宗弟子 | C84: 4018 | D84: -1 | E84: -1 | F84: 120 | G84: 1 | H84: 100 | I84: 100 | M84: 支线-林风 | N84: 血海宗弟子 | P84: 250 | Q84: =VLOOKUP(A84,[1]EventLinkConfig!$Y:$AM,15,FALSE) -> 9135 | R84: =VLOOKUP(Q84,[1]EventConfig!$A:$P,16,FALSE) -> 41
A85: 4019 | B85: 支线-林风-血海宗弟子 | C85: 4019 | D85: -1 | E85: -1 | F85: 120 | G85: 1 | H85: 100 | I85: 100 | M85: 支线-林风 | N85: 血海宗弟子 | P85: 260 | Q85: =VLOOKUP(A85,[1]EventLinkConfig!$Y:$AM,15,FALSE) -> 9135 | R85: =VLOOKUP(Q85,[1]EventConfig!$A:$P,16,FALSE) -> 41
A86: 4020 | B86: 支线-林风后续-夺晶之战 | C86: 4020 | D86: -1 | E86: -1 | F86: 120 | G86: 1 | H86: 100 | I86: 100 | M86: 支线-林风后续 | N86: 夺晶之战 | P86: 270 | Q86: =VLOOKUP(A86,[1]EventLinkConfig!$Y:$AM,15,FALSE) -> 9139 | R86: =VLOOKUP(Q86,[1]EventConfig!$A:$P,16,FALSE) -> 61
A87: 4021 | B87: 支线-林风后续-夺晶之战 | C87: 4021 | D87: -1 | E87: -1 | F87: 120 | G87: 1 | H87: 100 | I87: 100 | M87: 支线-林风后续 | N87: 夺晶之战 | P87: 280 | Q87: =VLOOKUP(A87,[1]EventLinkConfig!$Y:$AM,15,FALSE) -> 9139 | R87: =VLOOKUP(Q87,[1]EventConfig!$A:$P,16,FALSE) -> 61
A88: 4022 | B88: 支线-林风后续-夺晶之战2-援军 | C88: 4022 | D88: -1 | E88: -1 | F88: 120 | G88: 1 | H88: 100 | I88: 100 | M88: 支线-林风后续 | N88: 夺晶之战2-援军 | P88: 290 | Q88: =VLOOKUP(A88,[1]EventLinkConfig!$Y:$AM,15,FALSE) -> 9140 | R88: =VLOOKUP(Q88,[1]EventConfig!$A:$P,16,FALSE) -> 61
A89: 4023 | B89: 支线-林风-消灭妖邪 | C89: 4023 | D89: -1 | E89: -1 | F89: 120 | G89: 1 | H89: 100 | I89: 100 | M89: 支线-林风 | N89: 消灭妖邪 | P89: 300 | Q89: 9142 | R89: =VLOOKUP(Q89,[1]EventConfig!$A:$P,16,FALSE) -> 81
A90: 4024 | B90: 支线-仙山异样-消灭仙山西边的妖物 | C90: 4024 | D90: -1 | E90: -1 | F90: 120 | G90: 1 | H90: 100 | I90: 100 | M90: 支线-仙山异样 | N90: 消灭仙山西边的妖物 | P90: 300 | Q90: 9144 | R90: =VLOOKUP(Q90,[1]EventConfig!$A:$P,16,FALSE) -> 111
A91: 4025 | B91: =_xlfn.TEXTJOIN("-",1,M91:N91) -> 支线-仙山异样-仙山异样的秘密 | C91: =A91 -> 4025 | D91: -1 | E91: -1 | F91: 120 | G91: 1 | H91: 100 | I91: 100 | M91: 支线-仙山异样 | N91: 仙山异样的秘密 | P91: 300 | Q91: =VLOOKUP(A91,[1]EventLinkConfig!$Y:$AM,15,FALSE) -> 9145 | R91: =VLOOKUP(Q91,[1]EventConfig!$A:$P,16,FALSE) -> 131
A93: 5001 | B93: =_xlfn.TEXTJOIN("-",1,M93:N93) -> 通用-法宝掉落-品质1 | C93: =A93 -> 5001 | D93: -1 | E93: -1 | F93: 120 | G93: 1 | H93: 100 | I93: 100 | M93: 通用-法宝掉落 | N93: 品质1 | P93: -1 | Q93: 101
A94: =A93+1 -> 5002 | B94: =_xlfn.TEXTJOIN("-",1,M94:N94) -> 通用-法宝掉落-品质2 | C94: =A94 -> 5002 | D94: -1 | E94: -1 | F94: 120 | G94: 1 | H94: 100 | I94: 100 | M94: 通用-法宝掉落 | N94: 品质2 | P94: -1 | Q94: 110
A95: =A94+1 -> 5003 | B95: 通用-法宝掉落-品质3 | C95: 5003 | D95: -1 | E95: -1 | F95: 120 | G95: 1 | H95: 100 | I95: 100 | M95: 通用-法宝掉落 | N95: 品质3 | P95: -1 | Q95: 119
A96: =A95+1 -> 5004 | B96: =_xlfn.TEXTJOIN("-",1,M96:N96) -> 通用-法宝掉落-品质4 | C96: =A96 -> 5004 | D96: -1 | E96: -1 | F96: 120 | G96: 1 | H96: 100 | I96: 100 | M96: 通用-法宝掉落 | N96: 品质4 | P96: -1 | Q96: 128
A97: =A96+1 -> 5005 | B97: =_xlfn.TEXTJOIN("-",1,M97:N97) -> 通用-法宝掉落-品质5 | C97: =A97 -> 5005 | D97: -1 | E97: -1 | F97: 120 | G97: 1 | H97: 100 | I97: 100 | M97: 通用-法宝掉落 | N97: 品质5 | P97: -1 | Q97: 137
A98: =A97+1 -> 5006 | B98: 通用-功法掉落-品质1 | C98: 5006 | D98: -1 | E98: -1 | F98: 120 | G98: 1 | H98: 100 | I98: 100 | M98: 通用-功法掉落 | N98: 品质1 | P98: -1 | Q98: 102
A99: 5007 | B99: 通用-功法掉落-品质2 | C99: 5007 | D99: -1 | E99: -1 | F99: 120 | G99: 1 | H99: 100 | I99: 100 | M99: 通用-功法掉落 | N99: 品质2 | P99: -1 | Q99: 111
A100: 5008 | B100: 通用-功法掉落-品质3 | C100: 5008 | D100: -1 | E100: -1 | F100: 120 | G100: 1 | H100: 100 | I100: 100 | M100: 通用-功法掉落 | N100: 品质3 | P100: -1 | Q100: 120
A101: 5009 | B101: 通用-功法掉落-品质4 | C101: 5009 | D101: -1 | E101: -1 | F101: 120 | G101: 1 | H101: 100 | I101: 100 | M101: 通用-功法掉落 | N101: 品质4 | P101: -1 | Q101: 129
A102: 5010 | B102: =_xlfn.TEXTJOIN("-",1,M102:N102) -> 通用-功法掉落-品质5 | C102: =A102 -> 5010 | D102: -1 | E102: -1 | F102: 120 | G102: 1 | H102: 100 | I102: 100 | M102: 通用-功法掉落 | N102: 品质5 | P102: -1 | Q102: 138
A104: 2001 | B104: 命运峰-第1层 | C104: =A104 -> 2001 | D104: =VLOOKUP(A104,[2]TowerInfoConfig!$H:$R,10,FALSE) -> 1001;1402 | E104: =VLOOKUP(A104,[2]TowerInfoConfig!$H:$R,11,FALSE) -> 4200;1 | F104: 120 | G104: 1 | H104: 100 | I104: 100
A105: 2002 | B105: 命运峰-第2层 | C105: =A105 -> 2002 | D105: =VLOOKUP(A105,[2]TowerInfoConfig!$H:$R,10,FALSE) -> 1001;1702 | E105: =VLOOKUP(A105,[2]TowerInfoConfig!$H:$R,11,FALSE) -> 4200;1 | F105: 120 | G105: 1 | H105: 100 | I105: 100
A106: 2003 | B106: 命运峰-第3层 | C106: 2003 | D106: =VLOOKUP(A106,[2]TowerInfoConfig!$H:$R,10,FALSE) -> 1001;21012 | E106: =VLOOKUP(A106,[2]TowerInfoConfig!$H:$R,11,FALSE) -> 4200;1 | F106: 120 | G106: 1 | H106: 100 | I106: 100
A107: 2004 | B107: 命运峰-第4层 | C107: =A107 -> 2004 | D107: =VLOOKUP(A107,[2]TowerInfoConfig!$H:$R,10,FALSE) -> 1001;1402 | E107: =VLOOKUP(A107,[2]TowerInfoConfig!$H:$R,11,FALSE) -> 4500;1 | F107: 120 | G107: 1 | H107: 100 | I107: 100
A108: 2005 | B108: 命运峰-第5层 | C108: 2005 | D108: =VLOOKUP(A108,[2]TowerInfoConfig!$H:$R,10,FALSE) -> 1001;1702 | E108: =VLOOKUP(A108,[2]TowerInfoConfig!$H:$R,11,FALSE) -> 4500;1 | F108: 120 | G108: 1 | H108: 100 | I108: 100
A109: 2006 | B109: 命运峰-第6层 | C109: 2006 | D109: =VLOOKUP(A109,[2]TowerInfoConfig!$H:$R,10,FALSE) -> 1001;21012 | E109: =VLOOKUP(A109,[2]TowerInfoConfig!$H:$R,11,FALSE) -> 4500;1 | F109: 120 | G109: 1 | H109: 100 | I109: 100
A110: 2007 | B110: 命运峰-第7层 | C110: 2007 | D110: =VLOOKUP(A110,[2]TowerInfoConfig!$H:$R,10,FALSE) -> 1001;1402 | E110: =VLOOKUP(A110,[2]TowerInfoConfig!$H:$R,11,FALSE) -> 4800;1 | F110: 120 | G110: 1 | H110: 100 | I110: 100
A111: 2008 | B111: 命运峰-第8层 | C111: 2008 | D111: =VLOOKUP(A111,[2]TowerInfoConfig!$H:$R,10,FALSE) -> 1001;1702 | E111: =VLOOKUP(A111,[2]TowerInfoConfig!$H:$R,11,FALSE) -> 4800;1 | F111: 120 | G111: 1 | H111: 100 | I111: 100
A112: 2009 | B112: 命运峰-第9层 | C112: 2009 | D112: =VLOOKUP(A112,[2]TowerInfoConfig!$H:$R,10,FALSE) -> 1001;21012 | E112: =VLOOKUP(A112,[2]TowerInfoConfig!$H:$R,11,FALSE) -> 5100;1 | F112: 120 | G112: 1 | H112: 100 | I112: 100
A113: 2010 | B113: 命运峰-第10层 | C113: 2010 | D113: =VLOOKUP(A113,[2]TowerInfoConfig!$H:$R,10,FALSE) -> 1001;1402 | E113: =VLOOKUP(A113,[2]TowerInfoConfig!$H:$R,11,FALSE) -> 5100;1 | F113: 120 | G113: 1 | H113: 100 | I113: 100
A114: 2011 | B114: 命运峰-第11层 | C114: 2011 | D114: =VLOOKUP(A114,[2]TowerInfoConfig!$H:$R,10,FALSE) -> 1001;1702 | E114: =VLOOKUP(A114,[2]TowerInfoConfig!$H:$R,11,FALSE) -> 5100;1 | F114: 120 | G114: 1 | H114: 100 | I114: 100
A115: 2012 | B115: 命运峰-第12层 | C115: 2012 | D115: =VLOOKUP(A115,[2]TowerInfoConfig!$H:$R,10,FALSE) -> 1001;21012 | E115: =VLOOKUP(A115,[2]TowerInfoConfig!$H:$R,11,FALSE) -> 5400;1 | F115: 120 | G115: 1 | H115: 100 | I115: 100
A116: 2013 | B116: 命运峰-第13层 | C116: 2013 | D116: =VLOOKUP(A116,[2]TowerInfoConfig!$H:$R,10,FALSE) -> 1001;1402 | E116: =VLOOKUP(A116,[2]TowerInfoConfig!$H:$R,11,FALSE) -> 5400;1 | F116: 120 | G116: 1 | H116: 100 | I116: 100
A117: 2014 | B117: 命运峰-第14层 | C117: 2014 | D117: =VLOOKUP(A117,[2]TowerInfoConfig!$H:$R,10,FALSE) -> 1001;1702 | E117: =VLOOKUP(A117,[2]TowerInfoConfig!$H:$R,11,FALSE) -> 5700;1 | F117: 120 | G117: 1 | H117: 100 | I117: 100
A118: 2015 | B118: 命运峰-第15层 | C118: 2015 | D118: =VLOOKUP(A118,[2]TowerInfoConfig!$H:$R,10,FALSE) -> 1001;21012 | E118: =VLOOKUP(A118,[2]TowerInfoConfig!$H:$R,11,FALSE) -> 5700;1 | F118: 120 | G118: 1 | H118: 100 | I118: 100
A119: 2016 | B119: 命运峰-第16层 | C119: 2016 | D119: =VLOOKUP(A119,[2]TowerInfoConfig!$H:$R,10,FALSE) -> 1001;1402 | E119: =VLOOKUP(A119,[2]TowerInfoConfig!$H:$R,11,FALSE) -> 6000;1 | F119: 120 | G119: 1 | H119: 100 | I119: 100
A120: 2017 | B120: 命运峰-第17层 | C120: 2017 | D120: =VLOOKUP(A120,[2]TowerInfoConfig!$H:$R,10,FALSE) -> 1001;1702 | E120: =VLOOKUP(A120,[2]TowerInfoConfig!$H:$R,11,FALSE) -> 6000;1 | F120: 120 | G120: 1 | H120: 100 | I120: 100
A121: 2018 | B121: 命运峰-第18层 | C121: 2018 | D121: =VLOOKUP(A121,[2]TowerInfoConfig!$H:$R,10,FALSE) -> 1001;21012 | E121: =VLOOKUP(A121,[2]TowerInfoConfig!$H:$R,11,FALSE) -> 6300;1 | F121: 120 | G121: 1 | H121: 100 | I121: 100
A122: 2019 | B122: 命运峰-第19层 | C122: 2019 | D122: =VLOOKUP(A122,[2]TowerInfoConfig!$H:$R,10,FALSE) -> 1001;1402 | E122: =VLOOKUP(A122,[2]TowerInfoConfig!$H:$R,11,FALSE) -> 6300;1 | F122: 120 | G122: 1 | H122: 100 | I122: 100
A123: 2020 | B123: 命运峰-第20层 | C123: 2020 | D123: =VLOOKUP(A123,[2]TowerInfoConfig!$H:$R,10,FALSE) -> 1001;1702 | E123: =VLOOKUP(A123,[2]TowerInfoConfig!$H:$R,11,FALSE) -> 6600;1 | F123: 120 | G123: 1 | H123: 100 | I123: 100
A124: 2021 | B124: 命运峰-第21层 | C124: 2021 | D124: =VLOOKUP(A124,[2]TowerInfoConfig!$H:$R,10,FALSE) -> 1001;21012 | E124: =VLOOKUP(A124,[2]TowerInfoConfig!$H:$R,11,FALSE) -> 6600;1 | F124: 120 | G124: 1 | H124: 100 | I124: 100
A125: 2022 | B125: 命运峰-第22层 | C125: 2022 | D125: =VLOOKUP(A125,[2]TowerInfoConfig!$H:$R,10,FALSE) -> 1001;1402 | E125: =VLOOKUP(A125,[2]TowerInfoConfig!$H:$R,11,FALSE) -> 6900;1 | F125: 120 | G125: 1 | H125: 100 | I125: 100
A126: 2023 | B126: 命运峰-第23层 | C126: 2023 | D126: =VLOOKUP(A126,[2]TowerInfoConfig!$H:$R,10,FALSE) -> 1001;1702 | E126: =VLOOKUP(A126,[2]TowerInfoConfig!$H:$R,11,FALSE) -> 6900;1 | F126: 120 | G126: 1 | H126: 100 | I126: 100
A127: 2024 | B127: 命运峰-第24层 | C127: 2024 | D127: =VLOOKUP(A127,[2]TowerInfoConfig!$H:$R,10,FALSE) -> 1001;21012 | E127: =VLOOKUP(A127,[2]TowerInfoConfig!$H:$R,11,FALSE) -> 7200;1 | F127: 120 | G127: 1 | H127: 100 | I127: 100
A128: 2025 | B128: 命运峰-第25层 | C128: 2025 | D128: =VLOOKUP(A128,[2]TowerInfoConfig!$H:$R,10,FALSE) -> 1001;1402 | E128: =VLOOKUP(A128,[2]TowerInfoConfig!$H:$R,11,FALSE) -> 7500;1 | F128: 120 | G128: 1 | H128: 100 | I128: 100
A129: 2026 | B129: 命运峰-第26层 | C129: 2026 | D129: =VLOOKUP(A129,[2]TowerInfoConfig!$H:$R,10,FALSE) -> 1001;1702 | E129: =VLOOKUP(A129,[2]TowerInfoConfig!$H:$R,11,FALSE) -> 7500;1 | F129: 120 | G129: 1 | H129: 100 | I129: 100
A130: 2027 | B130: 命运峰-第27层 | C130: 2027 | D130: =VLOOKUP(A130,[2]TowerInfoConfig!$H:$R,10,FALSE) -> 1001;21012 | E130: =VLOOKUP(A130,[2]TowerInfoConfig!$H:$R,11,FALSE) -> 7800;1 | F130: 120 | G130: 1 | H130: 100 | I130: 100
A131: 2028 | B131: 命运峰-第28层 | C131: 2028 | D131: =VLOOKUP(A131,[2]TowerInfoConfig!$H:$R,10,FALSE) -> 1001;1402 | E131: =VLOOKUP(A131,[2]TowerInfoConfig!$H:$R,11,FALSE) -> 8100;1 | F131: 120 | G131: 1 | H131: 100 | I131: 100
A132: 2029 | B132: 命运峰-第29层 | C132: 2029 | D132: =VLOOKUP(A132,[2]TowerInfoConfig!$H:$R,10,FALSE) -> 1001;1702 | E132: =VLOOKUP(A132,[2]TowerInfoConfig!$H:$R,11,FALSE) -> 8100;1 | F132: 120 | G132: 1 | H132: 100 | I132: 100
A133: 2030 | B133: 命运峰-第30层 | C133: 2030 | D133: =VLOOKUP(A133,[2]TowerInfoConfig!$H:$R,10,FALSE) -> 1001;21012 | E133: =VLOOKUP(A133,[2]TowerInfoConfig!$H:$R,11,FALSE) -> 8400;1 | F133: 120 | G133: 1 | H133: 100 | I133: 100
A134: 2031 | B134: 命运峰-第31层 | C134: 2031 | D134: =VLOOKUP(A134,[2]TowerInfoConfig!$H:$R,10,FALSE) -> 1001;1403 | E134: =VLOOKUP(A134,[2]TowerInfoConfig!$H:$R,11,FALSE) -> 8700;1 | F134: 120 | G134: 1 | H134: 100 | I134: 100
A135: 2032 | B135: 命运峰-第32层 | C135: 2032 | D135: =VLOOKUP(A135,[2]TowerInfoConfig!$H:$R,10,FALSE) -> 1001;1702 | E135: =VLOOKUP(A135,[2]TowerInfoConfig!$H:$R,11,FALSE) -> 9000;1 | F135: 120 | G135: 1 | H135: 100 | I135: 100
A136: 2033 | B136: 命运峰-第33层 | C136: 2033 | D136: =VLOOKUP(A136,[2]TowerInfoConfig!$H:$R,10,FALSE) -> 1001;21012 | E136: =VLOOKUP(A136,[2]TowerInfoConfig!$H:$R,11,FALSE) -> 9000;1 | F136: 120 | G136: 1 | H136: 100 | I136: 100
A137: 2034 | B137: 命运峰-第34层 | C137: 2034 | D137: =VLOOKUP(A137,[2]TowerInfoConfig!$H:$R,10,FALSE) -> 1001;1403 | E137: =VLOOKUP(A137,[2]TowerInfoConfig!$H:$R,11,FALSE) -> 9300;1 | F137: 120 | G137: 1 | H137: 100 | I137: 100
A138: 2035 | B138: 命运峰-第35层 | C138: 2035 | D138: =VLOOKUP(A138,[2]TowerInfoConfig!$H:$R,10,FALSE) -> 1001;1702 | E138: =VLOOKUP(A138,[2]TowerInfoConfig!$H:$R,11,FALSE) -> 9600;1 | F138: 120 | G138: 1 | H138: 100 | I138: 100
A139: 2036 | B139: 命运峰-第36层 | C139: 2036 | D139: =VLOOKUP(A139,[2]TowerInfoConfig!$H:$R,10,FALSE) -> 1001;21012 | E139: =VLOOKUP(A139,[2]TowerInfoConfig!$H:$R,11,FALSE) -> 9900;1 | F139: 120 | G139: 1 | H139: 100 | I139: 100
A140: 2037 | B140: 命运峰-第37层 | C140: 2037 | D140: =VLOOKUP(A140,[2]TowerInfoConfig!$H:$R,10,FALSE) -> 1001;1403 | E140: =VLOOKUP(A140,[2]TowerInfoConfig!$H:$R,11,FALSE) -> 9900;1 | F140: 120 | G140: 1 | H140: 100 | I140: 100
A141: 2038 | B141: 命运峰-第38层 | C141: 2038 | D141: =VLOOKUP(A141,[2]TowerInfoConfig!$H:$R,10,FALSE) -> 1001;1702 | E141: =VLOOKUP(A141,[2]TowerInfoConfig!$H:$R,11,FALSE) -> 10200;1 | F141: 120 | G141: 1 | H141: 100 | I141: 100
A142: 2039 | B142: 命运峰-第39层 | C142: 2039 | D142: =VLOOKUP(A142,[2]TowerInfoConfig!$H:$R,10,FALSE) -> 1001;21012 | E142: =VLOOKUP(A142,[2]TowerInfoConfig!$H:$R,11,FALSE) -> 10500;1 | F142: 120 | G142: 1 | H142: 100 | I142: 100
A143: 2040 | B143: 命运峰-第40层 | C143: 2040 | D143: =VLOOKUP(A143,[2]TowerInfoConfig!$H:$R,10,FALSE) -> 1001;1403 | E143: =VLOOKUP(A143,[2]TowerInfoConfig!$H:$R,11,FALSE) -> 10800;1 | F143: 120 | G143: 1 | H143: 100 | I143: 100
A144: 2041 | B144: 命运峰-第41层 | C144: 2041 | D144: =VLOOKUP(A144,[2]TowerInfoConfig!$H:$R,10,FALSE) -> 1001;1702 | E144: =VLOOKUP(A144,[2]TowerInfoConfig!$H:$R,11,FALSE) -> 11100;1 | F144: 120 | G144: 1 | H144: 100 | I144: 100
A145: 2042 | B145: 命运峰-第42层 | C145: 2042 | D145: =VLOOKUP(A145,[2]TowerInfoConfig!$H:$R,10,FALSE) -> 1001;21012 | E145: =VLOOKUP(A145,[2]TowerInfoConfig!$H:$R,11,FALSE) -> 11400;1 | F145: 120 | G145: 1 | H145: 100 | I145: 100
A146: 2043 | B146: 命运峰-第43层 | C146: 2043 | D146: =VLOOKUP(A146,[2]TowerInfoConfig!$H:$R,10,FALSE) -> 1001;1403 | E146: =VLOOKUP(A146,[2]TowerInfoConfig!$H:$R,11,FALSE) -> 11700;1 | F146: 120 | G146: 1 | H146: 100 | I146: 100
A147: 2044 | B147: 命运峰-第44层 | C147: 2044 | D147: =VLOOKUP(A147,[2]TowerInfoConfig!$H:$R,10,FALSE) -> 1001;1702 | E147: =VLOOKUP(A147,[2]TowerInfoConfig!$H:$R,11,FALSE) -> 12000;1 | F147: 120 | G147: 1 | H147: 100 | I147: 100
A148: 2045 | B148: 命运峰-第45层 | C148: 2045 | D148: =VLOOKUP(A148,[2]TowerInfoConfig!$H:$R,10,FALSE) -> 1001;21012 | E148: =VLOOKUP(A148,[2]TowerInfoConfig!$H:$R,11,FALSE) -> 12300;1 | F148: 120 | G148: 1 | H148: 100 | I148: 100
A149: 2046 | B149: 命运峰-第46层 | C149: 2046 | D149: =VLOOKUP(A149,[2]TowerInfoConfig!$H:$R,10,FALSE) -> 1001;1403 | E149: =VLOOKUP(A149,[2]TowerInfoConfig!$H:$R,11,FALSE) -> 12300;1 | F149: 120 | G149: 1 | H149: 100 | I149: 100
A150: 2047 | B150: 命运峰-第47层 | C150: 2047 | D150: =VLOOKUP(A150,[2]TowerInfoConfig!$H:$R,10,FALSE) -> 1001;1702 | E150: =VLOOKUP(A150,[2]TowerInfoConfig!$H:$R,11,FALSE) -> 12900;1 | F150: 120 | G150: 1 | H150: 100 | I150: 100
A151: 2048 | B151: 命运峰-第48层 | C151: 2048 | D151: =VLOOKUP(A151,[2]TowerInfoConfig!$H:$R,10,FALSE) -> 1001;21012 | E151: =VLOOKUP(A151,[2]TowerInfoConfig!$H:$R,11,FALSE) -> 13200;1 | F151: 120 | G151: 1 | H151: 100 | I151: 100
A152: 2049 | B152: 命运峰-第49层 | C152: 2049 | D152: =VLOOKUP(A152,[2]TowerInfoConfig!$H:$R,10,FALSE) -> 1001;1403 | E152: =VLOOKUP(A152,[2]TowerInfoConfig!$H:$R,11,FALSE) -> 13500;1 | F152: 120 | G152: 1 | H152: 100 | I152: 100
A153: 2050 | B153: 命运峰-第50层 | C153: 2050 | D153: =VLOOKUP(A153,[2]TowerInfoConfig!$H:$R,10,FALSE) -> 1001;1702 | E153: =VLOOKUP(A153,[2]TowerInfoConfig!$H:$R,11,FALSE) -> 13800;1 | F153: 120 | G153: 1 | H153: 100 | I153: 100
A154: 2051 | B154: 命运峰-第51层 | C154: 2051 | D154: =VLOOKUP(A154,[2]TowerInfoConfig!$H:$R,10,FALSE) -> 1001;21012 | E154: =VLOOKUP(A154,[2]TowerInfoConfig!$H:$R,11,FALSE) -> 14100;1 | F154: 120 | G154: 1 | H154: 100 | I154: 100
A155: 2052 | B155: 命运峰-第52层 | C155: 2052 | D155: =VLOOKUP(A155,[2]TowerInfoConfig!$H:$R,10,FALSE) -> 1001;1403 | E155: =VLOOKUP(A155,[2]TowerInfoConfig!$H:$R,11,FALSE) -> 14700;1 | F155: 120 | G155: 1 | H155: 100 | I155: 100
A156: 2053 | B156: 命运峰-第53层 | C156: 2053 | D156: =VLOOKUP(A156,[2]TowerInfoConfig!$H:$R,10,FALSE) -> 1001;1702 | E156: =VLOOKUP(A156,[2]TowerInfoConfig!$H:$R,11,FALSE) -> 15000;1 | F156: 120 | G156: 1 | H156: 100 | I156: 100
A157: 2054 | B157: 命运峰-第54层 | C157: 2054 | D157: =VLOOKUP(A157,[2]TowerInfoConfig!$H:$R,10,FALSE) -> 1001;21012 | E157: =VLOOKUP(A157,[2]TowerInfoConfig!$H:$R,11,FALSE) -> 15300;1 | F157: 120 | G157: 1 | H157: 100 | I157: 100
A158: 2055 | B158: 命运峰-第55层 | C158: 2055 | D158: =VLOOKUP(A158,[2]TowerInfoConfig!$H:$R,10,FALSE) -> 1001;1403 | E158: =VLOOKUP(A158,[2]TowerInfoConfig!$H:$R,11,FALSE) -> 15600;1 | F158: 120 | G158: 1 | H158: 100 | I158: 100
A159: 2056 | B159: 命运峰-第56层 | C159: 2056 | D159: =VLOOKUP(A159,[2]TowerInfoConfig!$H:$R,10,FALSE) -> 1001;1702 | E159: =VLOOKUP(A159,[2]TowerInfoConfig!$H:$R,11,FALSE) -> 16200;1 | F159: 120 | G159: 1 | H159: 100 | I159: 100
A160: 2057 | B160: 命运峰-第57层 | C160: 2057 | D160: =VLOOKUP(A160,[2]TowerInfoConfig!$H:$R,10,FALSE) -> 1001;21012 | E160: =VLOOKUP(A160,[2]TowerInfoConfig!$H:$R,11,FALSE) -> 16500;1 | F160: 120 | G160: 1 | H160: 100 | I160: 100
A161: 2058 | B161: 命运峰-第58层 | C161: 2058 | D161: =VLOOKUP(A161,[2]TowerInfoConfig!$H:$R,10,FALSE) -> 1001;1403 | E161: =VLOOKUP(A161,[2]TowerInfoConfig!$H:$R,11,FALSE) -> 16800;1 | F161: 120 | G161: 1 | H161: 100 | I161: 100
A162: 2059 | B162: 命运峰-第59层 | C162: 2059 | D162: =VLOOKUP(A162,[2]TowerInfoConfig!$H:$R,10,FALSE) -> 1001;1702 | E162: =VLOOKUP(A162,[2]TowerInfoConfig!$H:$R,11,FALSE) -> 17400;1 | F162: 120 | G162: 1 | H162: 100 | I162: 100
A163: 2060 | B163: 命运峰-第60层 | C163: 2060 | D163: =VLOOKUP(A163,[2]TowerInfoConfig!$H:$R,10,FALSE) -> 1001;21012 | E163: =VLOOKUP(A163,[2]TowerInfoConfig!$H:$R,11,FALSE) -> 18000;1 | F163: 120 | G163: 1 | H163: 100 | I163: 100
A164: 2061 | B164: 命运峰-第61层 | C164: 2061 | D164: =VLOOKUP(A164,[2]TowerInfoConfig!$H:$R,10,FALSE) -> 1001;1404 | E164: =VLOOKUP(A164,[2]TowerInfoConfig!$H:$R,11,FALSE) -> 18300;1 | F164: 120 | G164: 1 | H164: 100 | I164: 100
A165: 2062 | B165: 命运峰-第62层 | C165: 2062 | D165: =VLOOKUP(A165,[2]TowerInfoConfig!$H:$R,10,FALSE) -> 1001;1702 | E165: =VLOOKUP(A165,[2]TowerInfoConfig!$H:$R,11,FALSE) -> 18600;1 | F165: 120 | G165: 1 | H165: 100 | I165: 100
A166: 2063 | B166: 命运峰-第63层 | C166: 2063 | D166: =VLOOKUP(A166,[2]TowerInfoConfig!$H:$R,10,FALSE) -> 1001;21012 | E166: =VLOOKUP(A166,[2]TowerInfoConfig!$H:$R,11,FALSE) -> 19200;1 | F166: 120 | G166: 1 | H166: 100 | I166: 100
A167: 2064 | B167: 命运峰-第64层 | C167: 2064 | D167: =VLOOKUP(A167,[2]TowerInfoConfig!$H:$R,10,FALSE) -> 1001;1404 | E167: =VLOOKUP(A167,[2]TowerInfoConfig!$H:$R,11,FALSE) -> 19800;1 | F167: 120 | G167: 1 | H167: 100 | I167: 100
A168: 2065 | B168: 命运峰-第65层 | C168: 2065 | D168: =VLOOKUP(A168,[2]TowerInfoConfig!$H:$R,10,FALSE) -> 1001;1702 | E168: =VLOOKUP(A168,[2]TowerInfoConfig!$H:$R,11,FALSE) -> 20100;1 | F168: 120 | G168: 1 | H168: 100 | I168: 100
A169: 2066 | B169: 命运峰-第66层 | C169: 2066 | D169: =VLOOKUP(A169,[2]TowerInfoConfig!$H:$R,10,FALSE) -> 1001;21012 | E169: =VLOOKUP(A169,[2]TowerInfoConfig!$H:$R,11,FALSE) -> 20400;1 | F169: 120 | G169: 1 | H169: 100 | I169: 100
A170: 2067 | B170: 命运峰-第67层 | C170: 2067 | D170: =VLOOKUP(A170,[2]TowerInfoConfig!$H:$R,10,FALSE) -> 1001;1404 | E170: =VLOOKUP(A170,[2]TowerInfoConfig!$H:$R,11,FALSE) -> 21300;1 | F170: 120 | G170: 1 | H170: 100 | I170: 100
A171: 2068 | B171: 命运峰-第68层 | C171: =A171 -> 2068 | D171: =VLOOKUP(A171,[2]TowerInfoConfig!$H:$R,10,FALSE) -> 1001;1702 | E171: =VLOOKUP(A171,[2]TowerInfoConfig!$H:$R,11,FALSE) -> 21900;1 | F171: 120 | G171: 1 | H171: 100 | I171: 100
A172: 2069 | B172: 命运峰-第69层 | C172: 2069 | D172: =VLOOKUP(A172,[2]TowerInfoConfig!$H:$R,10,FALSE) -> 1001;21012 | E172: =VLOOKUP(A172,[2]TowerInfoConfig!$H:$R,11,FALSE) -> 22200;1 | F172: 120 | G172: 1 | H172: 100 | I172: 100
A173: 2070 | B173: 命运峰-第70层 | C173: 2070 | D173: =VLOOKUP(A173,[2]TowerInfoConfig!$H:$R,10,FALSE) -> 1001;1404 | E173: =VLOOKUP(A173,[2]TowerInfoConfig!$H:$R,11,FALSE) -> 22800;1 | F173: 120 | G173: 1 | H173: 100 | I173: 100
A174: 2071 | B174: 命运峰-第71层 | C174: 2071 | D174: =VLOOKUP(A174,[2]TowerInfoConfig!$H:$R,10,FALSE) -> 1001;1702 | E174: =VLOOKUP(A174,[2]TowerInfoConfig!$H:$R,11,FALSE) -> 23400;1 | F174: 120 | G174: 1 | H174: 100 | I174: 100
A175: 2072 | B175: 命运峰-第72层 | C175: 2072 | D175: =VLOOKUP(A175,[2]TowerInfoConfig!$H:$R,10,FALSE) -> 1001;21012 | E175: =VLOOKUP(A175,[2]TowerInfoConfig!$H:$R,11,FALSE) -> 24000;1 | F175: 120 | G175: 1 | H175: 100 | I175: 100
A176: 2073 | B176: 命运峰-第73层 | C176: 2073 | D176: =VLOOKUP(A176,[2]TowerInfoConfig!$H:$R,10,FALSE) -> 1001;1404 | E176: =VLOOKUP(A176,[2]TowerInfoConfig!$H:$R,11,FALSE) -> 24600;1 | F176: 120 | G176: 1 | H176: 100 | I176: 100
A177: 2074 | B177: 命运峰-第74层 | C177: 2074 | D177: =VLOOKUP(A177,[2]TowerInfoConfig!$H:$R,10,FALSE) -> 1001;1702 | E177: =VLOOKUP(A177,[2]TowerInfoConfig!$H:$R,11,FALSE) -> 25200;1 | F177: 120 | G177: 1 | H177: 100 | I177: 100
A178: 2075 | B178: 命运峰-第75层 | C178: 2075 | D178: =VLOOKUP(A178,[2]TowerInfoConfig!$H:$R,10,FALSE) -> 1001;21012 | E178: =VLOOKUP(A178,[2]TowerInfoConfig!$H:$R,11,FALSE) -> 25800;1 | F178: 120 | G178: 1 | H178: 100 | I178: 100
A179: 2076 | B179: 命运峰-第76层 | C179: 2076 | D179: =VLOOKUP(A179,[2]TowerInfoConfig!$H:$R,10,FALSE) -> 1001;1404 | E179: =VLOOKUP(A179,[2]TowerInfoConfig!$H:$R,11,FALSE) -> 26700;1 | F179: 120 | G179: 1 | H179: 100 | I179: 100
A180: 2077 | B180: 命运峰-第77层 | C180: 2077 | D180: =VLOOKUP(A180,[2]TowerInfoConfig!$H:$R,10,FALSE) -> 1001;1702 | E180: =VLOOKUP(A180,[2]TowerInfoConfig!$H:$R,11,FALSE) -> 27300;1 | F180: 120 | G180: 1 | H180: 100 | I180: 100
A181: 2078 | B181: 命运峰-第78层 | C181: 2078 | D181: =VLOOKUP(A181,[2]TowerInfoConfig!$H:$R,10,FALSE) -> 1001;21012 | E181: =VLOOKUP(A181,[2]TowerInfoConfig!$H:$R,11,FALSE) -> 27600;1 | F181: 120 | G181: 1 | H181: 100 | I181: 100
A182: 2079 | B182: 命运峰-第79层 | C182: 2079 | D182: =VLOOKUP(A182,[2]TowerInfoConfig!$H:$R,10,FALSE) -> 1001;1404 | E182: =VLOOKUP(A182,[2]TowerInfoConfig!$H:$R,11,FALSE) -> 28500;1 | F182: 120 | G182: 1 | H182: 100 | I182: 100
A183: 2080 | B183: 命运峰-第80层 | C183: 2080 | D183: =VLOOKUP(A183,[2]TowerInfoConfig!$H:$R,10,FALSE) -> 1001;1702 | E183: =VLOOKUP(A183,[2]TowerInfoConfig!$H:$R,11,FALSE) -> 29400;1 | F183: 120 | G183: 1 | H183: 100 | I183: 100
A184: 2081 | B184: 命运峰-第81层 | C184: 2081 | D184: =VLOOKUP(A184,[2]TowerInfoConfig!$H:$R,10,FALSE) -> 1001;21012 | E184: =VLOOKUP(A184,[2]TowerInfoConfig!$H:$R,11,FALSE) -> 30000;1 | F184: 120 | G184: 1 | H184: 100 | I184: 100
A185: 2082 | B185: 命运峰-第82层 | C185: 2082 | D185: =VLOOKUP(A185,[2]TowerInfoConfig!$H:$R,10,FALSE) -> 1001;1404 | E185: =VLOOKUP(A185,[2]TowerInfoConfig!$H:$R,11,FALSE) -> 30600;1 | F185: 120 | G185: 1 | H185: 100 | I185: 100
A186: 2083 | B186: 命运峰-第83层 | C186: 2083 | D186: =VLOOKUP(A186,[2]TowerInfoConfig!$H:$R,10,FALSE) -> 1001;1702 | E186: =VLOOKUP(A186,[2]TowerInfoConfig!$H:$R,11,FALSE) -> 31500;1 | F186: 120 | G186: 1 | H186: 100 | I186: 100
A187: 2084 | B187: 命运峰-第84层 | C187: 2084 | D187: =VLOOKUP(A187,[2]TowerInfoConfig!$H:$R,10,FALSE) -> 1001;21012 | E187: =VLOOKUP(A187,[2]TowerInfoConfig!$H:$R,11,FALSE) -> 32700;1 | F187: 120 | G187: 1 | H187: 100 | I187: 100
A188: 2085 | B188: 命运峰-第85层 | C188: 2085 | D188: =VLOOKUP(A188,[2]TowerInfoConfig!$H:$R,10,FALSE) -> 1001;1404 | E188: =VLOOKUP(A188,[2]TowerInfoConfig!$H:$R,11,FALSE) -> 33300;1 | F188: 120 | G188: 1 | H188: 100 | I188: 100
A189: 2086 | B189: 命运峰-第86层 | C189: =A189 -> 2086 | D189: =VLOOKUP(A189,[2]TowerInfoConfig!$H:$R,10,FALSE) -> 1001;1702 | E189: =VLOOKUP(A189,[2]TowerInfoConfig!$H:$R,11,FALSE) -> 33900;1 | F189: 120 | G189: 1 | H189: 100 | I189: 100
A190: 2087 | B190: 命运峰-第87层 | C190: 2087 | D190: =VLOOKUP(A190,[2]TowerInfoConfig!$H:$R,10,FALSE) -> 1001;21012 | E190: =VLOOKUP(A190,[2]TowerInfoConfig!$H:$R,11,FALSE) -> 34800;1 | F190: 120 | G190: 1 | H190: 100 | I190: 100
A191: 2088 | B191: 命运峰-第88层 | C191: 2088 | D191: =VLOOKUP(A191,[2]TowerInfoConfig!$H:$R,10,FALSE) -> 1001;1404 | E191: =VLOOKUP(A191,[2]TowerInfoConfig!$H:$R,11,FALSE) -> 36000;1 | F191: 120 | G191: 1 | H191: 100 | I191: 100
A192: 2089 | B192: 命运峰-第89层 | C192: 2089 | D192: =VLOOKUP(A192,[2]TowerInfoConfig!$H:$R,10,FALSE) -> 1001;1702 | E192: =VLOOKUP(A192,[2]TowerInfoConfig!$H:$R,11,FALSE) -> 36600;1 | F192: 120 | G192: 1 | H192: 100 | I192: 100
A193: 2090 | B193: 命运峰-第90层 | C193: 2090 | D193: =VLOOKUP(A193,[2]TowerInfoConfig!$H:$R,10,FALSE) -> 1001;21012 | E193: =VLOOKUP(A193,[2]TowerInfoConfig!$H:$R,11,FALSE) -> 37500;1 | F193: 120 | G193: 1 | H193: 100 | I193: 100
A194: 2091 | B194: 命运峰-第91层 | C194: 2091 | D194: =VLOOKUP(A194,[2]TowerInfoConfig!$H:$R,10,FALSE) -> 1001;1404 | E194: =VLOOKUP(A194,[2]TowerInfoConfig!$H:$R,11,FALSE) -> 38700;1 | F194: 120 | G194: 1 | H194: 100 | I194: 100
A195: 2092 | B195: 命运峰-第92层 | C195: 2092 | D195: =VLOOKUP(A195,[2]TowerInfoConfig!$H:$R,10,FALSE) -> 1001;1702 | E195: =VLOOKUP(A195,[2]TowerInfoConfig!$H:$R,11,FALSE) -> 40200;1 | F195: 120 | G195: 1 | H195: 100 | I195: 100
A196: 2093 | B196: 命运峰-第93层 | C196: 2093 | D196: =VLOOKUP(A196,[2]TowerInfoConfig!$H:$R,10,FALSE) -> 1001;21012 | E196: =VLOOKUP(A196,[2]TowerInfoConfig!$H:$R,11,FALSE) -> 42300;1 | F196: 120 | G196: 1 | H196: 100 | I196: 100
A197: 2094 | B197: 命运峰-第94层 | C197: 2094 | D197: =VLOOKUP(A197,[2]TowerInfoConfig!$H:$R,10,FALSE) -> 1001;1404 | E197: =VLOOKUP(A197,[2]TowerInfoConfig!$H:$R,11,FALSE) -> 44400;1 | F197: 120 | G197: 1 | H197: 100 | I197: 100
A198: 2095 | B198: 命运峰-第95层 | C198: 2095 | D198: =VLOOKUP(A198,[2]TowerInfoConfig!$H:$R,10,FALSE) -> 1001;1702 | E198: =VLOOKUP(A198,[2]TowerInfoConfig!$H:$R,11,FALSE) -> 46800;1 | F198: 120 | G198: 1 | H198: 100 | I198: 100
A199: 2096 | B199: 命运峰-第96层 | C199: 2096 | D199: =VLOOKUP(A199,[2]TowerInfoConfig!$H:$R,10,FALSE) -> 1001;21012 | E199: =VLOOKUP(A199,[2]TowerInfoConfig!$H:$R,11,FALSE) -> 49200;1 | F199: 120 | G199: 1 | H199: 100 | I199: 100
A200: 2097 | B200: 命运峰-第97层 | C200: 2097 | D200: =VLOOKUP(A200,[2]TowerInfoConfig!$H:$R,10,FALSE) -> 1001;1404 | E200: =VLOOKUP(A200,[2]TowerInfoConfig!$H:$R,11,FALSE) -> 51600;1 | F200: 120 | G200: 1 | H200: 100 | I200: 100
A201: 2098 | B201: 命运峰-第98层 | C201: 2098 | D201: =VLOOKUP(A201,[2]TowerInfoConfig!$H:$R,10,FALSE) -> 1001;1702 | E201: =VLOOKUP(A201,[2]TowerInfoConfig!$H:$R,11,FALSE) -> 54300;1 | F201: 120 | G201: 1 | H201: 100 | I201: 100
A202: 2099 | B202: 命运峰-第99层 | C202: 2099 | D202: =VLOOKUP(A202,[2]TowerInfoConfig!$H:$R,10,FALSE) -> 1001;21012 | E202: =VLOOKUP(A202,[2]TowerInfoConfig!$H:$R,11,FALSE) -> 57000;1 | F202: 120 | G202: 1 | H202: 100 | I202: 100
A203: 2100 | B203: 命运峰-第100层 | C203: 2100 | D203: =VLOOKUP(A203,[2]TowerInfoConfig!$H:$R,10,FALSE) -> 1001;1404 | E203: =VLOOKUP(A203,[2]TowerInfoConfig!$H:$R,11,FALSE) -> 60000;1 | F203: 120 | G203: 1 | H203: 100 | I203: 100

Sheet GroupConfig
A1: ID | C1: GroupMonsterLevel | D1: GroupMonster | E1: hpQiangDu | F1: attQiangDu | G1: duipingQiangDu | H1: levelAdd
A2: int | C2: int[] | D2: int[] | E2: int[] | F2: int[] | G2: int[] | H2: int[]
A4: 组ID | B4: 常用阵容ID | C4: 具体怪物等级 -1代表跟随玩家等级 -1后面可填动态修正等级 | D4: 每组具体怪 | E4: 每个怪的比例强度 一个都不填就是默认强度 | F4: 攻击强度 | G4: 对拼强度 | H4: 等级额外添加值 | I4: 怪物1 | J4: 怪物2 | K4: 怪物3 | L4: 怪物1生存强度 | M4: 怪物2生存强度 | N4: 怪物3生存强度 | O4: 怪物1攻击强度 | P4: 怪物2攻击强度 | Q4: 怪物3攻击强度 | R4: 怪物1对拼强度 | S4: 怪物2对拼强度 | T4: 怪物3对拼强度 | U4: 怪物1等级降低 | V4: 怪物2等级降低 | W4: 怪物3等级降低 | X4: 怪物1 | Y4: 怪物2 | Z4: 怪物3
A5: 100001 | B5: 100001 | C5: -1 | D5: =_xlfn.TEXTJOIN(";",1,I5:K5) -> 1002 | E5: =_xlfn.TEXTJOIN(";",1,L5:N5) ->  | F5: =_xlfn.TEXTJOIN(";",1,O5:Q5) ->  | G5: =_xlfn.TEXTJOIN(";",1,R5:T5) ->  | H5: =_xlfn.TEXTJOIN(";",1,U5:W5) ->  | I5: 1002 | X5: =IF(I5="","",VLOOKUP(I5,[3]HeroModelConfig!$A:$D,4,FALSE)) -> 蒙面男子 | Y5: =IF(J5="","",VLOOKUP(J5,[3]HeroModelConfig!$A:$D,4,FALSE)) ->  | Z5: =IF(K5="","",VLOOKUP(K5,[3]HeroModelConfig!$A:$D,4,FALSE)) -> 
A6: 100002 | B6: 100002 | C6: -1 | D6: =_xlfn.TEXTJOIN(";",1,I6:K6) -> 1006 | E6: =_xlfn.TEXTJOIN(";",1,L6:N6) ->  | F6: =_xlfn.TEXTJOIN(";",1,O6:Q6) ->  | G6: =_xlfn.TEXTJOIN(";",1,R6:T6) ->  | H6: =_xlfn.TEXTJOIN(";",1,U6:W6) ->  | I6: 1006 | X6: =IF(I6="","",VLOOKUP(I6,[3]HeroModelConfig!$A:$D,4,FALSE)) -> 飞鹤 | Y6: =IF(J6="","",VLOOKUP(J6,[3]HeroModelConfig!$A:$D,4,FALSE)) ->  | Z6: =IF(K6="","",VLOOKUP(K6,[3]HeroModelConfig!$A:$D,4,FALSE)) -> 
A7: 100003 | B7: 100003 | C7: -1 | D7: 1003 | I7: 1003 | X7: =IF(I7="","",VLOOKUP(I7,[3]HeroModelConfig!$A:$D,4,FALSE)) -> 蒙面女子 | Y7: =IF(J7="","",VLOOKUP(J7,[3]HeroModelConfig!$A:$D,4,FALSE)) ->  | Z7: =IF(K7="","",VLOOKUP(K7,[3]HeroModelConfig!$A:$D,4,FALSE)) -> 
A8: 100004 | B8: 100004 | C8: -1 | D8: 7002 | I8: 7002 | X8: =IF(I8="","",VLOOKUP(I8,[3]HeroModelConfig!$A:$D,4,FALSE)) -> 突破-心魔 | Y8: =IF(J8="","",VLOOKUP(J8,[3]HeroModelConfig!$A:$D,4,FALSE)) ->  | Z8: =IF(K8="","",VLOOKUP(K8,[3]HeroModelConfig!$A:$D,4,FALSE)) -> 
A9: 100005 | B9: 100005 | C9: -1 | D9: 1005 | I9: 1005 | X9: =IF(I9="","",VLOOKUP(I9,[3]HeroModelConfig!$A:$D,4,FALSE)) -> 树精 | Y9: =IF(J9="","",VLOOKUP(J9,[3]HeroModelConfig!$A:$D,4,FALSE)) ->  | Z9: =IF(K9="","",VLOOKUP(K9,[3]HeroModelConfig!$A:$D,4,FALSE)) -> 
A10: 100006 | B10: 100006 | C10: -1 | D10: 1002 | I10: 1002 | X10: =IF(I10="","",VLOOKUP(I10,[3]HeroModelConfig!$A:$D,4,FALSE)) -> 蒙面男子 | Y10: =IF(J10="","",VLOOKUP(J10,[3]HeroModelConfig!$A:$D,4,FALSE)) ->  | Z10: =IF(K10="","",VLOOKUP(K10,[3]HeroModelConfig!$A:$D,4,FALSE)) -> 
A11: 100007 | B11: 100007 | C11: -1 | D11: 1003;1002 | E11: 90;30 | F11: 77;26 | G11: 75;25 | H11: 0;0 | I11: 1003 | J11: 1002 | L11: 90 | M11: 30 | O11: 77 | P11: 26 | R11: 75 | S11: 25 | U11: 0 | V11: 0 | X11: =IF(I11="","",VLOOKUP(I11,[3]HeroModelConfig!$A:$D,4,FALSE)) -> 蒙面女子 | Y11: =IF(J11="","",VLOOKUP(J11,[3]HeroModelConfig!$A:$D,4,FALSE)) -> 蒙面男子 | Z11: =IF(K11="","",VLOOKUP(K11,[3]HeroModelConfig!$A:$D,4,FALSE)) -> 
A12: 100008 | B12: 100008 | C12: -1 | D12: 1004;1006 | E12: 90;30 | F12: 77;26 | G12: 75;25 | H12: 0;0 | I12: 1004 | J12: 1006 | L12: 90 | M12: 30 | O12: 77 | P12: 26 | R12: 75 | S12: 25 | U12: 0 | V12: 0 | X12: =IF(I12="","",VLOOKUP(I12,[3]HeroModelConfig!$A:$D,4,FALSE)) -> 蒙面女子 | Y12: =IF(J12="","",VLOOKUP(J12,[3]HeroModelConfig!$A:$D,4,FALSE)) -> 飞鹤 | Z12: =IF(K12="","",VLOOKUP(K12,[3]HeroModelConfig!$A:$D,4,FALSE)) -> 
A13: 100009 | B13: 100009 | C13: -1 | D13: 1005 | I13: 1005 | X13: =IF(I13="","",VLOOKUP(I13,[3]HeroModelConfig!$A:$D,4,FALSE)) -> 树精 | Y13: =IF(J13="","",VLOOKUP(J13,[3]HeroModelConfig!$A:$D,4,FALSE)) ->  | Z13: =IF(K13="","",VLOOKUP(K13,[3]HeroModelConfig!$A:$D,4,FALSE)) -> 
X14: =IF(I14="","",VLOOKUP(I14,[3]HeroModelConfig!$A:$D,4,FALSE)) ->  | Y14: =IF(J14="","",VLOOKUP(J14,[3]HeroModelConfig!$A:$D,4,FALSE)) ->  | Z14: =IF(K14="","",VLOOKUP(K14,[3]HeroModelConfig!$A:$D,4,FALSE)) -> 
A15: 1002 | B15: =LevelbattleConfig!B11 -> 主线-击败结界兽 | C15: =VLOOKUP(A15,LevelbattleConfig!A:R,18,FALSE) -> 6 | D15: 7001 | I15: 7001 | X15: =IF(I15="","",VLOOKUP(I15,[3]HeroModelConfig!$A:$D,4,FALSE)) -> 凤凰 | Y15: =IF(J15="","",VLOOKUP(J15,[3]HeroModelConfig!$A:$D,4,FALSE)) ->  | Z15: =IF(K15="","",VLOOKUP(K15,[3]HeroModelConfig!$A:$D,4,FALSE)) -> 
A16: =A15+1 -> 1003 | B16: =LevelbattleConfig!B12 -> 主线-击败痴道人 | C16: =VLOOKUP(A16,LevelbattleConfig!A:R,18,FALSE) -> 16 | D16: 7004 | I16: 7004 | X16: =IF(I16="","",VLOOKUP(I16,[3]HeroModelConfig!$A:$D,4,FALSE)) -> 痴道人 | Y16: =IF(J16="","",VLOOKUP(J16,[3]HeroModelConfig!$A:$D,4,FALSE)) ->  | Z16: =IF(K16="","",VLOOKUP(K16,[3]HeroModelConfig!$A:$D,4,FALSE)) -> 
A17: =A16+1 -> 1004 | B17: =LevelbattleConfig!B13 -> 主线-妖兽横行 | C17: =VLOOKUP(A17,LevelbattleConfig!A:R,18,FALSE) -> 25 | D17: 1008 | I17: 1008 | X17: =IF(I17="","",VLOOKUP(I17,[3]HeroModelConfig!$A:$D,4,FALSE)) -> 蜘蛛 | Y17: =IF(J17="","",VLOOKUP(J17,[3]HeroModelConfig!$A:$D,4,FALSE)) ->  | Z17: =IF(K17="","",VLOOKUP(K17,[3]HeroModelConfig!$A:$D,4,FALSE)) -> 
A18: 1005 | B18: =LevelbattleConfig!B14 -> 主线-击败后山小妖 | C18: =VLOOKUP(A18,LevelbattleConfig!A:R,18,FALSE) -> 46 | D18: 1008 | I18: 1008 | X18: =IF(I18="","",VLOOKUP(I18,[3]HeroModelConfig!$A:$D,4,FALSE)) -> 蜘蛛 | Y18: =IF(J18="","",VLOOKUP(J18,[3]HeroModelConfig!$A:$D,4,FALSE)) ->  | Z18: =IF(K18="","",VLOOKUP(K18,[3]HeroModelConfig!$A:$D,4,FALSE)) -> 
A19: 1006 | B19: =LevelbattleConfig!B15 -> 主线-击败夜袭的妖兽 | C19: =VLOOKUP(A19,LevelbattleConfig!A:R,18,FALSE) -> 51 | D19: 5006 | I19: 5006 | X19: =IF(I19="","",VLOOKUP(I19,[3]HeroModelConfig!$A:$D,4,FALSE)) -> 鼠先锋 | Y19: =IF(J19="","",VLOOKUP(J19,[3]HeroModelConfig!$A:$D,4,FALSE)) ->  | Z19: =IF(K19="","",VLOOKUP(K19,[3]HeroModelConfig!$A:$D,4,FALSE)) -> 
A20: 1007 | B20: =LevelbattleConfig!B16 -> 主线-击败峰顶的妖王 | C20: =VLOOKUP(A20,LevelbattleConfig!A:R,18,FALSE) -> 56 | D20: 5007 | I20: 5007 | X20: =IF(I20="","",VLOOKUP(I20,[3]HeroModelConfig!$A:$D,4,FALSE)) -> 穷奇 | Y20: =IF(J20="","",VLOOKUP(J20,[3]HeroModelConfig!$A:$D,4,FALSE)) ->  | Z20: =IF(K20="","",VLOOKUP(K20,[3]HeroModelConfig!$A:$D,4,FALSE)) -> 
A21: 1008 | B21: =LevelbattleConfig!B17 -> 主线-击败仙山的阵眼妖兽 | C21: =VLOOKUP(A21,LevelbattleConfig!A:R,18,FALSE) -> 86 | D21: 9001 | I21: 9001 | X21: =IF(I21="","",VLOOKUP(I21,[3]HeroModelConfig!$A:$D,4,FALSE)) -> boss | Y21: =IF(J21="","",VLOOKUP(J21,[3]HeroModelConfig!$A:$D,4,FALSE)) ->  | Z21: =IF(K21="","",VLOOKUP(K21,[3]HeroModelConfig!$A:$D,4,FALSE)) -> 
A22: 1009 | B22: =LevelbattleConfig!B18 -> 主线-击杀灵兽获得天肥 | C22: =VLOOKUP(A22,LevelbattleConfig!A:R,18,FALSE) -> 101 | D22: 9002 | I22: 9002 | X22: =IF(I22="","",VLOOKUP(I22,[3]HeroModelConfig!$A:$D,4,FALSE)) -> 凤凰 | Y22: =IF(J22="","",VLOOKUP(J22,[3]HeroModelConfig!$A:$D,4,FALSE)) ->  | Z22: =IF(K22="","",VLOOKUP(K22,[3]HeroModelConfig!$A:$D,4,FALSE)) -> 
A23: 1010 | B23: =LevelbattleConfig!B19 -> 主线-击败小麻雀的幻影 | C23: =VLOOKUP(A23,LevelbattleConfig!A:R,18,FALSE) -> 121 | D23: 9002 | I23: 9002 | X23: =IF(I23="","",VLOOKUP(I23,[3]HeroModelConfig!$A:$D,4,FALSE)) -> 凤凰 | Y23: =IF(J23="","",VLOOKUP(J23,[3]HeroModelConfig!$A:$D,4,FALSE)) ->  | Z23: =IF(K23="","",VLOOKUP(K23,[3]HeroModelConfig!$A:$D,4,FALSE)) -> 
A24: =A23+1 -> 1011 | B24: =LevelbattleConfig!B20 -> 主线-击败痴道人的幻影 | C24: =VLOOKUP(A24,LevelbattleConfig!A:R,18,FALSE) -> 121 | D24: 9001 | I24: 9001 | X24: =IF(I24="","",VLOOKUP(I24,[3]HeroModelConfig!$A:$D,4,FALSE)) -> boss | Y24: =IF(J24="","",VLOOKUP(J24,[3]HeroModelConfig!$A:$D,4,FALSE)) ->  | Z24: =IF(K24="","",VLOOKUP(K24,[3]HeroModelConfig!$A:$D,4,FALSE)) -> 
A25: 1012 | B25: =LevelbattleConfig!B21 -> 主线-樗木之灵的幻影 | C25: =VLOOKUP(A25,LevelbattleConfig!A:R,18,FALSE) -> 121 | D25: 9004 | I25: 9004 | X25: =IF(I25="","",VLOOKUP(I25,[3]HeroModelConfig!$A:$D,4,FALSE)) -> 樗木之灵 | Y25: =IF(J25="","",VLOOKUP(J25,[3]HeroModelConfig!$A:$D,4,FALSE)) ->  | Z25: =IF(K25="","",VLOOKUP(K25,[3]HeroModelConfig!$A:$D,4,FALSE)) -> 
A26: 1013 | B26: =LevelbattleConfig!B22 -> 主线-击败心魔 | C26: =VLOOKUP(A26,LevelbattleConfig!A:R,18,FALSE) -> 141 | D26: 5007 | I26: 5007 | X26: =IF(I26="","",VLOOKUP(I26,[3]HeroModelConfig!$A:$D,4,FALSE)) -> 穷奇 | Y26: =IF(J26="","",VLOOKUP(J26,[3]HeroModelConfig!$A:$D,4,FALSE)) ->  | Z26: =IF(K26="","",VLOOKUP(K26,[3]HeroModelConfig!$A:$D,4,FALSE)) -> 
A27: 1014 | B27: =LevelbattleConfig!B23 -> 主线-击败北海妖兽2 | C27: =VLOOKUP(A27,LevelbattleConfig!A:R,18,FALSE)&";"&VLOOKUP(A27,LevelbattleConfig!A:R,18,FALSE) -> 151;151 | D27: 1008;1006 | E27: 80;40 | F27: 72;36 | G27: 67;33 | H27: 0;0 | I27: 1008 | J27: 1006 | L27: 80 | M27: 40 | O27: 72 | P27: 36 | R27: 67 | S27: 33 | U27: 0 | V27: 0 | X27: =IF(I27="","",VLOOKUP(I27,[3]HeroModelConfig!$A:$D,4,FALSE)) -> 蜘蛛 | Y27: =IF(J27="","",VLOOKUP(J27,[3]HeroModelConfig!$A:$D,4,FALSE)) -> 飞鹤 | Z27: =IF(K27="","",VLOOKUP(K27,[3]HeroModelConfig!$A:$D,4,FALSE)) -> 
A28: 1015 | B28: =LevelbattleConfig!B24 -> 主线-击败北海妖兽1 | C28: =VLOOKUP(A28,LevelbattleConfig!A:R,18,FALSE)&";"&VLOOKUP(A28,LevelbattleConfig!A:R,18,FALSE) -> 25;25 | D28: =_xlfn.TEXTJOIN(";",1,I28:K28) -> 1008;1006 | E28: =_xlfn.TEXTJOIN(";",1,L28:N28) -> 80;40 | F28: =_xlfn.TEXTJOIN(";",1,O28:Q28) -> 72;36 | G28: =_xlfn.TEXTJOIN(";",1,R28:T28) -> 67;33 | H28: =_xlfn.TEXTJOIN(";",1,U28:W28) -> 0;0 | I28: 1008 | J28: 1006 | L28: 80 | M28: 40 | O28: 72 | P28: 36 | R28: 67 | S28: 33 | U28: 0 | V28: 0 | X28: =IF(I28="","",VLOOKUP(I28,[3]HeroModelConfig!$A:$D,4,FALSE)) -> 蜘蛛 | Y28: =IF(J28="","",VLOOKUP(J28,[3]HeroModelConfig!$A:$D,4,FALSE)) -> 飞鹤 | Z28: =IF(K28="","",VLOOKUP(K28,[3]HeroModelConfig!$A:$D,4,FALSE)) -> 
A29: 1016 | B29: =LevelbattleConfig!B25 -> 主线-与樗木之灵切磋 | C29: =VLOOKUP(A29,LevelbattleConfig!A:R,18,FALSE) -> 69 | D29: =_xlfn.TEXTJOIN(";",1,I29:K29) -> 9004 | E29: =_xlfn.TEXTJOIN(";",1,L29:N29) ->  | F29: =_xlfn.TEXTJOIN(";",1,O29:Q29) ->  | G29: =_xlfn.TEXTJOIN(";",1,R29:T29) ->  | H29: =_xlfn.TEXTJOIN(";",1,U29:W29) ->  | I29: 9004 | X29: =IF(I29="","",VLOOKUP(I29,[3]HeroModelConfig!$A:$D,4,FALSE)) -> 樗木之灵 | Y29: =IF(J29="","",VLOOKUP(J29,[3]HeroModelConfig!$A:$D,4,FALSE)) ->  | Z29: =IF(K29="","",VLOOKUP(K29,[3]HeroModelConfig!$A:$D,4,FALSE)) -> 
X30: =IF(I30="","",VLOOKUP(I30,[3]HeroModelConfig!$A:$D,4,FALSE)) ->  | Y30: =IF(J30="","",VLOOKUP(J30,[3]HeroModelConfig!$A:$D,4,FALSE)) ->  | Z30: =IF(K30="","",VLOOKUP(K30,[3]HeroModelConfig!$A:$D,4,FALSE)) -> 
X31: =IF(I31="","",VLOOKUP(I31,[3]HeroModelConfig!$A:$D,4,FALSE)) ->  | Y31: =IF(J31="","",VLOOKUP(J31,[3]HeroModelConfig!$A:$D,4,FALSE)) ->  | Z31: =IF(K31="","",VLOOKUP(K31,[3]HeroModelConfig!$A:$D,4,FALSE)) -> 
X32: =IF(I32="","",VLOOKUP(I32,[3]HeroModelConfig!$A:$D,4,FALSE)) ->  | Y32: =IF(J32="","",VLOOKUP(J32,[3]HeroModelConfig!$A:$D,4,FALSE)) ->  | Z32: =IF(K32="","",VLOOKUP(K32,[3]HeroModelConfig!$A:$D,4,FALSE)) -> 
X33: =IF(I33="","",VLOOKUP(I33,[3]HeroModelConfig!$A:$D,4,FALSE)) ->  | Y33: =IF(J33="","",VLOOKUP(J33,[3]HeroModelConfig!$A:$D,4,FALSE)) ->  | Z33: =IF(K33="","",VLOOKUP(K33,[3]HeroModelConfig!$A:$D,4,FALSE)) -> 
X34: =IF(I34="","",VLOOKUP(I34,[3]HeroModelConfig!$A:$D,4,FALSE)) ->  | Y34: =IF(J34="","",VLOOKUP(J34,[3]HeroModelConfig!$A:$D,4,FALSE)) ->  | Z34: =IF(K34="","",VLOOKUP(K34,[3]HeroModelConfig!$A:$D,4,FALSE)) -> 
X35: =IF(I35="","",VLOOKUP(I35,[3]HeroModelConfig!$A:$D,4,FALSE)) ->  | Y35: =IF(J35="","",VLOOKUP(J35,[3]HeroModelConfig!$A:$D,4,FALSE)) ->  | Z35: =IF(K35="","",VLOOKUP(K35,[3]HeroModelConfig!$A:$D,4,FALSE)) -> 
X36: =IF(I36="","",VLOOKUP(I36,[3]HeroModelConfig!$A:$D,4,FALSE)) ->  | Y36: =IF(J36="","",VLOOKUP(J36,[3]HeroModelConfig!$A:$D,4,FALSE)) ->  | Z36: =IF(K36="","",VLOOKUP(K36,[3]HeroModelConfig!$A:$D,4,FALSE)) -> 
X37: =IF(I37="","",VLOOKUP(I37,[3]HeroModelConfig!$A:$D,4,FALSE)) ->  | Y37: =IF(J37="","",VLOOKUP(J37,[3]HeroModelConfig!$A:$D,4,FALSE)) ->  | Z37: =IF(K37="","",VLOOKUP(K37,[3]HeroModelConfig!$A:$D,4,FALSE)) -> 
X38: =IF(I38="","",VLOOKUP(I38,[3]HeroModelConfig!$A:$D,4,FALSE)) ->  | Y38: =IF(J38="","",VLOOKUP(J38,[3]HeroModelConfig!$A:$D,4,FALSE)) ->  | Z38: =IF(K38="","",VLOOKUP(K38,[3]HeroModelConfig!$A:$D,4,FALSE)) -> 
X39: =IF(I39="","",VLOOKUP(I39,[3]HeroModelConfig!$A:$D,4,FALSE)) ->  | Y39: =IF(J39="","",VLOOKUP(J39,[3]HeroModelConfig!$A:$D,4,FALSE)) ->  | Z39: =IF(K39="","",VLOOKUP(K39,[3]HeroModelConfig!$A:$D,4,FALSE)) -> 
X40: =IF(I40="","",VLOOKUP(I40,[3]HeroModelConfig!$A:$D,4,FALSE)) ->  | Y40: =IF(J40="","",VLOOKUP(J40,[3]HeroModelConfig!$A:$D,4,FALSE)) ->  | Z40: =IF(K40="","",VLOOKUP(K40,[3]HeroModelConfig!$A:$D,4,FALSE)) -> 
X41: =IF(I41="","",VLOOKUP(I41,[3]HeroModelConfig!$A:$D,4,FALSE)) ->  | Y41: =IF(J41="","",VLOOKUP(J41,[3]HeroModelConfig!$A:$D,4,FALSE)) ->  | Z41: =IF(K41="","",VLOOKUP(K41,[3]HeroModelConfig!$A:$D,4,FALSE)) -> 
X42: =IF(I42="","",VLOOKUP(I42,[3]HeroModelConfig!$A:$D,4,FALSE)) ->  | Y42: =IF(J42="","",VLOOKUP(J42,[3]HeroModelConfig!$A:$D,4,FALSE)) ->  | Z42: =IF(K42="","",VLOOKUP(K42,[3]HeroModelConfig!$A:$D,4,FALSE)) -> 
X43: =IF(I43="","",VLOOKUP(I43,[3]HeroModelConfig!$A:$D,4,FALSE)) ->  | Y43: =IF(J43="","",VLOOKUP(J43,[3]HeroModelConfig!$A:$D,4,FALSE)) ->  | Z43: =IF(K43="","",VLOOKUP(K43,[3]HeroModelConfig!$A:$D,4,FALSE)) -> 
X44: =IF(I44="","",VLOOKUP(I44,[3]HeroModelConfig!$A:$D,4,FALSE)) ->  | Y44: =IF(J44="","",VLOOKUP(J44,[3]HeroModelConfig!$A:$D,4,FALSE)) ->  | Z44: =IF(K44="","",VLOOKUP(K44,[3]HeroModelConfig!$A:$D,4,FALSE)) -> 
X45: =IF(I45="","",VLOOKUP(I45,[3]HeroModelConfig!$A:$D,4,FALSE)) ->  | Y45: =IF(J45="","",VLOOKUP(J45,[3]HeroModelConfig!$A:$D,4,FALSE)) ->  | Z45: =IF(K45="","",VLOOKUP(K45,[3]HeroModelConfig!$A:$D,4,FALSE)) -> 
X46: =IF(I46="","",VLOOKUP(I46,[3]HeroModelConfig!$A:$D,4,FALSE)) ->  | Y46: =IF(J46="","",VLOOKUP(J46,[3]HeroModelConfig!$A:$D,4,FALSE)) ->  | Z46: =IF(K46="","",VLOOKUP(K46,[3]HeroModelConfig!$A:$D,4,FALSE)) -> 
X47: =IF(I47="","",VLOOKUP(I47,[3]HeroModelConfig!$A:$D,4,FALSE)) ->  | Y47: =IF(J47="","",VLOOKUP(J47,[3]HeroModelConfig!$A:$D,4,FALSE)) ->  | Z47: =IF(K47="","",VLOOKUP(K47,[3]HeroModelConfig!$A:$D,4,FALSE)) -> 
X48: =IF(I48="","",VLOOKUP(I48,[3]HeroModelConfig!$A:$D,4,FALSE)) ->  | Y48: =IF(J48="","",VLOOKUP(J48,[3]HeroModelConfig!$A:$D,4,FALSE)) ->  | Z48: =IF(K48="","",VLOOKUP(K48,[3]HeroModelConfig!$A:$D,4,FALSE)) -> 
X49: =IF(I49="","",VLOOKUP(I49,[3]HeroModelConfig!$A:$D,4,FALSE)) ->  | Y49: =IF(J49="","",VLOOKUP(J49,[3]HeroModelConfig!$A:$D,4,FALSE)) ->  | Z49: =IF(K49="","",VLOOKUP(K49,[3]HeroModelConfig!$A:$D,4,FALSE)) -> 
X50: =IF(I50="","",VLOOKUP(I50,[3]HeroModelConfig!$A:$D,4,FALSE)) ->  | Y50: =IF(J50="","",VLOOKUP(J50,[3]HeroModelConfig!$A:$D,4,FALSE)) ->  | Z50: =IF(K50="","",VLOOKUP(K50,[3]HeroModelConfig!$A:$D,4,FALSE)) -> 
X51: =IF(I51="","",VLOOKUP(I51,[3]HeroModelConfig!$A:$D,4,FALSE)) ->  | Y51: =IF(J51="","",VLOOKUP(J51,[3]HeroModelConfig!$A:$D,4,FALSE)) ->  | Z51: =IF(K51="","",VLOOKUP(K51,[3]HeroModelConfig!$A:$D,4,FALSE)) -> 
A52: 3001 | B52: =LevelbattleConfig!B48 -> 道侣雀灵儿-击败风妖 | C52: =VLOOKUP(A52,LevelbattleConfig!A:R,18,FALSE) -> 15 | D52: =_xlfn.TEXTJOIN(";",1,I52:K52) -> 1005 | E52: =_xlfn.TEXTJOIN(";",1,L52:N52) ->  | F52: =_xlfn.TEXTJOIN(";",1,O52:Q52) ->  | G52: =_xlfn.TEXTJOIN(";",1,R52:T52) ->  | H52: =_xlfn.TEXTJOIN(";",1,U52:W52) ->  | I52: 1005 | X52: =IF(I52="","",VLOOKUP(I52,[3]HeroModelConfig!$A:$D,4,FALSE)) -> 树精 | Y52: =IF(J52="","",VLOOKUP(J52,[3]HeroModelConfig!$A:$D,4,FALSE)) ->  | Z52: =IF(K52="","",VLOOKUP(K52,[3]HeroModelConfig!$A:$D,4,FALSE)) -> 
A53: 3002 | B53: =LevelbattleConfig!B49 -> 道侣雀灵儿-击败大风妖兽 | C53: =VLOOKUP(A53,LevelbattleConfig!A:R,18,FALSE) -> 25 | D53: =_xlfn.TEXTJOIN(";",1,I53:K53) -> 9006 | E53: =_xlfn.TEXTJOIN(";",1,L53:N53) ->  | F53: =_xlfn.TEXTJOIN(";",1,O53:Q53) ->  | G53: =_xlfn.TEXTJOIN(";",1,R53:T53) ->  | H53: =_xlfn.TEXTJOIN(";",1,U53:W53) ->  | I53: 9006 | X53: =IF(I53="","",VLOOKUP(I53,[3]HeroModelConfig!$A:$D,4,FALSE)) -> 仙山飞鸟 | Y53: =IF(J53="","",VLOOKUP(J53,[3]HeroModelConfig!$A:$D,4,FALSE)) ->  | Z53: =IF(K53="","",VLOOKUP(K53,[3]HeroModelConfig!$A:$D,4,FALSE)) -> 
A54: =A53+1 -> 3003 | B54: =LevelbattleConfig!B50 -> 道侣云枝-击败风妖 | C54: =VLOOKUP(A54,LevelbattleConfig!A:R,18,FALSE) -> 20 | D54: =_xlfn.TEXTJOIN(";",1,I54:K54) -> 1005 | E54: =_xlfn.TEXTJOIN(";",1,L54:N54) ->  | F54: =_xlfn.TEXTJOIN(";",1,O54:Q54) ->  | G54: =_xlfn.TEXTJOIN(";",1,R54:T54) ->  | H54: =_xlfn.TEXTJOIN(";",1,U54:W54) ->  | I54: 1005 | X54: =IF(I54="","",VLOOKUP(I54,[3]HeroModelConfig!$A:$D,4,FALSE)) -> 树精 | Y54: =IF(J54="","",VLOOKUP(J54,[3]HeroModelConfig!$A:$D,4,FALSE)) ->  | Z54: =IF(K54="","",VLOOKUP(K54,[3]HeroModelConfig!$A:$D,4,FALSE)) -> 
A55: 3004 | B55: =LevelbattleConfig!B51 -> 道侣云枝-击败风妖2 | C55: =VLOOKUP(A55,LevelbattleConfig!A:R,18,FALSE) -> 30 | D55: =_xlfn.TEXTJOIN(";",1,I55:K55) -> 1005 | E55: =_xlfn.TEXTJOIN(";",1,L55:N55) ->  | F55: =_xlfn.TEXTJOIN(";",1,O55:Q55) ->  | G55: =_xlfn.TEXTJOIN(";",1,R55:T55) ->  | H55: =_xlfn.TEXTJOIN(";",1,U55:W55) ->  | I55: 1005 | X55: =IF(I55="","",VLOOKUP(I55,[3]HeroModelConfig!$A:$D,4,FALSE)) -> 树精 | Y55: =IF(J55="","",VLOOKUP(J55,[3]HeroModelConfig!$A:$D,4,FALSE)) ->  | Z55: =IF(K55="","",VLOOKUP(K55,[3]HeroModelConfig!$A:$D,4,FALSE)) -> 
A56: 3005 | B56: =LevelbattleConfig!B52 -> 道侣云枝-击败风妖3 | C56: =VLOOKUP(A56,LevelbattleConfig!A:R,18,FALSE) -> 30 | D56: 5003 | I56: 5003 | X56: =IF(I56="","",VLOOKUP(I56,[3]HeroModelConfig!$A:$D,4,FALSE)) -> 木修精英 | Y56: =IF(J56="","",VLOOKUP(J56,[3]HeroModelConfig!$A:$D,4,FALSE)) ->  | Z56: =IF(K56="","",VLOOKUP(K56,[3]HeroModelConfig!$A:$D,4,FALSE)) -> 
A57: 3006 | B57: =LevelbattleConfig!B53 -> 道侣云枝-击败风妖4 | C57: =VLOOKUP(A57,LevelbattleConfig!A:R,18,FALSE) -> 40 | D57: =_xlfn.TEXTJOIN(";",1,I57:K57) -> 5003 | E57: =_xlfn.TEXTJOIN(";",1,L57:N57) ->  | F57: =_xlfn.TEXTJOIN(";",1,O57:Q57) ->  | G57: =_xlfn.TEXTJOIN(";",1,R57:T57) ->  | H57: =_xlfn.TEXTJOIN(";",1,U57:W57) ->  | I57: 5003 | X57: =IF(I57="","",VLOOKUP(I57,[3]HeroModelConfig!$A:$D,4,FALSE)) -> 木修精英 | Y57: =IF(J57="","",VLOOKUP(J57,[3]HeroModelConfig!$A:$D,4,FALSE)) ->  | Z57: =IF(K57="","",VLOOKUP(K57,[3]HeroModelConfig!$A:$D,4,FALSE)) -> 
A58: 3007 | B58: =LevelbattleConfig!B54 -> 道侣云枝-击败风妖4 | C58: =VLOOKUP(A58,LevelbattleConfig!A:R,18,FALSE) -> 60 | D58: =_xlfn.TEXTJOIN(";",1,I58:K58) -> 5003 | E58: =_xlfn.TEXTJOIN(";",1,L58:N58) ->  | F58: =_xlfn.TEXTJOIN(";",1,O58:Q58) ->  | G58: =_xlfn.TEXTJOIN(";",1,R58:T58) ->  | H58: =_xlfn.TEXTJOIN(";",1,U58:W58) ->  | I58: 5003 | X58: =IF(I58="","",VLOOKUP(I58,[3]HeroModelConfig!$A:$D,4,FALSE)) -> 木修精英 | Y58: =IF(J58="","",VLOOKUP(J58,[3]HeroModelConfig!$A:$D,4,FALSE)) ->  | Z58: =IF(K58="","",VLOOKUP(K58,[3]HeroModelConfig!$A:$D,4,FALSE)) -> 
A59: 3008 | B59: =LevelbattleConfig!B55 -> 道侣云枝-击败风妖5 | C59: =VLOOKUP(A59,LevelbattleConfig!A:R,18,FALSE) -> 60 | D59: =_xlfn.TEXTJOIN(";",1,I59:K59) -> 9002 | E59: =_xlfn.TEXTJOIN(";",1,L59:N59) ->  | F59: =_xlfn.TEXTJOIN(";",1,O59:Q59) ->  | G59: =_xlfn.TEXTJOIN(";",1,R59:T59) ->  | H59: =_xlfn.TEXTJOIN(";",1,U59:W59) ->  | I59: 9002 | X59: =IF(I59="","",VLOOKUP(I59,[3]HeroModelConfig!$A:$D,4,FALSE)) -> 凤凰 | Y59: =IF(J59="","",VLOOKUP(J59,[3]HeroModelConfig!$A:$D,4,FALSE)) ->  | Z59: =IF(K59="","",VLOOKUP(K59,[3]HeroModelConfig!$A:$D,4,FALSE)) -> 
A60: 3009 | B60: =LevelbattleConfig!B56 -> 道侣婉溪-击败抢走玉佩的小妖 | C60: =VLOOKUP(A60,LevelbattleConfig!A:R,18,FALSE) -> 120 | D60: =_xlfn.TEXTJOIN(";",1,I60:K60) -> 5003 | E60: =_xlfn.TEXTJOIN(";",1,L60:N60) ->  | F60: =_xlfn.TEXTJOIN(";",1,O60:Q60) ->  | G60: =_xlfn.TEXTJOIN(";",1,R60:T60) ->  | H60: =_xlfn.TEXTJOIN(";",1,U60:W60) ->  | I60: 5003 | X60: =IF(I60="","",VLOOKUP(I60,[3]HeroModelConfig!$A:$D,4,FALSE)) -> 木修精英 | Y60: =IF(J60="","",VLOOKUP(J60,[3]HeroModelConfig!$A:$D,4,FALSE)) ->  | Z60: =IF(K60="","",VLOOKUP(K60,[3]HeroModelConfig!$A:$D,4,FALSE)) -> 
A61: 3010 | B61: =LevelbattleConfig!B57 -> 道侣婉溪-击败溪边水灵 | C61: =VLOOKUP(A61,LevelbattleConfig!A:R,18,FALSE) -> 130 | D61: =_xlfn.TEXTJOIN(";",1,I61:K61) -> 5002 | E61: =_xlfn.TEXTJOIN(";",1,L61:N61) ->  | F61: =_xlfn.TEXTJOIN(";",1,O61:Q61) ->  | G61: =_xlfn.TEXTJOIN(";",1,R61:T61) ->  | H61: =_xlfn.TEXTJOIN(";",1,U61:W61) ->  | I61: 5002 | X61: =IF(I61="","",VLOOKUP(I61,[3]HeroModelConfig!$A:$D,4,FALSE)) -> 水修精英 | Y61: =IF(J61="","",VLOOKUP(J61,[3]HeroModelConfig!$A:$D,4,FALSE)) ->  | Z61: =IF(K61="","",VLOOKUP(K61,[3]HeroModelConfig!$A:$D,4,FALSE)) -> 
A62: 3011 | B62: =LevelbattleConfig!B58 -> 道侣许由-击败守护灵草的小妖 | C62: =VLOOKUP(A62,LevelbattleConfig!A:R,18,FALSE) -> 130 | D62: =_xlfn.TEXTJOIN(";",1,I62:K62) -> 1006 | E62: =_xlfn.TEXTJOIN(";",1,L62:N62) ->  | F62: =_xlfn.TEXTJOIN(";",1,O62:Q62) ->  | G62: =_xlfn.TEXTJOIN(";",1,R62:T62) ->  | H62: =_xlfn.TEXTJOIN(";",1,U62:W62) ->  | I62: 1006 | X62: =IF(I62="","",VLOOKUP(I62,[3]HeroModelConfig!$A:$D,4,FALSE)) -> 飞鹤 | Y62: =IF(J62="","",VLOOKUP(J62,[3]HeroModelConfig!$A:$D,4,FALSE)) ->  | Z62: =IF(K62="","",VLOOKUP(K62,[3]HeroModelConfig!$A:$D,4,FALSE)) -> 
A63: 3012 | B63: =LevelbattleConfig!B59 -> 道侣许由-击败秘境灵草守卫 | C63: =VLOOKUP(A63,LevelbattleConfig!A:R,18,FALSE) -> 150 | D63: 5005 | I63: 5005 | X63: =IF(I63="","",VLOOKUP(I63,[3]HeroModelConfig!$A:$D,4,FALSE)) -> 土系怪 | Y63: =IF(J63="","",VLOOKUP(J63,[3]HeroModelConfig!$A:$D,4,FALSE)) ->  | Z63: =IF(K63="","",VLOOKUP(K63,[3]HeroModelConfig!$A:$D,4,FALSE)) -> 
A64: 3013 | B64: =LevelbattleConfig!B60 -> 道侣疯道人-击败果园守卫 | C64: =VLOOKUP(A64,LevelbattleConfig!A:R,18,FALSE) -> 160 | D64: =_xlfn.TEXTJOIN(";",1,I64:K64) -> 5001 | E64: =_xlfn.TEXTJOIN(";",1,L64:N64) ->  | F64: =_xlfn.TEXTJOIN(";",1,O64:Q64) ->  | G64: =_xlfn.TEXTJOIN(";",1,R64:T64) ->  | H64: =_xlfn.TEXTJOIN(";",1,U64:W64) ->  | I64: 5001 | X64: =IF(I64="","",VLOOKUP(I64,[3]HeroModelConfig!$A:$D,4,FALSE)) -> 金修精英 | Y64: =IF(J64="","",VLOOKUP(J64,[3]HeroModelConfig!$A:$D,4,FALSE)) ->  | Z64: =IF(K64="","",VLOOKUP(K64,[3]HeroModelConfig!$A:$D,4,FALSE)) -> 
A65: 3014 | B65: =LevelbattleConfig!B61 -> 道侣疯道人-帮助疯道人驱妖 | C65: =VLOOKUP(A65,LevelbattleConfig!A:R,18,FALSE) -> 170 | D65: =_xlfn.TEXTJOIN(";",1,I65:K65) -> 5004 | E65: =_xlfn.TEXTJOIN(";",1,L65:N65) ->  | F65: =_xlfn.TEXTJOIN(";",1,O65:Q65) ->  | G65: =_xlfn.TEXTJOIN(";",1,R65:T65) ->  | H65: =_xlfn.TEXTJOIN(";",1,U65:W65) ->  | I65: 5004 | X65: =IF(I65="","",VLOOKUP(I65,[3]HeroModelConfig!$A:$D,4,FALSE)) -> 火修精英 | Y65: =IF(J65="","",VLOOKUP(J65,[3]HeroModelConfig!$A:$D,4,FALSE)) ->  | Z65: =IF(K65="","",VLOOKUP(K65,[3]HeroModelConfig!$A:$D,4,FALSE)) -> 
A66: =A65+1 -> 3015 | B66: =LevelbattleConfig!B62 -> 道侣疯道人-击败疯道人 | C66: =VLOOKUP(A66,LevelbattleConfig!A:R,18,FALSE) -> 190 | D66: =_xlfn.TEXTJOIN(";",1,I66:K66) -> 9001 | E66: =_xlfn.TEXTJOIN(";",1,L66:N66) ->  | F66: =_xlfn.TEXTJOIN(";",1,O66:Q66) ->  | G66: =_xlfn.TEXTJOIN(";",1,R66:T66) ->  | H66: =_xlfn.TEXTJOIN(";",1,U66:W66) ->  | I66: 9001 | X66: =IF(I66="","",VLOOKUP(I66,[3]HeroModelConfig!$A:$D,4,FALSE)) -> boss | Y66: =IF(J66="","",VLOOKUP(J66,[3]HeroModelConfig!$A:$D,4,FALSE)) ->  | Z66: =IF(K66="","",VLOOKUP(K66,[3]HeroModelConfig!$A:$D,4,FALSE)) -> 
A67: =A66+1 -> 3016 | B67: =LevelbattleConfig!B63 -> 道侣风瑶-击败误食灵石的妖兽 | C67: =VLOOKUP(A67,LevelbattleConfig!A:R,18,FALSE) -> 80 | D67: 9001 | I67: 9001 | X67: =IF(I67="","",VLOOKUP(I67,[3]HeroModelConfig!$A:$D,4,FALSE)) -> boss | Y67: =IF(J67="","",VLOOKUP(J67,[3]HeroModelConfig!$A:$D,4,FALSE)) ->  | Z67: =IF(K67="","",VLOOKUP(K67,[3]HeroModelConfig!$A:$D,4,FALSE)) -> 
X68: =IF(I68="","",VLOOKUP(I68,[3]HeroModelConfig!$A:$D,4,FALSE)) ->  | Y68: =IF(J68="","",VLOOKUP(J68,[3]HeroModelConfig!$A:$D,4,FALSE)) ->  | Z68: =IF(K68="","",VLOOKUP(K68,[3]HeroModelConfig!$A:$D,4,FALSE)) -> 
A69: 10001 | B69: =LevelbattleConfig!B65 -> 引导 -开局第一场战斗 | C69: 210 | D69: =_xlfn.TEXTJOIN(";",1,I69:K69) -> 7003 | E69: =_xlfn.TEXTJOIN(";",1,L69:N69) ->  | F69: =_xlfn.TEXTJOIN(";",1,O69:Q69) ->  | G69: =_xlfn.TEXTJOIN(";",1,R69:T69) ->  | H69: =_xlfn.TEXTJOIN(";",1,U69:W69) ->  | I69: 7003 | X69: =IF(I69="","",VLOOKUP(I69,[3]HeroModelConfig!$A:$D,4,FALSE)) -> 开场战斗-心魔 | Y69: =IF(J69="","",VLOOKUP(J69,[3]HeroModelConfig!$A:$D,4,FALSE)) ->  | Z69: =IF(K69="","",VLOOKUP(K69,[3]HeroModelConfig!$A:$D,4,FALSE)) -> 
D70: =_xlfn.TEXTJOIN(";",1,I70:K70) ->  | X70: =IF(I70="","",VLOOKUP(I70,[3]HeroModelConfig!$A:$D,4,FALSE)) ->  | Y70: =IF(J70="","",VLOOKUP(J70,[3]HeroModelConfig!$A:$D,4,FALSE)) ->  | Z70: =IF(K70="","",VLOOKUP(K70,[3]HeroModelConfig!$A:$D,4,FALSE)) -> 
A71: 4001 | B71: =VLOOKUP(A71,LevelbattleConfig!A:B,2,FALSE) -> 支线-海岸异象-妖物调查 | C71: =VLOOKUP(A71,LevelbattleConfig!A:R,18,FALSE) -> 1 | D71: =_xlfn.TEXTJOIN(";",1,I71:K71) -> 5002 | E71: =_xlfn.TEXTJOIN(";",1,L71:N71) ->  | F71: =_xlfn.TEXTJOIN(";",1,O71:Q71) ->  | G71: =_xlfn.TEXTJOIN(";",1,R71:T71) ->  | H71: =_xlfn.TEXTJOIN(";",1,U71:W71) ->  | I71: 5002 | X71: =IF(I71="","",VLOOKUP(I71,[3]HeroModelConfig!$A:$D,4,FALSE)) -> 水修精英 | Y71: =IF(J71="","",VLOOKUP(J71,[3]HeroModelConfig!$A:$D,4,FALSE)) ->  | Z71: =IF(K71="","",VLOOKUP(K71,[3]HeroModelConfig!$A:$D,4,FALSE)) -> 
A72: 4002 | B72: =VLOOKUP(A72,LevelbattleConfig!A:B,2,FALSE) -> 支线-幽魂-幽魂石守护兽 | C72: =VLOOKUP(A72,LevelbattleConfig!A:R,18,FALSE) -> 1 | D72: =_xlfn.TEXTJOIN(";",1,I72:K72) -> 5007 | E72: =_xlfn.TEXTJOIN(";",1,L72:N72) ->  | F72: =_xlfn.TEXTJOIN(";",1,O72:Q72) ->  | G72: =_xlfn.TEXTJOIN(";",1,R72:T72) ->  | H72: =_xlfn.TEXTJOIN(";",1,U72:W72) ->  | I72: 5007 | X72: =IF(I72="","",VLOOKUP(I72,[3]HeroModelConfig!$A:$D,4,FALSE)) -> 穷奇 | Y72: =IF(J72="","",VLOOKUP(J72,[3]HeroModelConfig!$A:$D,4,FALSE)) ->  | Z72: =IF(K72="","",VLOOKUP(K72,[3]HeroModelConfig!$A:$D,4,FALSE)) -> 
A73: 4003 | B73: =VLOOKUP(A73,LevelbattleConfig!A:B,2,FALSE) -> 支线-馨儿-迷雾妖怪 | C73: =VLOOKUP(A73,LevelbattleConfig!A:R,18,FALSE) -> 5 | D73: 5001 | I73: 5001 | X73: =IF(I73="","",VLOOKUP(I73,[3]HeroModelConfig!$A:$D,4,FALSE)) -> 金修精英 | Y73: =IF(J73="","",VLOOKUP(J73,[3]HeroModelConfig!$A:$D,4,FALSE)) ->  | Z73: =IF(K73="","",VLOOKUP(K73,[3]HeroModelConfig!$A:$D,4,FALSE)) -> 
A74: 4004 | B74: =VLOOKUP(A74,LevelbattleConfig!A:B,2,FALSE) -> 支线-馨儿-发现信使 | C74: =VLOOKUP(A74,LevelbattleConfig!A:R,18,FALSE) -> 5 | D74: =_xlfn.TEXTJOIN(";",1,I74:K74) -> 5001 | E74: =_xlfn.TEXTJOIN(";",1,L74:N74) ->  | F74: =_xlfn.TEXTJOIN(";",1,O74:Q74) ->  | G74: =_xlfn.TEXTJOIN(";",1,R74:T74) ->  | H74: =_xlfn.TEXTJOIN(";",1,U74:W74) ->  | I74: 5001 | X74: =IF(I74="","",VLOOKUP(I74,[3]HeroModelConfig!$A:$D,4,FALSE)) -> 金修精英 | Y74: =IF(J74="","",VLOOKUP(J74,[3]HeroModelConfig!$A:$D,4,FALSE)) ->  | Z74: =IF(K74="","",VLOOKUP(K74,[3]HeroModelConfig!$A:$D,4,FALSE)) -> 
A75: 4005 | B75: =VLOOKUP(A75,LevelbattleConfig!A:B,2,FALSE) -> 支线-馨儿-发现信使 | C75: =VLOOKUP(A75,LevelbattleConfig!A:R,18,FALSE) -> 5 | D75: 5003 | I75: 5003 | X75: =IF(I75="","",VLOOKUP(I75,[3]HeroModelConfig!$A:$D,4,FALSE)) -> 木修精英 | Y75: =IF(J75="","",VLOOKUP(J75,[3]HeroModelConfig!$A:$D,4,FALSE)) ->  | Z75: =IF(K75="","",VLOOKUP(K75,[3]HeroModelConfig!$A:$D,4,FALSE)) -> 
A76: 4006 | B76: =VLOOKUP(A76,LevelbattleConfig!A:B,2,FALSE) -> 支线-馨儿-风灵鸟的宝藏 | C76: =VLOOKUP(A76,LevelbattleConfig!A:R,18,FALSE) -> 11 | D76: 5002 | I76: 5002 | X76: =IF(I76="","",VLOOKUP(I76,[3]HeroModelConfig!$A:$D,4,FALSE)) -> 水修精英 | Y76: =IF(J76="","",VLOOKUP(J76,[3]HeroModelConfig!$A:$D,4,FALSE)) ->  | Z76: =IF(K76="","",VLOOKUP(K76,[3]HeroModelConfig!$A:$D,4,FALSE)) -> 
A77: 4007 | B77: =VLOOKUP(A77,LevelbattleConfig!A:B,2,FALSE) -> 支线-馨儿-浮岛灵泉的净化 | C77: =VLOOKUP(A77,LevelbattleConfig!A:R,18,FALSE) -> 11 | D77: 5005 | I77: 5005 | X77: =IF(I77="","",VLOOKUP(I77,[3]HeroModelConfig!$A:$D,4,FALSE)) -> 土系怪 | Y77: =IF(J77="","",VLOOKUP(J77,[3]HeroModelConfig!$A:$D,4,FALSE)) ->  | Z77: =IF(K77="","",VLOOKUP(K77,[3]HeroModelConfig!$A:$D,4,FALSE)) -> 
A78: 4008 | B78: =VLOOKUP(A78,LevelbattleConfig!A:B,2,FALSE) -> 支线-馨儿-浮岛盗修的阴谋 | C78: =VLOOKUP(A78,LevelbattleConfig!A:R,18,FALSE) -> 11 | D78: 5001 | I78: 5001 | X78: =IF(I78="","",VLOOKUP(I78,[3]HeroModelConfig!$A:$D,4,FALSE)) -> 金修精英 | Y78: =IF(J78="","",VLOOKUP(J78,[3]HeroModelConfig!$A:$D,4,FALSE)) ->  | Z78: =IF(K78="","",VLOOKUP(K78,[3]HeroModelConfig!$A:$D,4,FALSE)) -> 
A79: 4009 | B79: =VLOOKUP(A79,LevelbattleConfig!A:B,2,FALSE) -> 支线-柳轻烟-找到血海宗的人 | C79: =VLOOKUP(A79,LevelbattleConfig!A:R,18,FALSE) -> 21 | D79: 5002 | I79: 5002 | X79: =IF(I79="","",VLOOKUP(I79,[3]HeroModelConfig!$A:$D,4,FALSE)) -> 水修精英 | Y79: =IF(J79="","",VLOOKUP(J79,[3]HeroModelConfig!$A:$D,4,FALSE)) ->  | Z79: =IF(K79="","",VLOOKUP(K79,[3]HeroModelConfig!$A:$D,4,FALSE)) -> 
A80: 4010 | B80: =VLOOKUP(A80,LevelbattleConfig!A:B,2,FALSE) -> 支线-柳轻烟-找到血海宗的人2 | C80: =VLOOKUP(A80,LevelbattleConfig!A:R,18,FALSE) -> 21 | D80: =_xlfn.TEXTJOIN(";",1,I80:K80) -> 5004 | E80: =_xlfn.TEXTJOIN(";",1,L80:N80) ->  | F80: =_xlfn.TEXTJOIN(";",1,O80:Q80) ->  | G80: =_xlfn.TEXTJOIN(";",1,R80:T80) ->  | H80: =_xlfn.TEXTJOIN(";",1,U80:W80) ->  | I80: 5004 | X80: =IF(I80="","",VLOOKUP(I80,[3]HeroModelConfig!$A:$D,4,FALSE)) -> 火修精英 | Y80: =IF(J80="","",VLOOKUP(J80,[3]HeroModelConfig!$A:$D,4,FALSE)) ->  | Z80: =IF(K80="","",VLOOKUP(K80,[3]HeroModelConfig!$A:$D,4,FALSE)) -> 
A81: 4011 | B81: =VLOOKUP(A81,LevelbattleConfig!A:B,2,FALSE) -> 支线-馨儿-灵花 | C81: =VLOOKUP(A81,LevelbattleConfig!A:R,18,FALSE) -> 31 | D81: 5006 | I81: 5006 | X81: =IF(I81="","",VLOOKUP(I81,[3]HeroModelConfig!$A:$D,4,FALSE)) -> 鼠先锋 | Y81: =IF(J81="","",VLOOKUP(J81,[3]HeroModelConfig!$A:$D,4,FALSE)) ->  | Z81: =IF(K81="","",VLOOKUP(K81,[3]HeroModelConfig!$A:$D,4,FALSE)) -> 
A82: 4012 | B82: =VLOOKUP(A82,LevelbattleConfig!A:B,2,FALSE) -> 支线-馨儿-散修劫掠 | C82: =VLOOKUP(A82,LevelbattleConfig!A:R,18,FALSE) -> 31 | D82: 5001 | I82: 5001 | X82: =IF(I82="","",VLOOKUP(I82,[3]HeroModelConfig!$A:$D,4,FALSE)) -> 金修精英 | Y82: =IF(J82="","",VLOOKUP(J82,[3]HeroModelConfig!$A:$D,4,FALSE)) ->  | Z82: =IF(K82="","",VLOOKUP(K82,[3]HeroModelConfig!$A:$D,4,FALSE)) -> 
A83: 4013 | B83: =VLOOKUP(A83,LevelbattleConfig!A:B,2,FALSE) -> 支线-馨儿-散修劫掠2 | C83: =VLOOKUP(A83,LevelbattleConfig!A:R,18,FALSE) -> 31 | D83: 5003 | I83: 5003 | X83: =IF(I83="","",VLOOKUP(I83,[3]HeroModelConfig!$A:$D,4,FALSE)) -> 木修精英 | Y83: =IF(J83="","",VLOOKUP(J83,[3]HeroModelConfig!$A:$D,4,FALSE)) ->  | Z83: =IF(K83="","",VLOOKUP(K83,[3]HeroModelConfig!$A:$D,4,FALSE)) -> 
A84: 4014 | B84: =VLOOKUP(A84,LevelbattleConfig!A:B,2,FALSE) -> 支线-楚云缪-青狼散人 | C84: =VLOOKUP(A84,LevelbattleConfig!A:R,18,FALSE) -> 31 | D84: 5002 | I84: 5002 | X84: =IF(I84="","",VLOOKUP(I84,[3]HeroModelConfig!$A:$D,4,FALSE)) -> 水修精英 | Y84: =IF(J84="","",VLOOKUP(J84,[3]HeroModelConfig!$A:$D,4,FALSE)) ->  | Z84: =IF(K84="","",VLOOKUP(K84,[3]HeroModelConfig!$A:$D,4,FALSE)) -> 
A85: 4015 | B85: =VLOOKUP(A85,LevelbattleConfig!A:B,2,FALSE) -> 支线-血海宗的掠夺-血海宗的掠夺 | C85: =VLOOKUP(A85,LevelbattleConfig!A:R,18,FALSE) -> 41 | D85: 5001 | I85: 5001 | X85: =IF(I85="","",VLOOKUP(I85,[3]HeroModelConfig!$A:$D,4,FALSE)) -> 金修精英 | Y85: =IF(J85="","",VLOOKUP(J85,[3]HeroModelConfig!$A:$D,4,FALSE)) ->  | Z85: =IF(K85="","",VLOOKUP(K85,[3]HeroModelConfig!$A:$D,4,FALSE)) -> 
A86: 4016 | B86: =VLOOKUP(A86,LevelbattleConfig!A:B,2,FALSE) -> 支线-林风-逃离追杀 | C86: =VLOOKUP(A86,LevelbattleConfig!A:R,18,FALSE) -> 41 | D86: 5002 | I86: 5002 | X86: =IF(I86="","",VLOOKUP(I86,[3]HeroModelConfig!$A:$D,4,FALSE)) -> 水修精英 | Y86: =IF(J86="","",VLOOKUP(J86,[3]HeroModelConfig!$A:$D,4,FALSE)) ->  | Z86: =IF(K86="","",VLOOKUP(K86,[3]HeroModelConfig!$A:$D,4,FALSE)) -> 
A87: 4017 | B87: =VLOOKUP(A87,LevelbattleConfig!A:B,2,FALSE) -> 支线-林风-血海宗弟子 | C87: =VLOOKUP(A87,LevelbattleConfig!A:R,18,FALSE) -> 41 | D87: 5003 | I87: 5003 | X87: =IF(I87="","",VLOOKUP(I87,[3]HeroModelConfig!$A:$D,4,FALSE)) -> 木修精英 | Y87: =IF(J87="","",VLOOKUP(J87,[3]HeroModelConfig!$A:$D,4,FALSE)) ->  | Z87: =IF(K87="","",VLOOKUP(K87,[3]HeroModelConfig!$A:$D,4,FALSE)) -> 
A88: 4018 | B88: =VLOOKUP(A88,LevelbattleConfig!A:B,2,FALSE) -> 支线-林风-血海宗弟子 | C88: =VLOOKUP(A88,LevelbattleConfig!A:R,18,FALSE) -> 41 | D88: =_xlfn.TEXTJOIN(";",1,I88:K88) -> 5004 | E88: =_xlfn.TEXTJOIN(";",1,L88:N88) ->  | F88: =_xlfn.TEXTJOIN(";",1,O88:Q88) ->  | G88: =_xlfn.TEXTJOIN(";",1,R88:T88) ->  | H88: =_xlfn.TEXTJOIN(";",1,U88:W88) ->  | I88: 5004 | X88: =IF(I88="","",VLOOKUP(I88,[3]HeroModelConfig!$A:$D,4,FALSE)) -> 火修精英 | Y88: =IF(J88="","",VLOOKUP(J88,[3]HeroModelConfig!$A:$D,4,FALSE)) ->  | Z88: =IF(K88="","",VLOOKUP(K88,[3]HeroModelConfig!$A:$D,4,FALSE)) -> 
A89: 4019 | B89: =VLOOKUP(A89,LevelbattleConfig!A:B,2,FALSE) -> 支线-林风-血海宗弟子 | C89: =VLOOKUP(A89,LevelbattleConfig!A:R,18,FALSE) -> 41 | D89: 5005 | I89: 5005 | X89: =IF(I89="","",VLOOKUP(I89,[3]HeroModelConfig!$A:$D,4,FALSE)) -> 土系怪 | Y89: =IF(J89="","",VLOOKUP(J89,[3]HeroModelConfig!$A:$D,4,FALSE)) ->  | Z89: =IF(K89="","",VLOOKUP(K89,[3]HeroModelConfig!$A:$D,4,FALSE)) -> 
A90: 4020 | B90: =VLOOKUP(A90,LevelbattleConfig!A:B,2,FALSE) -> 支线-林风后续-夺晶之战 | C90: =VLOOKUP(A90,LevelbattleConfig!A:R,18,FALSE) -> 61 | D90: 5001 | I90: 5001 | X90: =IF(I90="","",VLOOKUP(I90,[3]HeroModelConfig!$A:$D,4,FALSE)) -> 金修精英 | Y90: =IF(J90="","",VLOOKUP(J90,[3]HeroModelConfig!$A:$D,4,FALSE)) ->  | Z90: =IF(K90="","",VLOOKUP(K90,[3]HeroModelConfig!$A:$D,4,FALSE)) -> 
A91: 4021 | B91: =VLOOKUP(A91,LevelbattleConfig!A:B,2,FALSE) -> 支线-林风后续-夺晶之战 | C91: =VLOOKUP(A91,LevelbattleConfig!A:R,18,FALSE) -> 61 | D91: 5002 | I91: 5002 | X91: =IF(I91="","",VLOOKUP(I91,[3]HeroModelConfig!$A:$D,4,FALSE)) -> 水修精英 | Y91: =IF(J91="","",VLOOKUP(J91,[3]HeroModelConfig!$A:$D,4,FALSE)) ->  | Z91: =IF(K91="","",VLOOKUP(K91,[3]HeroModelConfig!$A:$D,4,FALSE)) -> 
A92: 4022 | B92: =VLOOKUP(A92,LevelbattleConfig!A:B,2,FALSE) -> 支线-林风后续-夺晶之战2-援军 | C92: =VLOOKUP(A92,LevelbattleConfig!A:R,18,FALSE) -> 61 | D92: 5003 | I92: 5003 | X92: =IF(I92="","",VLOOKUP(I92,[3]HeroModelConfig!$A:$D,4,FALSE)) -> 木修精英 | Y92: =IF(J92="","",VLOOKUP(J92,[3]HeroModelConfig!$A:$D,4,FALSE)) ->  | Z92: =IF(K92="","",VLOOKUP(K92,[3]HeroModelConfig!$A:$D,4,FALSE)) -> 
A93: 4023 | B93: =VLOOKUP(A93,LevelbattleConfig!A:B,2,FALSE) -> 支线-林风-消灭妖邪 | C93: =VLOOKUP(A93,LevelbattleConfig!A:R,18,FALSE) -> 81 | D93: 5006 | I93: 5006 | X93: =IF(I93="","",VLOOKUP(I93,[3]HeroModelConfig!$A:$D,4,FALSE)) -> 鼠先锋 | Y93: =IF(J93="","",VLOOKUP(J93,[3]HeroModelConfig!$A:$D,4,FALSE)) ->  | Z93: =IF(K93="","",VLOOKUP(K93,[3]HeroModelConfig!$A:$D,4,FALSE)) -> 
A94: 4024 | B94: =VLOOKUP(A94,LevelbattleConfig!A:B,2,FALSE) -> 支线-仙山异样-消灭仙山西边的妖物 | C94: =VLOOKUP(A94,LevelbattleConfig!A:R,18,FALSE) -> 111 | D94: 5007 | I94: 5007 | X94: =IF(I94="","",VLOOKUP(I94,[3]HeroModelConfig!$A:$D,4,FALSE)) -> 穷奇 | Y94: =IF(J94="","",VLOOKUP(J94,[3]HeroModelConfig!$A:$D,4,FALSE)) ->  | Z94: =IF(K94="","",VLOOKUP(K94,[3]HeroModelConfig!$A:$D,4,FALSE)) -> 
A95: 4025 | B95: =VLOOKUP(A95,LevelbattleConfig!A:B,2,FALSE) -> 支线-仙山异样-仙山异样的秘密 | C95: =VLOOKUP(A95,LevelbattleConfig!A:R,18,FALSE) -> 131 | D95: 5007 | I95: 5007 | X95: =IF(I95="","",VLOOKUP(I95,[3]HeroModelConfig!$A:$D,4,FALSE)) -> 穷奇 | Y95: =IF(J95="","",VLOOKUP(J95,[3]HeroModelConfig!$A:$D,4,FALSE)) ->  | Z95: =IF(K95="","",VLOOKUP(K95,[3]HeroModelConfig!$A:$D,4,FALSE)) -> 
X96: =IF(I96="","",VLOOKUP(I96,[3]HeroModelConfig!$A:$D,4,FALSE)) ->  | Y96: =IF(J96="","",VLOOKUP(J96,[3]HeroModelConfig!$A:$D,4,FALSE)) ->  | Z96: =IF(K96="","",VLOOKUP(K96,[3]HeroModelConfig!$A:$D,4,FALSE)) -> 
A97: 5001 | B97: =VLOOKUP(A97,LevelbattleConfig!A:B,2,FALSE) -> 通用-法宝掉落-品质1 | C97: =VLOOKUP(A97,LevelbattleConfig!A:P,16,FALSE) -> -1 | D97: =_xlfn.TEXTJOIN(";",1,I97:K97) -> 1005 | E97: =_xlfn.TEXTJOIN(";",1,L97:N97) -> 70 | F97: =_xlfn.TEXTJOIN(";",1,O97:Q97) -> 90 | G97: =_xlfn.TEXTJOIN(";",1,R97:T97) -> 80 | H97: =_xlfn.TEXTJOIN(";",1,U97:W97) ->  | I97: 1005 | L97: 70 | O97: 90 | R97: =ROUND(AVERAGE(L97,O97),0) -> 80 | X97: =IF(I97="","",VLOOKUP(I97,[3]HeroModelConfig!$A:$D,4,FALSE)) -> 树精 | Y97: =IF(J97="","",VLOOKUP(J97,[3]HeroModelConfig!$A:$D,4,FALSE)) ->  | Z97: =IF(K97="","",VLOOKUP(K97,[3]HeroModelConfig!$A:$D,4,FALSE)) -> 
A98: 5002 | B98: =VLOOKUP(A98,LevelbattleConfig!A:B,2,FALSE) -> 通用-法宝掉落-品质2 | C98: =VLOOKUP(A98,LevelbattleConfig!A:P,16,FALSE) -> -1 | D98: 1006 | E98: =_xlfn.TEXTJOIN(";",1,L98:N98) -> 85 | F98: =_xlfn.TEXTJOIN(";",1,O98:Q98) -> 101 | G98: =_xlfn.TEXTJOIN(";",1,R98:T98) -> 93 | H98: =_xlfn.TEXTJOIN(";",1,U98:W98) ->  | I98: 1006 | L98: 85 | O98: 101 | R98: =ROUND(AVERAGE(L98,O98),0) -> 93 | X98: =IF(I98="","",VLOOKUP(I98,[3]HeroModelConfig!$A:$D,4,FALSE)) -> 飞鹤 | Y98: =IF(J98="","",VLOOKUP(J98,[3]HeroModelConfig!$A:$D,4,FALSE)) ->  | Z98: =IF(K98="","",VLOOKUP(K98,[3]HeroModelConfig!$A:$D,4,FALSE)) -> 
A99: 5003 | B99: =VLOOKUP(A99,LevelbattleConfig!A:B,2,FALSE) -> 通用-法宝掉落-品质3 | C99: =VLOOKUP(A99,LevelbattleConfig!A:P,16,FALSE) -> -1 | D99: 1007 | E99: 100 | F99: 112 | G99: 106 | I99: 1007 | L99: 100 | O99: 112 | R99: 106 | X99: =IF(I99="","",VLOOKUP(I99,[3]HeroModelConfig!$A:$D,4,FALSE)) -> 灵狐 | Y99: =IF(J99="","",VLOOKUP(J99,[3]HeroModelConfig!$A:$D,4,FALSE)) ->  | Z99: =IF(K99="","",VLOOKUP(K99,[3]HeroModelConfig!$A:$D,4,FALSE)) -> 
A100: 5004 | B100: =VLOOKUP(A100,LevelbattleConfig!A:B,2,FALSE) -> 通用-法宝掉落-品质4 | C100: =VLOOKUP(A100,LevelbattleConfig!A:P,16,FALSE) -> -1 | D100: 1008 | E100: 115 | F100: 123 | G100: 119 | I100: 1008 | L100: 115 | O100: 123 | R100: 119 | X100: =IF(I100="","",VLOOKUP(I100,[3]HeroModelConfig!$A:$D,4,FALSE)) -> 蜘蛛 | Y100: =IF(J100="","",VLOOKUP(J100,[3]HeroModelConfig!$A:$D,4,FALSE)) ->  | Z100: =IF(K100="","",VLOOKUP(K100,[3]HeroModelConfig!$A:$D,4,FALSE)) -> 
A101: 5005 | B101: =VLOOKUP(A101,LevelbattleConfig!A:B,2,FALSE) -> 通用-法宝掉落-品质5 | C101: =VLOOKUP(A101,LevelbattleConfig!A:P,16,FALSE) -> -1 | D101: 1001 | E101: 130 | F101: 134 | G101: 132 | I101: 1001 | L101: 130 | O101: 134 | R101: 132 | X101: =IF(I101="","",VLOOKUP(I101,[3]HeroModelConfig!$A:$D,4,FALSE)) -> 蒙面男子 | Y101: =IF(J101="","",VLOOKUP(J101,[3]HeroModelConfig!$A:$D,4,FALSE)) ->  | Z101: =IF(K101="","",VLOOKUP(K101,[3]HeroModelConfig!$A:$D,4,FALSE)) -> 
A102: 5006 | B102: =VLOOKUP(A102,LevelbattleConfig!A:B,2,FALSE) -> 通用-功法掉落-品质1 | C102: =VLOOKUP(A102,LevelbattleConfig!A:P,16,FALSE) -> -1 | D102: 1005 | E102: 70 | F102: 90 | G102: 80 | I102: 1005 | L102: =L97 -> 70 | O102: =O97 -> 90 | R102: 80 | X102: =IF(I102="","",VLOOKUP(I102,[3]HeroModelConfig!$A:$D,4,FALSE)) -> 树精 | Y102: =IF(J102="","",VLOOKUP(J102,[3]HeroModelConfig!$A:$D,4,FALSE)) ->  | Z102: =IF(K102="","",VLOOKUP(K102,[3]HeroModelConfig!$A:$D,4,FALSE)) -> 
A103: 5007 | B103: =VLOOKUP(A103,LevelbattleConfig!A:B,2,FALSE) -> 通用-功法掉落-品质2 | C103: =VLOOKUP(A103,LevelbattleConfig!A:P,16,FALSE) -> -1 | D103: 1006 | E103: 85 | F103: 101 | G103: 93 | I103: 1006 | L103: =L98 -> 85 | O103: =O98 -> 101 | R103: 93 | X103: =IF(I103="","",VLOOKUP(I103,[3]HeroModelConfig!$A:$D,4,FALSE)) -> 飞鹤 | Y103: =IF(J103="","",VLOOKUP(J103,[3]HeroModelConfig!$A:$D,4,FALSE)) ->  | Z103: =IF(K103="","",VLOOKUP(K103,[3]HeroModelConfig!$A:$D,4,FALSE)) -> 
A104: 5008 | B104: =VLOOKUP(A104,LevelbattleConfig!A:B,2,FALSE) -> 通用-功法掉落-品质3 | C104: =VLOOKUP(A104,LevelbattleConfig!A:P,16,FALSE) -> -1 | D104: 1007 | E104: 100 | F104: 112 | G104: 106 | I104: 1007 | L104: 100 | O104: 112 | R104: 106 | X104: =IF(I104="","",VLOOKUP(I104,[3]HeroModelConfig!$A:$D,4,FALSE)) -> 灵狐 | Y104: =IF(J104="","",VLOOKUP(J104,[3]HeroModelConfig!$A:$D,4,FALSE)) ->  | Z104: =IF(K104="","",VLOOKUP(K104,[3]HeroModelConfig!$A:$D,4,FALSE)) -> 
A105: 5009 | B105: =VLOOKUP(A105,LevelbattleConfig!A:B,2,FALSE) -> 通用-功法掉落-品质4 | C105: =VLOOKUP(A105,LevelbattleConfig!A:P,16,FALSE) -> -1 | D105: 1008 | E105: 115 | F105: 123 | G105: 119 | I105: 1008 | L105: 115 | O105: 123 | R105: 119 | X105: =IF(I105="","",VLOOKUP(I105,[3]HeroModelConfig!$A:$D,4,FALSE)) -> 蜘蛛 | Y105: =IF(J105="","",VLOOKUP(J105,[3]HeroModelConfig!$A:$D,4,FALSE)) ->  | Z105: =IF(K105="","",VLOOKUP(K105,[3]HeroModelConfig!$A:$D,4,FALSE)) -> 
A106: 5010 | B106: =VLOOKUP(A106,LevelbattleConfig!A:B,2,FALSE) -> 通用-功法掉落-品质5 | C106: =VLOOKUP(A106,LevelbattleConfig!A:P,16,FALSE) -> -1 | D106: 1001 | E106: 130 | F106: 134 | G106: 132 | I106: 1001 | L106: 130 | O106: 134 | R106: 132 | X106: =IF(I106="","",VLOOKUP(I106,[3]HeroModelConfig!$A:$D,4,FALSE)) -> 蒙面男子 | Y106: =IF(J106="","",VLOOKUP(J106,[3]HeroModelConfig!$A:$D,4,FALSE)) ->  | Z106: =IF(K106="","",VLOOKUP(K106,[3]HeroModelConfig!$A:$D,4,FALSE)) -> 
X107: =IF(I107="","",VLOOKUP(I107,[3]HeroModelConfig!$A:$D,4,FALSE)) ->  | Y107: =IF(J107="","",VLOOKUP(J107,[3]HeroModelConfig!$A:$D,4,FALSE)) ->  | Z107: =IF(K107="","",VLOOKUP(K107,[3]HeroModelConfig!$A:$D,4,FALSE)) -> 
A108: 2001 | B108: 命运峰-第1层 | C108: =VLOOKUP(A108,[2]TowerInfoConfig!$H:$O,8,FALSE) -> 31 | D108: =_xlfn.TEXTJOIN(";",1,I108:K108) -> 5001 | E108: =_xlfn.TEXTJOIN(";",1,L108:N108) ->  | F108: =_xlfn.TEXTJOIN(";",1,O108:Q108) ->  | G108: =_xlfn.TEXTJOIN(";",1,R108:T108) ->  | H108: =_xlfn.TEXTJOIN(";",1,U108:W108) ->  | I108: 5001 | X108: =IF(I108="","",VLOOKUP(I108,[3]HeroModelConfig!$A:$D,4,FALSE)) -> 金修精英 | Y108: =IF(J108="","",VLOOKUP(J108,[3]HeroModelConfig!$A:$D,4,FALSE)) ->  | Z108: =IF(K108="","",VLOOKUP(K108,[3]HeroModelConfig!$A:$D,4,FALSE)) -> 
A109: 2002 | B109: 命运峰-第2层 | C109: =VLOOKUP(A109,[2]TowerInfoConfig!$H:$O,8,FALSE) -> 33 | D109: 5002 | I109: 5002 | X109: =IF(I109="","",VLOOKUP(I109,[3]HeroModelConfig!$A:$D,4,FALSE)) -> 水修精英 | Y109: =IF(J109="","",VLOOKUP(J109,[3]HeroModelConfig!$A:$D,4,FALSE)) ->  | Z109: =IF(K109="","",VLOOKUP(K109,[3]HeroModelConfig!$A:$D,4,FALSE)) -> 
A110: 2003 | B110: 命运峰-第3层 | C110: =VLOOKUP(A110,[2]TowerInfoConfig!$H:$O,8,FALSE) -> 36 | D110: 5003 | I110: 5003 | X110: =IF(I110="","",VLOOKUP(I110,[3]HeroModelConfig!$A:$D,4,FALSE)) -> 木修精英 | Y110: =IF(J110="","",VLOOKUP(J110,[3]HeroModelConfig!$A:$D,4,FALSE)) ->  | Z110: =IF(K110="","",VLOOKUP(K110,[3]HeroModelConfig!$A:$D,4,FALSE)) -> 
A111: 2004 | B111: 命运峰-第4层 | C111: =VLOOKUP(A111,[2]TowerInfoConfig!$H:$O,8,FALSE) -> 39 | D111: 5004 | I111: 5004 | X111: =IF(I111="","",VLOOKUP(I111,[3]HeroModelConfig!$A:$D,4,FALSE)) -> 火修精英 | Y111: =IF(J111="","",VLOOKUP(J111,[3]HeroModelConfig!$A:$D,4,FALSE)) ->  | Z111: =IF(K111="","",VLOOKUP(K111,[3]HeroModelConfig!$A:$D,4,FALSE)) -> 
A112: 2005 | B112: 命运峰-第5层 | C112: =VLOOKUP(A112,[2]TowerInfoConfig!$H:$O,8,FALSE) -> 41 | D112: 9001 | I112: 9001 | X112: =IF(I112="","",VLOOKUP(I112,[3]HeroModelConfig!$A:$D,4,FALSE)) -> boss | Y112: =IF(J112="","",VLOOKUP(J112,[3]HeroModelConfig!$A:$D,4,FALSE)) ->  | Z112: =IF(K112="","",VLOOKUP(K112,[3]HeroModelConfig!$A:$D,4,FALSE)) -> 
A113: 2006 | B113: 命运峰-第6层 | C113: =VLOOKUP(A113,[2]TowerInfoConfig!$H:$O,8,FALSE) -> 43 | D113: 5004 | I113: 5004 | X113: =IF(I113="","",VLOOKUP(I113,[3]HeroModelConfig!$A:$D,4,FALSE)) -> 火修精英 | Y113: =IF(J113="","",VLOOKUP(J113,[3]HeroModelConfig!$A:$D,4,FALSE)) ->  | Z113: =IF(K113="","",VLOOKUP(K113,[3]HeroModelConfig!$A:$D,4,FALSE)) -> 
A114: 2007 | B114: 命运峰-第7层 | C114: =VLOOKUP(A114,[2]TowerInfoConfig!$H:$O,8,FALSE) -> 46 | D114: 5005 | I114: 5005 | X114: =IF(I114="","",VLOOKUP(I114,[3]HeroModelConfig!$A:$D,4,FALSE)) -> 土系怪 | Y114: =IF(J114="","",VLOOKUP(J114,[3]HeroModelConfig!$A:$D,4,FALSE)) ->  | Z114: =IF(K114="","",VLOOKUP(K114,[3]HeroModelConfig!$A:$D,4,FALSE)) -> 
A115: 2008 | B115: 命运峰-第8层 | C115: =VLOOKUP(A115,[2]TowerInfoConfig!$H:$O,8,FALSE) -> 49 | D115: 5006 | I115: 5006 | X115: =IF(I115="","",VLOOKUP(I115,[3]HeroModelConfig!$A:$D,4,FALSE)) -> 鼠先锋 | Y115: =IF(J115="","",VLOOKUP(J115,[3]HeroModelConfig!$A:$D,4,FALSE)) ->  | Z115: =IF(K115="","",VLOOKUP(K115,[3]HeroModelConfig!$A:$D,4,FALSE)) -> 
A116: 2009 | B116: 命运峰-第9层 | C116: =VLOOKUP(A116,[2]TowerInfoConfig!$H:$O,8,FALSE) -> 51 | D116: 5007 | I116: 5007 | X116: =IF(I116="","",VLOOKUP(I116,[3]HeroModelConfig!$A:$D,4,FALSE)) -> 穷奇 | Y116: =IF(J116="","",VLOOKUP(J116,[3]HeroModelConfig!$A:$D,4,FALSE)) ->  | Z116: =IF(K116="","",VLOOKUP(K116,[3]HeroModelConfig!$A:$D,4,FALSE)) -> 
A117: 2010 | B117: 命运峰-第10层 | C117: =VLOOKUP(A117,[2]TowerInfoConfig!$H:$O,8,FALSE) -> 53 | D117: 9002 | I117: 9002 | X117: =IF(I117="","",VLOOKUP(I117,[3]HeroModelConfig!$A:$D,4,FALSE)) -> 凤凰 | Y117: =IF(J117="","",VLOOKUP(J117,[3]HeroModelConfig!$A:$D,4,FALSE)) ->  | Z117: =IF(K117="","",VLOOKUP(K117,[3]HeroModelConfig!$A:$D,4,FALSE)) -> 
A118: 2011 | B118: 命运峰-第11层 | C118: =VLOOKUP(A118,[2]TowerInfoConfig!$H:$O,8,FALSE) -> 56 | D118: 5001 | I118: 5001 | X118: =IF(I118="","",VLOOKUP(I118,[3]HeroModelConfig!$A:$D,4,FALSE)) -> 金修精英 | Y118: =IF(J118="","",VLOOKUP(J118,[3]HeroModelConfig!$A:$D,4,FALSE)) ->  | Z118: =IF(K118="","",VLOOKUP(K118,[3]HeroModelConfig!$A:$D,4,FALSE)) -> 
A119: 2012 | B119: 命运峰-第12层 | C119: =VLOOKUP(A119,[2]TowerInfoConfig!$H:$O,8,FALSE) -> 59 | D119: 5002 | I119: 5002 | X119: =IF(I119="","",VLOOKUP(I119,[3]HeroModelConfig!$A:$D,4,FALSE)) -> 水修精英 | Y119: =IF(J119="","",VLOOKUP(J119,[3]HeroModelConfig!$A:$D,4,FALSE)) ->  | Z119: =IF(K119="","",VLOOKUP(K119,[3]HeroModelConfig!$A:$D,4,FALSE)) -> 
A120: 2013 | B120: 命运峰-第13层 | C120: =VLOOKUP(A120,[2]TowerInfoConfig!$H:$O,8,FALSE) -> 61 | D120: 5003 | I120: 5003 | X120: =IF(I120="","",VLOOKUP(I120,[3]HeroModelConfig!$A:$D,4,FALSE)) -> 木修精英 | Y120: =IF(J120="","",VLOOKUP(J120,[3]HeroModelConfig!$A:$D,4,FALSE)) ->  | Z120: =IF(K120="","",VLOOKUP(K120,[3]HeroModelConfig!$A:$D,4,FALSE)) -> 
A121: 2014 | B121: 命运峰-第14层 | C121: =VLOOKUP(A121,[2]TowerInfoConfig!$H:$O,8,FALSE) -> 63 | D121: 5004 | I121: 5004 | X121: =IF(I121="","",VLOOKUP(I121,[3]HeroModelConfig!$A:$D,4,FALSE)) -> 火修精英 | Y121: =IF(J121="","",VLOOKUP(J121,[3]HeroModelConfig!$A:$D,4,FALSE)) ->  | Z121: =IF(K121="","",VLOOKUP(K121,[3]HeroModelConfig!$A:$D,4,FALSE)) -> 
A122: 2015 | B122: 命运峰-第15层 | C122: =VLOOKUP(A122,[2]TowerInfoConfig!$H:$O,8,FALSE) -> 66 | D122: 9003 | I122: 9003 | X122: =IF(I122="","",VLOOKUP(I122,[3]HeroModelConfig!$A:$D,4,FALSE)) -> 北海神龟 | Y122: =IF(J122="","",VLOOKUP(J122,[3]HeroModelConfig!$A:$D,4,FALSE)) ->  | Z122: =IF(K122="","",VLOOKUP(K122,[3]HeroModelConfig!$A:$D,4,FALSE)) -> 
A123: 2016 | B123: 命运峰-第16层 | C123: =VLOOKUP(A123,[2]TowerInfoConfig!$H:$O,8,FALSE) -> 69 | D123: 5004 | I123: 5004 | X123: =IF(I123="","",VLOOKUP(I123,[3]HeroModelConfig!$A:$D,4,FALSE)) -> 火修精英 | Y123: =IF(J123="","",VLOOKUP(J123,[3]HeroModelConfig!$A:$D,4,FALSE)) ->  | Z123: =IF(K123="","",VLOOKUP(K123,[3]HeroModelConfig!$A:$D,4,FALSE)) -> 
A124: 2017 | B124: 命运峰-第17层 | C124: =VLOOKUP(A124,[2]TowerInfoConfig!$H:$O,8,FALSE) -> 71 | D124: 5005 | I124: 5005 | X124: =IF(I124="","",VLOOKUP(I124,[3]HeroModelConfig!$A:$D,4,FALSE)) -> 土系怪 | Y124: =IF(J124="","",VLOOKUP(J124,[3]HeroModelConfig!$A:$D,4,FALSE)) ->  | Z124: =IF(K124="","",VLOOKUP(K124,[3]HeroModelConfig!$A:$D,4,FALSE)) -> 
A125: 2018 | B125: 命运峰-第18层 | C125: =VLOOKUP(A125,[2]TowerInfoConfig!$H:$O,8,FALSE) -> 73 | D125: 5006 | I125: 5006 | X125: =IF(I125="","",VLOOKUP(I125,[3]HeroModelConfig!$A:$D,4,FALSE)) -> 鼠先锋 | Y125: =IF(J125="","",VLOOKUP(J125,[3]HeroModelConfig!$A:$D,4,FALSE)) ->  | Z125: =IF(K125="","",VLOOKUP(K125,[3]HeroModelConfig!$A:$D,4,FALSE)) -> 
A126: 2019 | B126: 命运峰-第19层 | C126: =VLOOKUP(A126,[2]TowerInfoConfig!$H:$O,8,FALSE) -> 76 | D126: 5007 | I126: 5007 | X126: =IF(I126="","",VLOOKUP(I126,[3]HeroModelConfig!$A:$D,4,FALSE)) -> 穷奇 | Y126: =IF(J126="","",VLOOKUP(J126,[3]HeroModelConfig!$A:$D,4,FALSE)) ->  | Z126: =IF(K126="","",VLOOKUP(K126,[3]HeroModelConfig!$A:$D,4,FALSE)) -> 
A127: 2020 | B127: 命运峰-第20层 | C127: =VLOOKUP(A127,[2]TowerInfoConfig!$H:$O,8,FALSE) -> 79 | D127: 9004 | I127: 9004 | X127: =IF(I127="","",VLOOKUP(I127,[3]HeroModelConfig!$A:$D,4,FALSE)) -> 樗木之灵 | Y127: =IF(J127="","",VLOOKUP(J127,[3]HeroModelConfig!$A:$D,4,FALSE)) ->  | Z127: =IF(K127="","",VLOOKUP(K127,[3]HeroModelConfig!$A:$D,4,FALSE)) -> 
A128: 2021 | B128: 命运峰-第21层 | C128: =VLOOKUP(A128,[2]TowerInfoConfig!$H:$O,8,FALSE) -> 81 | D128: =_xlfn.TEXTJOIN(";",1,I128:K128) -> 5001 | E128: =_xlfn.TEXTJOIN(";",1,L128:N128) ->  | F128: =_xlfn.TEXTJOIN(";",1,O128:Q128) ->  | G128: =_xlfn.TEXTJOIN(";",1,R128:T128) ->  | H128: =_xlfn.TEXTJOIN(";",1,U128:W128) ->  | I128: 5001 | X128: =IF(I128="","",VLOOKUP(I128,[3]HeroModelConfig!$A:$D,4,FALSE)) -> 金修精英 | Y128: =IF(J128="","",VLOOKUP(J128,[3]HeroModelConfig!$A:$D,4,FALSE)) ->  | Z128: =IF(K128="","",VLOOKUP(K128,[3]HeroModelConfig!$A:$D,4,FALSE)) -> 
A129: 2022 | B129: 命运峰-第22层 | C129: =VLOOKUP(A129,[2]TowerInfoConfig!$H:$O,8,FALSE) -> 83 | D129: 5002 | I129: 5002 | X129: =IF(I129="","",VLOOKUP(I129,[3]HeroModelConfig!$A:$D,4,FALSE)) -> 水修精英 | Y129: =IF(J129="","",VLOOKUP(J129,[3]HeroModelConfig!$A:$D,4,FALSE)) ->  | Z129: =IF(K129="","",VLOOKUP(K129,[3]HeroModelConfig!$A:$D,4,FALSE)) -> 
A130: 2023 | B130: 命运峰-第23层 | C130: =VLOOKUP(A130,[2]TowerInfoConfig!$H:$O,8,FALSE) -> 86 | D130: 5003 | I130: 5003 | X130: =IF(I130="","",VLOOKUP(I130,[3]HeroModelConfig!$A:$D,4,FALSE)) -> 木修精英 | Y130: =IF(J130="","",VLOOKUP(J130,[3]HeroModelConfig!$A:$D,4,FALSE)) ->  | Z130: =IF(K130="","",VLOOKUP(K130,[3]HeroModelConfig!$A:$D,4,FALSE)) -> 
A131: 2024 | B131: 命运峰-第24层 | C131: =VLOOKUP(A131,[2]TowerInfoConfig!$H:$O,8,FALSE) -> 89 | D131: 5004 | I131: 5004 | X131: =IF(I131="","",VLOOKUP(I131,[3]HeroModelConfig!$A:$D,4,FALSE)) -> 火修精英 | Y131: =IF(J131="","",VLOOKUP(J131,[3]HeroModelConfig!$A:$D,4,FALSE)) ->  | Z131: =IF(K131="","",VLOOKUP(K131,[3]HeroModelConfig!$A:$D,4,FALSE)) -> 
A132: 2025 | B132: 命运峰-第25层 | C132: =VLOOKUP(A132,[2]TowerInfoConfig!$H:$O,8,FALSE) -> 91 | D132: 9005 | I132: 9005 | X132: =IF(I132="","",VLOOKUP(I132,[3]HeroModelConfig!$A:$D,4,FALSE)) -> 心魔 | Y132: =IF(J132="","",VLOOKUP(J132,[3]HeroModelConfig!$A:$D,4,FALSE)) ->  | Z132: =IF(K132="","",VLOOKUP(K132,[3]HeroModelConfig!$A:$D,4,FALSE)) -> 
A133: 2026 | B133: 命运峰-第26层 | C133: =VLOOKUP(A133,[2]TowerInfoConfig!$H:$O,8,FALSE) -> 93 | D133: 5004 | I133: 5004 | X133: =IF(I133="","",VLOOKUP(I133,[3]HeroModelConfig!$A:$D,4,FALSE)) -> 火修精英 | Y133: =IF(J133="","",VLOOKUP(J133,[3]HeroModelConfig!$A:$D,4,FALSE)) ->  | Z133: =IF(K133="","",VLOOKUP(K133,[3]HeroModelConfig!$A:$D,4,FALSE)) -> 
A134: 2027 | B134: 命运峰-第27层 | C134: =VLOOKUP(A134,[2]TowerInfoConfig!$H:$O,8,FALSE) -> 96 | D134: 5005 | I134: 5005 | X134: =IF(I134="","",VLOOKUP(I134,[3]HeroModelConfig!$A:$D,4,FALSE)) -> 土系怪 | Y134: =IF(J134="","",VLOOKUP(J134,[3]HeroModelConfig!$A:$D,4,FALSE)) ->  | Z134: =IF(K134="","",VLOOKUP(K134,[3]HeroModelConfig!$A:$D,4,FALSE)) -> 
A135: 2028 | B135: 命运峰-第28层 | C135: =VLOOKUP(A135,[2]TowerInfoConfig!$H:$O,8,FALSE) -> 99 | D135: 5006 | I135: 5006 | X135: =IF(I135="","",VLOOKUP(I135,[3]HeroModelConfig!$A:$D,4,FALSE)) -> 鼠先锋 | Y135: =IF(J135="","",VLOOKUP(J135,[3]HeroModelConfig!$A:$D,4,FALSE)) ->  | Z135: =IF(K135="","",VLOOKUP(K135,[3]HeroModelConfig!$A:$D,4,FALSE)) -> 
A136: 2029 | B136: 命运峰-第29层 | C136: =VLOOKUP(A136,[2]TowerInfoConfig!$H:$O,8,FALSE) -> 101 | D136: 5007 | I136: 5007 | X136: =IF(I136="","",VLOOKUP(I136,[3]HeroModelConfig!$A:$D,4,FALSE)) -> 穷奇 | Y136: =IF(J136="","",VLOOKUP(J136,[3]HeroModelConfig!$A:$D,4,FALSE)) ->  | Z136: =IF(K136="","",VLOOKUP(K136,[3]HeroModelConfig!$A:$D,4,FALSE)) -> 
A137: 2030 | B137: 命运峰-第30层 | C137: =VLOOKUP(A137,[2]TowerInfoConfig!$H:$O,8,FALSE) -> 103 | D137: 9006 | I137: 9006 | X137: =IF(I137="","",VLOOKUP(I137,[3]HeroModelConfig!$A:$D,4,FALSE)) -> 仙山飞鸟 | Y137: =IF(J137="","",VLOOKUP(J137,[3]HeroModelConfig!$A:$D,4,FALSE)) ->  | Z137: =IF(K137="","",VLOOKUP(K137,[3]HeroModelConfig!$A:$D,4,FALSE)) -> 
A138: 2031 | B138: 命运峰-第31层 | C138: =VLOOKUP(A138,[2]TowerInfoConfig!$H:$O,8,FALSE) -> 106 | D138: 5001 | I138: 5001 | X138: =IF(I138="","",VLOOKUP(I138,[3]HeroModelConfig!$A:$D,4,FALSE)) -> 金修精英 | Y138: =IF(J138="","",VLOOKUP(J138,[3]HeroModelConfig!$A:$D,4,FALSE)) ->  | Z138: =IF(K138="","",VLOOKUP(K138,[3]HeroModelConfig!$A:$D,4,FALSE)) -> 
A139: 2032 | B139: 命运峰-第32层 | C139: =VLOOKUP(A139,[2]TowerInfoConfig!$H:$O,8,FALSE) -> 109 | D139: 5002 | I139: 5002 | X139: =IF(I139="","",VLOOKUP(I139,[3]HeroModelConfig!$A:$D,4,FALSE)) -> 水修精英 | Y139: =IF(J139="","",VLOOKUP(J139,[3]HeroModelConfig!$A:$D,4,FALSE)) ->  | Z139: =IF(K139="","",VLOOKUP(K139,[3]HeroModelConfig!$A:$D,4,FALSE)) -> 
A140: 2033 | B140: 命运峰-第33层 | C140: =VLOOKUP(A140,[2]TowerInfoConfig!$H:$O,8,FALSE) -> 111 | D140: 5003 | I140: 5003 | X140: =IF(I140="","",VLOOKUP(I140,[3]HeroModelConfig!$A:$D,4,FALSE)) -> 木修精英 | Y140: =IF(J140="","",VLOOKUP(J140,[3]HeroModelConfig!$A:$D,4,FALSE)) ->  | Z140: =IF(K140="","",VLOOKUP(K140,[3]HeroModelConfig!$A:$D,4,FALSE)) -> 
A141: 2034 | B141: 命运峰-第34层 | C141: =VLOOKUP(A141,[2]TowerInfoConfig!$H:$O,8,FALSE) -> 113 | D141: 5004 | I141: 5004 | X141: =IF(I141="","",VLOOKUP(I141,[3]HeroModelConfig!$A:$D,4,FALSE)) -> 火修精英 | Y141: =IF(J141="","",VLOOKUP(J141,[3]HeroModelConfig!$A:$D,4,FALSE)) ->  | Z141: =IF(K141="","",VLOOKUP(K141,[3]HeroModelConfig!$A:$D,4,FALSE)) -> 
A142: 2035 | B142: 命运峰-第35层 | C142: =VLOOKUP(A142,[2]TowerInfoConfig!$H:$O,8,FALSE) -> 116 | D142: 9001 | I142: 9001 | X142: =IF(I142="","",VLOOKUP(I142,[3]HeroModelConfig!$A:$D,4,FALSE)) -> boss | Y142: =IF(J142="","",VLOOKUP(J142,[3]HeroModelConfig!$A:$D,4,FALSE)) ->  | Z142: =IF(K142="","",VLOOKUP(K142,[3]HeroModelConfig!$A:$D,4,FALSE)) -> 
A143: 2036 | B143: 命运峰-第36层 | C143: =VLOOKUP(A143,[2]TowerInfoConfig!$H:$O,8,FALSE) -> 119 | D143: 5004 | I143: 5004 | X143: =IF(I143="","",VLOOKUP(I143,[3]HeroModelConfig!$A:$D,4,FALSE)) -> 火修精英 | Y143: =IF(J143="","",VLOOKUP(J143,[3]HeroModelConfig!$A:$D,4,FALSE)) ->  | Z143: =IF(K143="","",VLOOKUP(K143,[3]HeroModelConfig!$A:$D,4,FALSE)) -> 
A144: 2037 | B144: 命运峰-第37层 | C144: =VLOOKUP(A144,[2]TowerInfoConfig!$H:$O,8,FALSE) -> 121 | D144: 5005 | I144: 5005 | X144: =IF(I144="","",VLOOKUP(I144,[3]HeroModelConfig!$A:$D,4,FALSE)) -> 土系怪 | Y144: =IF(J144="","",VLOOKUP(J144,[3]HeroModelConfig!$A:$D,4,FALSE)) ->  | Z144: =IF(K144="","",VLOOKUP(K144,[3]HeroModelConfig!$A:$D,4,FALSE)) -> 
A145: 2038 | B145: 命运峰-第38层 | C145: =VLOOKUP(A145,[2]TowerInfoConfig!$H:$O,8,FALSE) -> 123 | D145: 5006 | I145: 5006 | X145: =IF(I145="","",VLOOKUP(I145,[3]HeroModelConfig!$A:$D,4,FALSE)) -> 鼠先锋 | Y145: =IF(J145="","",VLOOKUP(J145,[3]HeroModelConfig!$A:$D,4,FALSE)) ->  | Z145: =IF(K145="","",VLOOKUP(K145,[3]HeroModelConfig!$A:$D,4,FALSE)) -> 
A146: 2039 | B146: 命运峰-第39层 | C146: =VLOOKUP(A146,[2]TowerInfoConfig!$H:$O,8,FALSE) -> 126 | D146: 5007 | I146: 5007 | X146: =IF(I146="","",VLOOKUP(I146,[3]HeroModelConfig!$A:$D,4,FALSE)) -> 穷奇 | Y146: =IF(J146="","",VLOOKUP(J146,[3]HeroModelConfig!$A:$D,4,FALSE)) ->  | Z146: =IF(K146="","",VLOOKUP(K146,[3]HeroModelConfig!$A:$D,4,FALSE)) -> 
A147: 2040 | B147: 命运峰-第40层 | C147: =VLOOKUP(A147,[2]TowerInfoConfig!$H:$O,8,FALSE) -> 129 | D147: 9002 | I147: 9002 | X147: =IF(I147="","",VLOOKUP(I147,[3]HeroModelConfig!$A:$D,4,FALSE)) -> 凤凰 | Y147: =IF(J147="","",VLOOKUP(J147,[3]HeroModelConfig!$A:$D,4,FALSE)) ->  | Z147: =IF(K147="","",VLOOKUP(K147,[3]HeroModelConfig!$A:$D,4,FALSE)) -> 
A148: 2041 | B148: 命运峰-第41层 | C148: =VLOOKUP(A148,[2]TowerInfoConfig!$H:$O,8,FALSE) -> 131 | D148: 5001 | I148: 5001 | X148: =IF(I148="","",VLOOKUP(I148,[3]HeroModelConfig!$A:$D,4,FALSE)) -> 金修精英 | Y148: =IF(J148="","",VLOOKUP(J148,[3]HeroModelConfig!$A:$D,4,FALSE)) ->  | Z148: =IF(K148="","",VLOOKUP(K148,[3]HeroModelConfig!$A:$D,4,FALSE)) -> 
A149: 2042 | B149: 命运峰-第42层 | C149: =VLOOKUP(A149,[2]TowerInfoConfig!$H:$O,8,FALSE) -> 133 | D149: 5002 | I149: 5002 | X149: =IF(I149="","",VLOOKUP(I149,[3]HeroModelConfig!$A:$D,4,FALSE)) -> 水修精英 | Y149: =IF(J149="","",VLOOKUP(J149,[3]HeroModelConfig!$A:$D,4,FALSE)) ->  | Z149: =IF(K149="","",VLOOKUP(K149,[3]HeroModelConfig!$A:$D,4,FALSE)) -> 
A150: 2043 | B150: 命运峰-第43层 | C150: =VLOOKUP(A150,[2]TowerInfoConfig!$H:$O,8,FALSE) -> 136 | D150: 5003 | I150: 5003 | X150: =IF(I150="","",VLOOKUP(I150,[3]HeroModelConfig!$A:$D,4,FALSE)) -> 木修精英 | Y150: =IF(J150="","",VLOOKUP(J150,[3]HeroModelConfig!$A:$D,4,FALSE)) ->  | Z150: =IF(K150="","",VLOOKUP(K150,[3]HeroModelConfig!$A:$D,4,FALSE)) -> 
A151: 2044 | B151: 命运峰-第44层 | C151: =VLOOKUP(A151,[2]TowerInfoConfig!$H:$O,8,FALSE) -> 139 | D151: 5004 | I151: 5004 | X151: =IF(I151="","",VLOOKUP(I151,[3]HeroModelConfig!$A:$D,4,FALSE)) -> 火修精英 | Y151: =IF(J151="","",VLOOKUP(J151,[3]HeroModelConfig!$A:$D,4,FALSE)) ->  | Z151: =IF(K151="","",VLOOKUP(K151,[3]HeroModelConfig!$A:$D,4,FALSE)) -> 
A152: 2045 | B152: 命运峰-第45层 | C152: =VLOOKUP(A152,[2]TowerInfoConfig!$H:$O,8,FALSE) -> 141 | D152: 9003 | I152: 9003 | X152: =IF(I152="","",VLOOKUP(I152,[3]HeroModelConfig!$A:$D,4,FALSE)) -> 北海神龟 | Y152: =IF(J152="","",VLOOKUP(J152,[3]HeroModelConfig!$A:$D,4,FALSE)) ->  | Z152: =IF(K152="","",VLOOKUP(K152,[3]HeroModelConfig!$A:$D,4,FALSE)) -> 
A153: 2046 | B153: 命运峰-第46层 | C153: =VLOOKUP(A153,[2]TowerInfoConfig!$H:$O,8,FALSE) -> 143 | D153: 5004 | I153: 5004 | X153: =IF(I153="","",VLOOKUP(I153,[3]HeroModelConfig!$A:$D,4,FALSE)) -> 火修精英 | Y153: =IF(J153="","",VLOOKUP(J153,[3]HeroModelConfig!$A:$D,4,FALSE)) ->  | Z153: =IF(K153="","",VLOOKUP(K153,[3]HeroModelConfig!$A:$D,4,FALSE)) -> 
A154: 2047 | B154: 命运峰-第47层 | C154: =VLOOKUP(A154,[2]TowerInfoConfig!$H:$O,8,FALSE) -> 146 | D154: 5005 | I154: 5005 | X154: =IF(I154="","",VLOOKUP(I154,[3]HeroModelConfig!$A:$D,4,FALSE)) -> 土系怪 | Y154: =IF(J154="","",VLOOKUP(J154,[3]HeroModelConfig!$A:$D,4,FALSE)) ->  | Z154: =IF(K154="","",VLOOKUP(K154,[3]HeroModelConfig!$A:$D,4,FALSE)) -> 
A155: 2048 | B155: 命运峰-第48层 | C155: =VLOOKUP(A155,[2]TowerInfoConfig!$H:$O,8,FALSE) -> 149 | D155: 5006 | I155: 5006 | X155: =IF(I155="","",VLOOKUP(I155,[3]HeroModelConfig!$A:$D,4,FALSE)) -> 鼠先锋 | Y155: =IF(J155="","",VLOOKUP(J155,[3]HeroModelConfig!$A:$D,4,FALSE)) ->  | Z155: =IF(K155="","",VLOOKUP(K155,[3]HeroModelConfig!$A:$D,4,FALSE)) -> 
A156: 2049 | B156: 命运峰-第49层 | C156: =VLOOKUP(A156,[2]TowerInfoConfig!$H:$O,8,FALSE) -> 151 | D156: 5007 | I156: 5007 | X156: =IF(I156="","",VLOOKUP(I156,[3]HeroModelConfig!$A:$D,4,FALSE)) -> 穷奇 | Y156: =IF(J156="","",VLOOKUP(J156,[3]HeroModelConfig!$A:$D,4,FALSE)) ->  | Z156: =IF(K156="","",VLOOKUP(K156,[3]HeroModelConfig!$A:$D,4,FALSE)) -> 
A157: 2050 | B157: 命运峰-第50层 | C157: =VLOOKUP(A157,[2]TowerInfoConfig!$H:$O,8,FALSE) -> 153 | D157: 9004 | I157: 9004 | X157: =IF(I157="","",VLOOKUP(I157,[3]HeroModelConfig!$A:$D,4,FALSE)) -> 樗木之灵 | Y157: =IF(J157="","",VLOOKUP(J157,[3]HeroModelConfig!$A:$D,4,FALSE)) ->  | Z157: =IF(K157="","",VLOOKUP(K157,[3]HeroModelConfig!$A:$D,4,FALSE)) -> 
A158: 2051 | B158: 命运峰-第51层 | C158: =VLOOKUP(A158,[2]TowerInfoConfig!$H:$O,8,FALSE) -> 156 | D158: 5001 | I158: 5001 | X158: =IF(I158="","",VLOOKUP(I158,[3]HeroModelConfig!$A:$D,4,FALSE)) -> 金修精英 | Y158: =IF(J158="","",VLOOKUP(J158,[3]HeroModelConfig!$A:$D,4,FALSE)) ->  | Z158: =IF(K158="","",VLOOKUP(K158,[3]HeroModelConfig!$A:$D,4,FALSE)) -> 
A159: 2052 | B159: 命运峰-第52层 | C159: =VLOOKUP(A159,[2]TowerInfoConfig!$H:$O,8,FALSE) -> 159 | D159: 5002 | I159: 5002 | X159: =IF(I159="","",VLOOKUP(I159,[3]HeroModelConfig!$A:$D,4,FALSE)) -> 水修精英 | Y159: =IF(J159="","",VLOOKUP(J159,[3]HeroModelConfig!$A:$D,4,FALSE)) ->  | Z159: =IF(K159="","",VLOOKUP(K159,[3]HeroModelConfig!$A:$D,4,FALSE)) -> 
A160: 2053 | B160: 命运峰-第53层 | C160: =VLOOKUP(A160,[2]TowerInfoConfig!$H:$O,8,FALSE) -> 161 | D160: 5003 | I160: 5003 | X160: =IF(I160="","",VLOOKUP(I160,[3]HeroModelConfig!$A:$D,4,FALSE)) -> 木修精英 | Y160: =IF(J160="","",VLOOKUP(J160,[3]HeroModelConfig!$A:$D,4,FALSE)) ->  | Z160: =IF(K160="","",VLOOKUP(K160,[3]HeroModelConfig!$A:$D,4,FALSE)) -> 
A161: 2054 | B161: 命运峰-第54层 | C161: =VLOOKUP(A161,[2]TowerInfoConfig!$H:$O,8,FALSE) -> 163 | D161: 5004 | I161: 5004 | X161: =IF(I161="","",VLOOKUP(I161,[3]HeroModelConfig!$A:$D,4,FALSE)) -> 火修精英 | Y161: =IF(J161="","",VLOOKUP(J161,[3]HeroModelConfig!$A:$D,4,FALSE)) ->  | Z161: =IF(K161="","",VLOOKUP(K161,[3]HeroModelConfig!$A:$D,4,FALSE)) -> 
A162: 2055 | B162: 命运峰-第55层 | C162: =VLOOKUP(A162,[2]TowerInfoConfig!$H:$O,8,FALSE) -> 166 | D162: 9005 | I162: 9005 | X162: =IF(I162="","",VLOOKUP(I162,[3]HeroModelConfig!$A:$D,4,FALSE)) -> 心魔 | Y162: =IF(J162="","",VLOOKUP(J162,[3]HeroModelConfig!$A:$D,4,FALSE)) ->  | Z162: =IF(K162="","",VLOOKUP(K162,[3]HeroModelConfig!$A:$D,4,FALSE)) -> 
A163: 2056 | B163: 命运峰-第56层 | C163: =VLOOKUP(A163,[2]TowerInfoConfig!$H:$O,8,FALSE) -> 169 | D163: 5004 | I163: 5004 | X163: =IF(I163="","",VLOOKUP(I163,[3]HeroModelConfig!$A:$D,4,FALSE)) -> 火修精英 | Y163: =IF(J163="","",VLOOKUP(J163,[3]HeroModelConfig!$A:$D,4,FALSE)) ->  | Z163: =IF(K163="","",VLOOKUP(K163,[3]HeroModelConfig!$A:$D,4,FALSE)) -> 
A164: 2057 | B164: 命运峰-第57层 | C164: =VLOOKUP(A164,[2]TowerInfoConfig!$H:$O,8,FALSE) -> 171 | D164: 5005 | I164: 5005 | X164: =IF(I164="","",VLOOKUP(I164,[3]HeroModelConfig!$A:$D,4,FALSE)) -> 土系怪 | Y164: =IF(J164="","",VLOOKUP(J164,[3]HeroModelConfig!$A:$D,4,FALSE)) ->  | Z164: =IF(K164="","",VLOOKUP(K164,[3]HeroModelConfig!$A:$D,4,FALSE)) -> 
A165: 2058 | B165: 命运峰-第58层 | C165: =VLOOKUP(A165,[2]TowerInfoConfig!$H:$O,8,FALSE) -> 173 | D165: 5006 | I165: 5006 | X165: =IF(I165="","",VLOOKUP(I165,[3]HeroModelConfig!$A:$D,4,FALSE)) -> 鼠先锋 | Y165: =IF(J165="","",VLOOKUP(J165,[3]HeroModelConfig!$A:$D,4,FALSE)) ->  | Z165: =IF(K165="","",VLOOKUP(K165,[3]HeroModelConfig!$A:$D,4,FALSE)) -> 
A166: 2059 | B166: 命运峰-第59层 | C166: =VLOOKUP(A166,[2]TowerInfoConfig!$H:$O,8,FALSE) -> 176 | D166: 5007 | I166: 5007 | X166: =IF(I166="","",VLOOKUP(I166,[3]HeroModelConfig!$A:$D,4,FALSE)) -> 穷奇 | Y166: =IF(J166="","",VLOOKUP(J166,[3]HeroModelConfig!$A:$D,4,FALSE)) ->  | Z166: =IF(K166="","",VLOOKUP(K166,[3]HeroModelConfig!$A:$D,4,FALSE)) -> 
A167: 2060 | B167: 命运峰-第60层 | C167: =VLOOKUP(A167,[2]TowerInfoConfig!$H:$O,8,FALSE) -> 179 | D167: 9006 | I167: 9006 | X167: =IF(I167="","",VLOOKUP(I167,[3]HeroModelConfig!$A:$D,4,FALSE)) -> 仙山飞鸟 | Y167: =IF(J167="","",VLOOKUP(J167,[3]HeroModelConfig!$A:$D,4,FALSE)) ->  | Z167: =IF(K167="","",VLOOKUP(K167,[3]HeroModelConfig!$A:$D,4,FALSE)) -> 
A168: 2061 | B168: 命运峰-第61层 | C168: =VLOOKUP(A168,[2]TowerInfoConfig!$H:$O,8,FALSE) -> 181 | D168: 5001 | I168: 5001 | X168: =IF(I168="","",VLOOKUP(I168,[3]HeroModelConfig!$A:$D,4,FALSE)) -> 金修精英 | Y168: =IF(J168="","",VLOOKUP(J168,[3]HeroModelConfig!$A:$D,4,FALSE)) ->  | Z168: =IF(K168="","",VLOOKUP(K168,[3]HeroModelConfig!$A:$D,4,FALSE)) -> 
A169: 2062 | B169: 命运峰-第62层 | C169: =VLOOKUP(A169,[2]TowerInfoConfig!$H:$O,8,FALSE) -> 183 | D169: 5002 | I169: 5002 | X169: =IF(I169="","",VLOOKUP(I169,[3]HeroModelConfig!$A:$D,4,FALSE)) -> 水修精英 | Y169: =IF(J169="","",VLOOKUP(J169,[3]HeroModelConfig!$A:$D,4,FALSE)) ->  | Z169: =IF(K169="","",VLOOKUP(K169,[3]HeroModelConfig!$A:$D,4,FALSE)) -> 
A170: 2063 | B170: 命运峰-第63层 | C170: =VLOOKUP(A170,[2]TowerInfoConfig!$H:$O,8,FALSE) -> 186 | D170: 5003 | I170: 5003 | X170: =IF(I170="","",VLOOKUP(I170,[3]HeroModelConfig!$A:$D,4,FALSE)) -> 木修精英 | Y170: =IF(J170="","",VLOOKUP(J170,[3]HeroModelConfig!$A:$D,4,FALSE)) ->  | Z170: =IF(K170="","",VLOOKUP(K170,[3]HeroModelConfig!$A:$D,4,FALSE)) -> 
A171: 2064 | B171: 命运峰-第64层 | C171: =VLOOKUP(A171,[2]TowerInfoConfig!$H:$O,8,FALSE) -> 189 | D171: 5004 | I171: 5004 | X171: =IF(I171="","",VLOOKUP(I171,[3]HeroModelConfig!$A:$D,4,FALSE)) -> 火修精英 | Y171: =IF(J171="","",VLOOKUP(J171,[3]HeroModelConfig!$A:$D,4,FALSE)) ->  | Z171: =IF(K171="","",VLOOKUP(K171,[3]HeroModelConfig!$A:$D,4,FALSE)) -> 
A172: 2065 | B172: 命运峰-第65层 | C172: =VLOOKUP(A172,[2]TowerInfoConfig!$H:$O,8,FALSE) -> 191 | D172: 9001 | I172: 9001 | X172: =IF(I172="","",VLOOKUP(I172,[3]HeroModelConfig!$A:$D,4,FALSE)) -> boss | Y172: =IF(J172="","",VLOOKUP(J172,[3]HeroModelConfig!$A:$D,4,FALSE)) ->  | Z172: =IF(K172="","",VLOOKUP(K172,[3]HeroModelConfig!$A:$D,4,FALSE)) -> 
A173: 2066 | B173: 命运峰-第66层 | C173: =VLOOKUP(A173,[2]TowerInfoConfig!$H:$O,8,FALSE) -> 193 | D173: 5004 | I173: 5004 | X173: =IF(I173="","",VLOOKUP(I173,[3]HeroModelConfig!$A:$D,4,FALSE)) -> 火修精英 | Y173: =IF(J173="","",VLOOKUP(J173,[3]HeroModelConfig!$A:$D,4,FALSE)) ->  | Z173: =IF(K173="","",VLOOKUP(K173,[3]HeroModelConfig!$A:$D,4,FALSE)) -> 
A174: 2067 | B174: 命运峰-第67层 | C174: =VLOOKUP(A174,[2]TowerInfoConfig!$H:$O,8,FALSE) -> 196 | D174: 5005 | I174: 5005 | X174: =IF(I174="","",VLOOKUP(I174,[3]HeroModelConfig!$A:$D,4,FALSE)) -> 土系怪 | Y174: =IF(J174="","",VLOOKUP(J174,[3]HeroModelConfig!$A:$D,4,FALSE)) ->  | Z174: =IF(K174="","",VLOOKUP(K174,[3]HeroModelConfig!$A:$D,4,FALSE)) -> 
A175: 2068 | B175: 命运峰-第68层 | C175: =VLOOKUP(A175,[2]TowerInfoConfig!$H:$O,8,FALSE) -> 199 | D175: 5006 | I175: 5006 | X175: =IF(I175="","",VLOOKUP(I175,[3]HeroModelConfig!$A:$D,4,FALSE)) -> 鼠先锋 | Y175: =IF(J175="","",VLOOKUP(J175,[3]HeroModelConfig!$A:$D,4,FALSE)) ->  | Z175: =IF(K175="","",VLOOKUP(K175,[3]HeroModelConfig!$A:$D,4,FALSE)) -> 
A176: 2069 | B176: 命运峰-第69层 | C176: =VLOOKUP(A176,[2]TowerInfoConfig!$H:$O,8,FALSE) -> 201 | D176: 5007 | I176: 5007 | X176: =IF(I176="","",VLOOKUP(I176,[3]HeroModelConfig!$A:$D,4,FALSE)) -> 穷奇 | Y176: =IF(J176="","",VLOOKUP(J176,[3]HeroModelConfig!$A:$D,4,FALSE)) ->  | Z176: =IF(K176="","",VLOOKUP(K176,[3]HeroModelConfig!$A:$D,4,FALSE)) -> 
A177: 2070 | B177: 命运峰-第70层 | C177: =VLOOKUP(A177,[2]TowerInfoConfig!$H:$O,8,FALSE) -> 203 | D177: 9002 | I177: 9002 | X177: =IF(I177="","",VLOOKUP(I177,[3]HeroModelConfig!$A:$D,4,FALSE)) -> 凤凰 | Y177: =IF(J177="","",VLOOKUP(J177,[3]HeroModelConfig!$A:$D,4,FALSE)) ->  | Z177: =IF(K177="","",VLOOKUP(K177,[3]HeroModelConfig!$A:$D,4,FALSE)) -> 
A178: 2071 | B178: 命运峰-第71层 | C178: =VLOOKUP(A178,[2]TowerInfoConfig!$H:$O,8,FALSE) -> 206 | D178: 5001 | I178: 5001 | X178: =IF(I178="","",VLOOKUP(I178,[3]HeroModelConfig!$A:$D,4,FALSE)) -> 金修精英 | Y178: =IF(J178="","",VLOOKUP(J178,[3]HeroModelConfig!$A:$D,4,FALSE)) ->  | Z178: =IF(K178="","",VLOOKUP(K178,[3]HeroModelConfig!$A:$D,4,FALSE)) -> 
A179: 2072 | B179: 命运峰-第72层 | C179: =VLOOKUP(A179,[2]TowerInfoConfig!$H:$O,8,FALSE) -> 209 | D179: 5002 | I179: 5002 | X179: =IF(I179="","",VLOOKUP(I179,[3]HeroModelConfig!$A:$D,4,FALSE)) -> 水修精英 | Y179: =IF(J179="","",VLOOKUP(J179,[3]HeroModelConfig!$A:$D,4,FALSE)) ->  | Z179: =IF(K179="","",VLOOKUP(K179,[3]HeroModelConfig!$A:$D,4,FALSE)) -> 
A180: 2073 | B180: 命运峰-第73层 | C180: =VLOOKUP(A180,[2]TowerInfoConfig!$H:$O,8,FALSE) -> 211 | D180: 5003 | I180: 5003 | X180: =IF(I180="","",VLOOKUP(I180,[3]HeroModelConfig!$A:$D,4,FALSE)) -> 木修精英 | Y180: =IF(J180="","",VLOOKUP(J180,[3]HeroModelConfig!$A:$D,4,FALSE)) ->  | Z180: =IF(K180="","",VLOOKUP(K180,[3]HeroModelConfig!$A:$D,4,FALSE)) -> 
A181: 2074 | B181: 命运峰-第74层 | C181: =VLOOKUP(A181,[2]TowerInfoConfig!$H:$O,8,FALSE) -> 213 | D181: 5004 | I181: 5004 | X181: =IF(I181="","",VLOOKUP(I181,[3]HeroModelConfig!$A:$D,4,FALSE)) -> 火修精英 | Y181: =IF(J181="","",VLOOKUP(J181,[3]HeroModelConfig!$A:$D,4,FALSE)) ->  | Z181: =IF(K181="","",VLOOKUP(K181,[3]HeroModelConfig!$A:$D,4,FALSE)) -> 
A182: 2075 | B182: 命运峰-第75层 | C182: =VLOOKUP(A182,[2]TowerInfoConfig!$H:$O,8,FALSE) -> 216 | D182: 9003 | I182: 9003 | X182: =IF(I182="","",VLOOKUP(I182,[3]HeroModelConfig!$A:$D,4,FALSE)) -> 北海神龟 | Y182: =IF(J182="","",VLOOKUP(J182,[3]HeroModelConfig!$A:$D,4,FALSE)) ->  | Z182: =IF(K182="","",VLOOKUP(K182,[3]HeroModelConfig!$A:$D,4,FALSE)) -> 
A183: 2076 | B183: 命运峰-第76层 | C183: =VLOOKUP(A183,[2]TowerInfoConfig!$H:$O,8,FALSE) -> 219 | D183: 5004 | I183: 5004 | X183: =IF(I183="","",VLOOKUP(I183,[3]HeroModelConfig!$A:$D,4,FALSE)) -> 火修精英 | Y183: =IF(J183="","",VLOOKUP(J183,[3]HeroModelConfig!$A:$D,4,FALSE)) ->  | Z183: =IF(K183="","",VLOOKUP(K183,[3]HeroModelConfig!$A:$D,4,FALSE)) -> 
A184: 2077 | B184: 命运峰-第77层 | C184: =VLOOKUP(A184,[2]TowerInfoConfig!$H:$O,8,FALSE) -> 221 | D184: 5005 | I184: 5005 | X184: =IF(I184="","",VLOOKUP(I184,[3]HeroModelConfig!$A:$D,4,FALSE)) -> 土系怪 | Y184: =IF(J184="","",VLOOKUP(J184,[3]HeroModelConfig!$A:$D,4,FALSE)) ->  | Z184: =IF(K184="","",VLOOKUP(K184,[3]HeroModelConfig!$A:$D,4,FALSE)) -> 
A185: 2078 | B185: 命运峰-第78层 | C185: =VLOOKUP(A185,[2]TowerInfoConfig!$H:$O,8,FALSE) -> 223 | D185: 5006 | I185: 5006 | X185: =IF(I185="","",VLOOKUP(I185,[3]HeroModelConfig!$A:$D,4,FALSE)) -> 鼠先锋 | Y185: =IF(J185="","",VLOOKUP(J185,[3]HeroModelConfig!$A:$D,4,FALSE)) ->  | Z185: =IF(K185="","",VLOOKUP(K185,[3]HeroModelConfig!$A:$D,4,FALSE)) -> 
A186: 2079 | B186: 命运峰-第79层 | C186: =VLOOKUP(A186,[2]TowerInfoConfig!$H:$O,8,FALSE) -> 226 | D186: 5007 | I186: 5007 | X186: =IF(I186="","",VLOOKUP(I186,[3]HeroModelConfig!$A:$D,4,FALSE)) -> 穷奇 | Y186: =IF(J186="","",VLOOKUP(J186,[3]HeroModelConfig!$A:$D,4,FALSE)) ->  | Z186: =IF(K186="","",VLOOKUP(K186,[3]HeroModelConfig!$A:$D,4,FALSE)) -> 
A187: 2080 | B187: 命运峰-第80层 | C187: =VLOOKUP(A187,[2]TowerInfoConfig!$H:$O,8,FALSE) -> 229 | D187: 9004 | I187: 9004 | X187: =IF(I187="","",VLOOKUP(I187,[3]HeroModelConfig!$A:$D,4,FALSE)) -> 樗木之灵 | Y187: =IF(J187="","",VLOOKUP(J187,[3]HeroModelConfig!$A:$D,4,FALSE)) ->  | Z187: =IF(K187="","",VLOOKUP(K187,[3]HeroModelConfig!$A:$D,4,FALSE)) -> 
A188: 2081 | B188: 命运峰-第81层 | C188: =VLOOKUP(A188,[2]TowerInfoConfig!$H:$O,8,FALSE) -> 231 | D188: 5001 | I188: 5001 | X188: =IF(I188="","",VLOOKUP(I188,[3]HeroModelConfig!$A:$D,4,FALSE)) -> 金修精英 | Y188: =IF(J188="","",VLOOKUP(J188,[3]HeroModelConfig!$A:$D,4,FALSE)) ->  | Z188: =IF(K188="","",VLOOKUP(K188,[3]HeroModelConfig!$A:$D,4,FALSE)) -> 
A189: 2082 | B189: 命运峰-第82层 | C189: =VLOOKUP(A189,[2]TowerInfoConfig!$H:$O,8,FALSE) -> 233 | D189: 5002 | I189: 5002 | X189: =IF(I189="","",VLOOKUP(I189,[3]HeroModelConfig!$A:$D,4,FALSE)) -> 水修精英 | Y189: =IF(J189="","",VLOOKUP(J189,[3]HeroModelConfig!$A:$D,4,FALSE)) ->  | Z189: =IF(K189="","",VLOOKUP(K189,[3]HeroModelConfig!$A:$D,4,FALSE)) -> 
A190: 2083 | B190: 命运峰-第83层 | C190: =VLOOKUP(A190,[2]TowerInfoConfig!$H:$O,8,FALSE) -> 236 | D190: 5003 | I190: 5003 | X190: =IF(I190="","",VLOOKUP(I190,[3]HeroModelConfig!$A:$D,4,FALSE)) -> 木修精英 | Y190: =IF(J190="","",VLOOKUP(J190,[3]HeroModelConfig!$A:$D,4,FALSE)) ->  | Z190: =IF(K190="","",VLOOKUP(K190,[3]HeroModelConfig!$A:$D,4,FALSE)) -> 
A191: 2084 | B191: 命运峰-第84层 | C191: =VLOOKUP(A191,[2]TowerInfoConfig!$H:$O,8,FALSE) -> 239 | D191: 5004 | I191: 5004 | X191: =IF(I191="","",VLOOKUP(I191,[3]HeroModelConfig!$A:$D,4,FALSE)) -> 火修精英 | Y191: =IF(J191="","",VLOOKUP(J191,[3]HeroModelConfig!$A:$D,4,FALSE)) ->  | Z191: =IF(K191="","",VLOOKUP(K191,[3]HeroModelConfig!$A:$D,4,FALSE)) -> 
A192: 2085 | B192: 命运峰-第85层 | C192: =VLOOKUP(A192,[2]TowerInfoConfig!$H:$O,8,FALSE) -> 241 | D192: =_xlfn.TEXTJOIN(";",1,I192:K192) -> 9005 | E192: =_xlfn.TEXTJOIN(";",1,L192:N192) ->  | F192: =_xlfn.TEXTJOIN(";",1,O192:Q192) ->  | G192: =_xlfn.TEXTJOIN(";",1,R192:T192) ->  | H192: =_xlfn.TEXTJOIN(";",1,U192:W192) ->  | I192: 9005 | X192: =IF(I192="","",VLOOKUP(I192,[3]HeroModelConfig!$A:$D,4,FALSE)) -> 心魔 | Y192: =IF(J192="","",VLOOKUP(J192,[3]HeroModelConfig!$A:$D,4,FALSE)) ->  | Z192: =IF(K192="","",VLOOKUP(K192,[3]HeroModelConfig!$A:$D,4,FALSE)) -> 
A193: 2086 | B193: 命运峰-第86层 | C193: =VLOOKUP(A193,[2]TowerInfoConfig!$H:$O,8,FALSE) -> 243 | D193: 5004 | I193: 5004 | X193: =IF(I193="","",VLOOKUP(I193,[3]HeroModelConfig!$A:$D,4,FALSE)) -> 火修精英 | Y193: =IF(J193="","",VLOOKUP(J193,[3]HeroModelConfig!$A:$D,4,FALSE)) ->  | Z193: =IF(K193="","",VLOOKUP(K193,[3]HeroModelConfig!$A:$D,4,FALSE)) -> 
A194: 2087 | B194: 命运峰-第87层 | C194: =VLOOKUP(A194,[2]TowerInfoConfig!$H:$O,8,FALSE) -> 246 | D194: 5005 | I194: 5005 | X194: =IF(I194="","",VLOOKUP(I194,[3]HeroModelConfig!$A:$D,4,FALSE)) -> 土系怪 | Y194: =IF(J194="","",VLOOKUP(J194,[3]HeroModelConfig!$A:$D,4,FALSE)) ->  | Z194: =IF(K194="","",VLOOKUP(K194,[3]HeroModelConfig!$A:$D,4,FALSE)) -> 
A195: 2088 | B195: 命运峰-第88层 | C195: =VLOOKUP(A195,[2]TowerInfoConfig!$H:$O,8,FALSE) -> 249 | D195: 5006 | I195: 5006 | X195: =IF(I195="","",VLOOKUP(I195,[3]HeroModelConfig!$A:$D,4,FALSE)) -> 鼠先锋 | Y195: =IF(J195="","",VLOOKUP(J195,[3]HeroModelConfig!$A:$D,4,FALSE)) ->  | Z195: =IF(K195="","",VLOOKUP(K195,[3]HeroModelConfig!$A:$D,4,FALSE)) -> 
A196: 2089 | B196: 命运峰-第89层 | C196: =VLOOKUP(A196,[2]TowerInfoConfig!$H:$O,8,FALSE) -> 251 | D196: 5007 | I196: 5007 | X196: =IF(I196="","",VLOOKUP(I196,[3]HeroModelConfig!$A:$D,4,FALSE)) -> 穷奇 | Y196: =IF(J196="","",VLOOKUP(J196,[3]HeroModelConfig!$A:$D,4,FALSE)) ->  | Z196: =IF(K196="","",VLOOKUP(K196,[3]HeroModelConfig!$A:$D,4,FALSE)) -> 
A197: 2090 | B197: 命运峰-第90层 | C197: =VLOOKUP(A197,[2]TowerInfoConfig!$H:$O,8,FALSE) -> 253 | D197: 9006 | I197: 9006 | X197: =IF(I197="","",VLOOKUP(I197,[3]HeroModelConfig!$A:$D,4,FALSE)) -> 仙山飞鸟 | Y197: =IF(J197="","",VLOOKUP(J197,[3]HeroModelConfig!$A:$D,4,FALSE)) ->  | Z197: =IF(K197="","",VLOOKUP(K197,[3]HeroModelConfig!$A:$D,4,FALSE)) -> 
A198: 2091 | B198: 命运峰-第91层 | C198: =VLOOKUP(A198,[2]TowerInfoConfig!$H:$O,8,FALSE) -> 256 | D198: 5001 | I198: 5001 | X198: =IF(I198="","",VLOOKUP(I198,[3]HeroModelConfig!$A:$D,4,FALSE)) -> 金修精英 | Y198: =IF(J198="","",VLOOKUP(J198,[3]HeroModelConfig!$A:$D,4,FALSE)) ->  | Z198: =IF(K198="","",VLOOKUP(K198,[3]HeroModelConfig!$A:$D,4,FALSE)) -> 
A199: 2092 | B199: 命运峰-第92层 | C199: =VLOOKUP(A199,[2]TowerInfoConfig!$H:$O,8,FALSE) -> 260 | D199: 5002 | I199: 5002 | X199: =IF(I199="","",VLOOKUP(I199,[3]HeroModelConfig!$A:$D,4,FALSE)) -> 水修精英 | Y199: =IF(J199="","",VLOOKUP(J199,[3]HeroModelConfig!$A:$D,4,FALSE)) ->  | Z199: =IF(K199="","",VLOOKUP(K199,[3]HeroModelConfig!$A:$D,4,FALSE)) -> 
A200: 2093 | B200: 命运峰-第93层 | C200: =VLOOKUP(A200,[2]TowerInfoConfig!$H:$O,8,FALSE) -> 265 | D200: 5003 | I200: 5003 | X200: =IF(I200="","",VLOOKUP(I200,[3]HeroModelConfig!$A:$D,4,FALSE)) -> 木修精英 | Y200: =IF(J200="","",VLOOKUP(J200,[3]HeroModelConfig!$A:$D,4,FALSE)) ->  | Z200: =IF(K200="","",VLOOKUP(K200,[3]HeroModelConfig!$A:$D,4,FALSE)) -> 
A201: 2094 | B201: 命运峰-第94层 | C201: =VLOOKUP(A201,[2]TowerInfoConfig!$H:$O,8,FALSE) -> 270 | D201: 5004 | I201: 5004 | X201: =IF(I201="","",VLOOKUP(I201,[3]HeroModelConfig!$A:$D,4,FALSE)) -> 火修精英 | Y201: =IF(J201="","",VLOOKUP(J201,[3]HeroModelConfig!$A:$D,4,FALSE)) ->  | Z201: =IF(K201="","",VLOOKUP(K201,[3]HeroModelConfig!$A:$D,4,FALSE)) -> 
... 6 more rows

Sheet 强度验算
B1: 生存修正 | C1: 生命 | D1: 攻击修正 | E1: 对拼修正 | F1: 秒伤 | G1: 怪物存活时间 | I1: 玩家打怪物 | L1: 怪物打玩家
I2: 阶段1 | J2: 阶段2 | L2: 阶段1 | M2: 阶段2
A3: 怪物1 | C3: 2000 | F3: 100 | G3: =C3/100 -> 20 | I3: =G3*F3 -> 2000
G5: 1.2 | I5: =SUM(I6:I7) -> 1800 | J5: =SUM(J6:J7) -> 600 | L5: =SUM(L6:L7) -> 1846.05 | M5: =SUM(M6:M7) -> 153.95 | N5: =SUM(L5:M5) -> 2000
A6: 主怪 | B6: 0.9 | C6: =C$3*$B6 -> 1800 | D6: 0.769 | E6: =B6/SUM(B$6:B$7) -> 0.75 | F6: =F$3*$D6 -> 76.9 | G6: =C6/F$3 -> 18 | H6: =B6/D6 -> 1.170351105 | I6: =G6*F$3 -> 1800 | L6: =F6*G6 -> 1384.2
A7: 辅怪1 | B7: =C7/C$3 -> 0.3 | C7: =J7 -> 600 | D7: =F7/F$3 -> 0.2565833333 | E7: =B7/SUM(B$6:B$7) -> 0.25 | F7: =(C$3-L6)/G7 -> 25.65833333 | G7: =G$3*G5 -> 24 | H7: =B7/D7 -> 1.169210783 | J7: =F$3*(G7-G6) -> 600 | L7: =F7*G6 -> 461.85 | M7: =C$3-L5 -> 153.95
G9: =G5 -> 1.2 | I9: =SUM(I10:I11) -> 1600 | J9: =SUM(J10:J11) -> 800 | L9: =SUM(L10:L11) -> 1714.133333 | M9: =SUM(M10:M11) -> 285.8666667 | N9: =SUM(L9:M9) -> 2000
A10: 主怪 | B10: 0.8 | C10: =C$3*$B10 -> 1600 | D10: 0.714 | E10: =B10/SUM(B$10:B$11) -> 0.6666666667 | F10: =F$3*$D10 -> 71.4 | G10: =C10/F$3 -> 16 | H10: =B10/D10 -> 1.120448179 | I10: =G10*F$3 -> 1600 | L10: =F10*G10 -> 1142.4
A11: 辅怪1 | B11: =C11/C$3 -> 0.4 | C11: =J11 -> 800 | D11: =F11/F$3 -> 0.3573333333 | E11: =B11/SUM(B$10:B$11) -> 0.3333333333 | F11: =(C$3-L10)/G11 -> 35.73333333 | G11: =G$3*G9 -> 24 | H11: =B11/D11 -> 1.119402985 | J11: =F$3*(G11-G10) -> 800 | L11: =F11*G10 -> 571.7333333 | M11: =C$3-L9 -> 285.8666667
G13: =G5 -> 1.2 | I13: =SUM(I14:I15) -> 1400 | J13: =SUM(J14:J15) -> 1000 | L13: =SUM(L14:L15) -> 1541.166667 | M13: =SUM(M14:M15) -> 458.8333333 | N13: =SUM(L13:M13) -> 2000
A14: 主怪 | B14: 0.7 | C14: =C$3*$B14 -> 1400 | D14: 0.642 | E14: =B14/SUM(B$14:B$15) -> 0.5833333333 | F14: =F$3*$D14 -> 64.2 | G14: =C14/F$3 -> 14 | H14: =B14/D14 -> 1.090342679 | I14: =G14*F$3 -> 1400 | L14: =F14*G14 -> 898.8
A15: 辅怪1 | B15: =C15/C$3 -> 0.5 | C15: =J15 -> 1000 | D15: =F15/F$3 -> 0.4588333333 | E15: =B15/SUM(B$14:B$15) -> 0.4166666667 | F15: =(C$3-L14)/G15 -> 45.88333333 | G15: =G$3*G13 -> 24 | H15: =B15/D15 -> 1.089720305 | J15: =F$3*(G15-G14) -> 1000 | L15: =F15*G14 -> 642.3666667 | M15: =C$3-L13 -> 458.8333333
G17: =G5 -> 1.2 | I17: =SUM(I18:I19) -> 1200 | J17: =SUM(J18:J19) -> 1200 | L17: =SUM(L18:L19) -> 1333.6 | M17: =SUM(M18:M19) -> 666.4 | N17: =SUM(L17:M17) -> 2000
A18: 主怪 | B18: 0.6 | C18: =C$3*$B18 -> 1200 | D18: 0.556 | E18: =B18/SUM(B$18:B$19) -> 0.5 | F18: =F$3*$D18 -> 55.6 | G18: =C18/F$3 -> 12 | H18: =B18/D18 -> 1.079136691 | I18: =G18*F$3 -> 1200 | L18: =F18*G18 -> 667.2
A19: 辅怪1 | B19: =C19/C$3 -> 0.6 | C19: =J19 -> 1200 | D19: =F19/F$3 -> 0.5553333333 | E19: =B19/SUM(B$18:B$19) -> 0.5 | F19: =(C$3-L18)/G19 -> 55.53333333 | G19: =G$3*G17 -> 24 | H19: =B19/D19 -> 1.080432173 | J19: =F$3*(G19-G18) -> 1200 | L19: =F19*G18 -> 666.4 | M19: =C$3-L17 -> 666.4
G24: 1.3 | I24: =SUM(I25:I26) -> 1800 | J24: =SUM(J25:J26) -> 800 | L24: =SUM(L25:L26) -> 1810.523077 | M24: =SUM(M25:M26) -> 189.4769231 | N24: =SUM(L24:M24) -> 2000
A25: 主怪 | B25: 0.9 | C25: =C$3*$B25 -> 1800 | D25: 0.769 | F25: =F$3*$D25 -> 76.9 | G25: =C25/F$3 -> 18 | H25: =B25/D25 -> 1.170351105 | I25: =G25*F$3 -> 1800 | L25: =F25*G25 -> 1384.2
A26: 辅怪1 | B26: =C26/C$3 -> 0.4 | C26: =J26 -> 800 | D26: =F26/F$3 -> 0.2368461538 | F26: =(C$3-L25)/G26 -> 23.68461538 | G26: =G$3*G24 -> 26 | H26: =B26/D26 -> 1.688860019 | J26: =F$3*(G26-G25) -> 800 | L26: =F26*G25 -> 426.3230769 | M26: =C$3-L24 -> 189.4769231
G28: =G24 -> 1.3 | I28: =SUM(I29:I30) -> 1600 | J28: =SUM(J29:J30) -> 1000 | L28: =SUM(L29:L30) -> 1670.153846 | M28: =SUM(M29:M30) -> 329.8461538 | N28: =SUM(L28:M28) -> 2000
A29: 主怪 | B29: 0.8 | C29: =C$3*$B29 -> 1600 | D29: 0.714 | F29: =F$3*$D29 -> 71.4 | G29: =C29/F$3 -> 16 | H29: =B29/D29 -> 1.120448179 | I29: =G29*F$3 -> 1600 | L29: =F29*G29 -> 1142.4
A30: 辅怪1 | B30: =C30/C$3 -> 0.5 | C30: =J30 -> 1000 | D30: =F30/F$3 -> 0.3298461538 | F30: =(C$3-L29)/G30 -> 32.98461538 | G30: =G$3*G28 -> 26 | H30: =B30/D30 -> 1.515858209 | J30: =F$3*(G30-G29) -> 1000 | L30: =F30*G29 -> 527.7538462 | M30: =C$3-L28 -> 329.8461538
G32: =G24 -> 1.3 | I32: =SUM(I33:I34) -> 1400 | J32: =SUM(J33:J34) -> 1200 | L32: =SUM(L33:L34) -> 1491.753846 | M32: =SUM(M33:M34) -> 508.2461538 | N32: =SUM(L32:M32) -> 2000
A33: 主怪 | B33: 0.7 | C33: =C$3*$B33 -> 1400 | D33: 0.642 | F33: =F$3*$D33 -> 64.2 | G33: =C33/F$3 -> 14 | H33: =B33/D33 -> 1.090342679 | I33: =G33*F$3 -> 1400 | L33: =F33*G33 -> 898.8
A34: 辅怪1 | B34: =C34/C$3 -> 0.6 | C34: =J34 -> 1200 | D34: =F34/F$3 -> 0.4235384615 | F34: =(C$3-L33)/G34 -> 42.35384615 | G34: =G$3*G32 -> 26 | H34: =B34/D34 -> 1.416636397 | J34: =F$3*(G34-G33) -> 1200 | L34: =F34*G33 -> 592.9538462 | M34: =C$3-L32 -> 508.2461538
G36: =G24 -> 1.3 | I36: =SUM(I37:I38) -> 1200 | J36: =SUM(J37:J38) -> 1400 | L36: =SUM(L37:L38) -> 1282.338462 | M36: =SUM(M37:M38) -> 717.6615385 | N36: =SUM(L36:M36) -> 2000
A37: 主怪 | B37: 0.6 | C37: =C$3*$B37 -> 1200 | D37: 0.556 | F37: =F$3*$D37 -> 55.6 | G37: =C37/F$3 -> 12 | H37: =B37/D37 -> 1.079136691 | I37: =G37*F$3 -> 1200 | L37: =F37*G37 -> 667.2
A38: 辅怪1 | B38: =C38/C$3 -> 0.7 | C38: =J38 -> 1400 | D38: =F38/F$3 -> 0.5126153846 | F38: =(C$3-L37)/G38 -> 51.26153846 | G38: =G$3*G36 -> 26 | H38: =B38/D38 -> 1.365546218 | J38: =F$3*(G38-G37) -> 1400 | L38: =F38*G37 -> 615.1384615 | M38: =C$3-L36 -> 717.6615385
